Council Name,Date,TransNo,Amount � (Excl VAT),Supplier name,Supplier Category,Expense Area,Expense Type,Expense Code,Unclaimed VAT
London Borough of Sutton,01/12/2022,50302775,"16,562.68",4D Care Ltd,SOCIAL SERVICES RESIDENTIAL,Peoples Services,Residential Care-Children,A56115,0
London Borough of Sutton,19/01/2023,50309849,"30,038.04",A Step Beyond Ltd,SOCIAL SERVICES - OTHER,Peoples Services,Supported Living,A56088,0
London Borough of Sutton,19/01/2023,50309849,"7,867.11",A Step Beyond Ltd,SOCIAL SERVICES - OTHER,Peoples Services,Supported Living,A56088,0
London Borough of Sutton,19/01/2023,50309849,"5,270.86",A Step Beyond Ltd,SOCIAL SERVICES - OTHER,Peoples Services,Supported Living,A56088,0
London Borough of Sutton,19/01/2023,50309849,"80,101.44",A Step Beyond Ltd,SOCIAL SERVICES - OTHER,Peoples Services,Supported Living,A56088,0
London Borough of Sutton,16/01/2023,20040738,"1,517.53",REDACTED - PERSONAL DATA,SUNDRY SUPPLIER - HOUSING,Environment Housing and Neighbourhoods,Rent Deposit Scheme,B32179,0
London Borough of Sutton,16/01/2023,20040738,"3,600.00",REDACTED - PERSONAL DATA,SUNDRY SUPPLIER - HOUSING,Environment Housing and Neighbourhoods,PSL Payments To Landlords,A22031,0
London Borough of Sutton,01/12/2022,50302760,"30,070.00",A Wilderness Way Ltd,CHILDREN'S SERVICES - FOSTERING & ADOPTION SERVICES,Peoples Services,Residential Care-Children,A56115,0
London Borough of Sutton,20/01/2023,50310267,"-6,004.80",Abbey Care Centre,SOCIAL SERVICES RESIDENTIAL,Peoples Services,Nursing Care Short Term,A56026,0
London Borough of Sutton,20/01/2023,50310292,"3,848.24",Abbey Care Centre,SOCIAL SERVICES RESIDENTIAL,Peoples Services,Nursing Care - Ext Provider,A56025,0
London Borough of Sutton,20/01/2023,50310292,-750.40,Abbey Care Centre,SOCIAL SERVICES RESIDENTIAL,Peoples Services,Nursing Care - 3rd party top up payment,A56023,0
London Borough of Sutton,20/01/2023,50310368,-750.40,Abbey Care Centre,SOCIAL SERVICES RESIDENTIAL,Peoples Services,Nursing Care - 3rd party top up payment,A56023,0
London Borough of Sutton,20/01/2023,50310368,"3,848.24",Abbey Care Centre,SOCIAL SERVICES RESIDENTIAL,Peoples Services,Nursing Care Short Term,A56026,0
London Borough of Sutton,20/01/2023,50310368,"-1,492.80",Abbey Care Centre,SOCIAL SERVICES RESIDENTIAL,Peoples Services,Nursing Care - 3rd party top up payment,A56023,0
London Borough of Sutton,20/01/2023,50310397,"6,004.80",Abbey Care Centre,SOCIAL SERVICES RESIDENTIAL,Peoples Services,Respite Care,A56116,0
London Borough of Sutton,20/01/2023,50310536,-750.40,Abbey Care Centre,SOCIAL SERVICES RESIDENTIAL,Peoples Services,Nursing Care - 3rd party top up payment,A56023,0
London Borough of Sutton,20/01/2023,50310536,"3,848.24",Abbey Care Centre,SOCIAL SERVICES RESIDENTIAL,Peoples Services,Nursing Care Short Term,A56026,0
London Borough of Sutton,20/01/2023,50310609,"4,036.76",Abbey Care Centre,SOCIAL SERVICES RESIDENTIAL,Peoples Services,Nursing Care - Ext Provider,A56025,0
London Borough of Sutton,20/01/2023,50310609,-836.76,Abbey Care Centre,SOCIAL SERVICES RESIDENTIAL,Peoples Services,Nursing Care - 3rd party top up payment,A56023,0
London Borough of Sutton,10/01/2023,50302267,"1,092.36",ABC Pre-School Beddington LLP,GRANTS & EX GRATIA PAYMENTS,Peoples Services,Payment - Nursery Funding,A51056,0
London Borough of Sutton,10/01/2023,50302322,"3,629.26",ABC Pre-School Beddington LLP,GRANTS & EX GRATIA PAYMENTS,Peoples Services,Payment - Nursery Funding,A51056,0
London Borough of Sutton,23/12/2022,20039449,780.00,REDACTED - PERSONAL DATA,SUNDRY SUPPLIER - FINANCE,Health and Wellbeing,Hire of Rooms,A92110,0
London Borough of Sutton,02/01/2023,20040089,"6,794.87",Absolute Care Services Ltd,SOCIAL SERVICES DAY CARE,Peoples Services,Homecare Core Services,A56020,0
London Borough of Sutton,02/01/2023,20040090,"5,715.81",Absolute Care Services Ltd,SOCIAL SERVICES DAY CARE,Peoples Services,Homecare Core Services,A56020,0
London Borough of Sutton,09/01/2023,20040091,"5,926.51",Absolute Care Services Ltd,SOCIAL SERVICES DAY CARE,Peoples Services,Homecare Core Services,A56020,0
London Borough of Sutton,02/01/2023,20040092,"5,926.51",Absolute Care Services Ltd,SOCIAL SERVICES DAY CARE,Peoples Services,Homecare Core Services,A56020,0
London Borough of Sutton,09/01/2023,20040093,"5,715.81",Absolute Care Services Ltd,SOCIAL SERVICES DAY CARE,Peoples Services,Homecare Core Services,A56020,0
London Borough of Sutton,09/01/2023,20040094,"6,794.87",Absolute Care Services Ltd,SOCIAL SERVICES DAY CARE,Peoples Services,Homecare Core Services,A56020,0
London Borough of Sutton,16/01/2023,20040607,"5,715.81",Absolute Care Services Ltd,SOCIAL SERVICES DAY CARE,Peoples Services,Homecare Core Services,A56020,0
London Borough of Sutton,16/01/2023,20040608,"5,926.51",Absolute Care Services Ltd,SOCIAL SERVICES DAY CARE,Peoples Services,Homecare Core Services,A56020,0
London Borough of Sutton,16/01/2023,20040630,"6,794.87",Absolute Care Services Ltd,SOCIAL SERVICES DAY CARE,Peoples Services,Homecare Core Services,A56020,0
London Borough of Sutton,25/12/2022,50301526,16.08,Absolute Care Services Ltd,SOCIAL SERVICES DAY CARE,Peoples Services,Home Care Services,A56019,0
London Borough of Sutton,25/12/2022,50301526,506.52,Absolute Care Services Ltd,SOCIAL SERVICES DAY CARE,Peoples Services,Home Care Services,A56019,0
London Borough of Sutton,25/12/2022,50301564,409.11,Absolute Care Services Ltd,SOCIAL SERVICES DAY CARE,Peoples Services,Home Care Services,A56019,0
London Borough of Sutton,25/12/2022,50301564,12.99,Absolute Care Services Ltd,SOCIAL SERVICES DAY CARE,Peoples Services,Home Care Services,A56019,0
London Borough of Sutton,25/12/2022,50301564,100.50,Absolute Care Services Ltd,SOCIAL SERVICES DAY CARE,Peoples Services,Home Care Services,A56019,0
London Borough of Sutton,25/12/2022,50301609,431.07,Absolute Care Services Ltd,SOCIAL SERVICES DAY CARE,Peoples Services,Home Care Services,A56019,0
London Borough of Sutton,25/12/2022,50301609,99.57,Absolute Care Services Ltd,SOCIAL SERVICES DAY CARE,Peoples Services,Home Care Services,A56019,0
London Borough of Sutton,25/12/2022,50301636,620.62,Absolute Care Services Ltd,SOCIAL SERVICES DAY CARE,Peoples Services,Home Care Services,A56019,0
London Borough of Sutton,25/12/2022,50301677,896.56,Absolute Care Services Ltd,SOCIAL SERVICES DAY CARE,Peoples Services,Home Care Services,A56019,0
London Borough of Sutton,25/12/2022,50301677,118.20,Absolute Care Services Ltd,SOCIAL SERVICES DAY CARE,Peoples Services,Home Care Services,A56019,0
London Borough of Sutton,25/12/2022,50301702,772.61,Absolute Care Services Ltd,SOCIAL SERVICES DAY CARE,Peoples Services,Home Care Services,A56019,0
London Borough of Sutton,25/12/2022,50301702,45.01,Absolute Care Services Ltd,SOCIAL SERVICES DAY CARE,Peoples Services,Home Care Services,A56019,0
London Borough of Sutton,25/12/2022,50301721,546.79,Absolute Care Services Ltd,SOCIAL SERVICES DAY CARE,Peoples Services,Home Care Services,A56019,0
London Borough of Sutton,25/12/2022,50301726,689.50,Absolute Care Services Ltd,SOCIAL SERVICES DAY CARE,Peoples Services,Home Care Services,A56019,0
London Borough of Sutton,25/12/2022,50301755,620.62,Absolute Care Services Ltd,SOCIAL SERVICES DAY CARE,Peoples Services,Home Care Services,A56019,0
London Borough of Sutton,25/12/2022,50301755,39.40,Absolute Care Services Ltd,SOCIAL SERVICES DAY CARE,Peoples Services,Home Care Services,A56019,0
London Borough of Sutton,25/12/2022,50301774,522.60,Absolute Care Services Ltd,SOCIAL SERVICES DAY CARE,Peoples Services,Home Care Services,A56019,0
London Borough of Sutton,01/01/2023,50304797,16.08,Absolute Care Services Ltd,SOCIAL SERVICES DAY CARE,Peoples Services,Home Care Services,A56019,0
London Borough of Sutton,01/01/2023,50304797,506.52,Absolute Care Services Ltd,SOCIAL SERVICES DAY CARE,Peoples Services,Home Care Services,A56019,0
London Borough of Sutton,01/01/2023,50304805,522.60,Absolute Care Services Ltd,SOCIAL SERVICES DAY CARE,Peoples Services,Home Care Services,A56019,0
London Borough of Sutton,01/01/2023,50304834,444.13,Absolute Care Services Ltd,SOCIAL SERVICES DAY CARE,Peoples Services,Home Care Services,A56019,0
London Borough of Sutton,01/01/2023,50304834,102.59,Absolute Care Services Ltd,SOCIAL SERVICES DAY CARE,Peoples Services,Home Care Services,A56019,0
London Borough of Sutton,01/01/2023,50304840,409.11,Absolute Care Services Ltd,SOCIAL SERVICES DAY CARE,Peoples Services,Home Care Services,A56019,0
London Borough of Sutton,01/01/2023,50304840,100.50,Absolute Care Services Ltd,SOCIAL SERVICES DAY CARE,Peoples Services,Home Care Services,A56019,0
London Borough of Sutton,01/01/2023,50304840,12.99,Absolute Care Services Ltd,SOCIAL SERVICES DAY CARE,Peoples Services,Home Care Services,A56019,0
London Borough of Sutton,01/01/2023,50304915,689.50,Absolute Care Services Ltd,SOCIAL SERVICES DAY CARE,Peoples Services,Home Care Services,A56019,0
London Borough of Sutton,01/01/2023,50304918,620.62,Absolute Care Services Ltd,SOCIAL SERVICES DAY CARE,Peoples Services,Home Care Services,A56019,0
London Borough of Sutton,01/01/2023,50304918,39.40,Absolute Care Services Ltd,SOCIAL SERVICES DAY CARE,Peoples Services,Home Care Services,A56019,0
London Borough of Sutton,01/01/2023,50304940,620.62,Absolute Care Services Ltd,SOCIAL SERVICES DAY CARE,Peoples Services,Home Care Services,A56019,0
London Borough of Sutton,01/01/2023,50304947,896.56,Absolute Care Services Ltd,SOCIAL SERVICES DAY CARE,Peoples Services,Home Care Services,A56019,0
London Borough of Sutton,01/01/2023,50304947,118.20,Absolute Care Services Ltd,SOCIAL SERVICES DAY CARE,Peoples Services,Home Care Services,A56019,0
London Borough of Sutton,01/01/2023,50304949,758.65,Absolute Care Services Ltd,SOCIAL SERVICES DAY CARE,Peoples Services,Home Care Services,A56019,0
London Borough of Sutton,01/01/2023,50304949,44.19,Absolute Care Services Ltd,SOCIAL SERVICES DAY CARE,Peoples Services,Home Care Services,A56019,0
London Borough of Sutton,01/01/2023,50304953,546.79,Absolute Care Services Ltd,SOCIAL SERVICES DAY CARE,Peoples Services,Home Care Services,A56019,0
London Borough of Sutton,08/01/2023,50306575,409.11,Absolute Care Services Ltd,SOCIAL SERVICES DAY CARE,Peoples Services,Home Care Services,A56019,0
London Borough of Sutton,08/01/2023,50306575,100.50,Absolute Care Services Ltd,SOCIAL SERVICES DAY CARE,Peoples Services,Home Care Services,A56019,0
London Borough of Sutton,08/01/2023,50306575,12.99,Absolute Care Services Ltd,SOCIAL SERVICES DAY CARE,Peoples Services,Home Care Services,A56019,0
London Borough of Sutton,08/01/2023,50306676,444.13,Absolute Care Services Ltd,SOCIAL SERVICES DAY CARE,Peoples Services,Home Care Services,A56019,0
London Borough of Sutton,08/01/2023,50306676,102.59,Absolute Care Services Ltd,SOCIAL SERVICES DAY CARE,Peoples Services,Home Care Services,A56019,0
London Borough of Sutton,08/01/2023,50306680,620.62,Absolute Care Services Ltd,SOCIAL SERVICES DAY CARE,Peoples Services,Home Care Services,A56019,0
London Borough of Sutton,08/01/2023,50306701,896.56,Absolute Care Services Ltd,SOCIAL SERVICES DAY CARE,Peoples Services,Home Care Services,A56019,0
London Borough of Sutton,08/01/2023,50306701,118.20,Absolute Care Services Ltd,SOCIAL SERVICES DAY CARE,Peoples Services,Home Care Services,A56019,0
London Borough of Sutton,08/01/2023,50306708,689.50,Absolute Care Services Ltd,SOCIAL SERVICES DAY CARE,Peoples Services,Home Care Services,A56019,0
London Borough of Sutton,08/01/2023,50306709,16.08,Absolute Care Services Ltd,SOCIAL SERVICES DAY CARE,Peoples Services,Home Care Services,A56019,0
London Borough of Sutton,08/01/2023,50306709,506.52,Absolute Care Services Ltd,SOCIAL SERVICES DAY CARE,Peoples Services,Home Care Services,A56019,0
London Borough of Sutton,08/01/2023,50306733,546.79,Absolute Care Services Ltd,SOCIAL SERVICES DAY CARE,Peoples Services,Home Care Services,A56019,0
London Borough of Sutton,08/01/2023,50306740,620.62,Absolute Care Services Ltd,SOCIAL SERVICES DAY CARE,Peoples Services,Home Care Services,A56019,0
London Borough of Sutton,08/01/2023,50306740,39.40,Absolute Care Services Ltd,SOCIAL SERVICES DAY CARE,Peoples Services,Home Care Services,A56019,0
London Borough of Sutton,08/01/2023,50306742,522.60,Absolute Care Services Ltd,SOCIAL SERVICES DAY CARE,Peoples Services,Home Care Services,A56019,0
London Borough of Sutton,15/01/2023,50311961,620.62,Absolute Care Services Ltd,SOCIAL SERVICES DAY CARE,Peoples Services,Home Care Services,A56019,0
London Borough of Sutton,15/01/2023,50311961,39.40,Absolute Care Services Ltd,SOCIAL SERVICES DAY CARE,Peoples Services,Home Care Services,A56019,0
London Borough of Sutton,15/01/2023,50311975,896.56,Absolute Care Services Ltd,SOCIAL SERVICES DAY CARE,Peoples Services,Home Care Services,A56019,0
London Borough of Sutton,15/01/2023,50311975,118.20,Absolute Care Services Ltd,SOCIAL SERVICES DAY CARE,Peoples Services,Home Care Services,A56019,0
London Borough of Sutton,15/01/2023,50311999,772.61,Absolute Care Services Ltd,SOCIAL SERVICES DAY CARE,Peoples Services,Home Care Services,A56019,0
London Borough of Sutton,15/01/2023,50311999,45.01,Absolute Care Services Ltd,SOCIAL SERVICES DAY CARE,Peoples Services,Home Care Services,A56019,0
London Borough of Sutton,15/01/2023,50312009,546.79,Absolute Care Services Ltd,SOCIAL SERVICES DAY CARE,Peoples Services,Home Care Services,A56019,0
London Borough of Sutton,15/01/2023,50312014,684.58,Absolute Care Services Ltd,SOCIAL SERVICES DAY CARE,Peoples Services,Home Care Services,A56019,0
London Borough of Sutton,15/01/2023,50312015,16.08,Absolute Care Services Ltd,SOCIAL SERVICES DAY CARE,Peoples Services,Home Care Services,A56019,0
London Borough of Sutton,15/01/2023,50312015,506.52,Absolute Care Services Ltd,SOCIAL SERVICES DAY CARE,Peoples Services,Home Care Services,A56019,0
London Borough of Sutton,15/01/2023,50312034,522.60,Absolute Care Services Ltd,SOCIAL SERVICES DAY CARE,Peoples Services,Home Care Services,A56019,0
London Borough of Sutton,15/01/2023,50312079,409.11,Absolute Care Services Ltd,SOCIAL SERVICES DAY CARE,Peoples Services,Home Care Services,A56019,0
London Borough of Sutton,15/01/2023,50312079,100.50,Absolute Care Services Ltd,SOCIAL SERVICES DAY CARE,Peoples Services,Home Care Services,A56019,0
London Borough of Sutton,15/01/2023,50312079,12.99,Absolute Care Services Ltd,SOCIAL SERVICES DAY CARE,Peoples Services,Home Care Services,A56019,0
London Borough of Sutton,15/01/2023,50312100,431.07,Absolute Care Services Ltd,SOCIAL SERVICES DAY CARE,Peoples Services,Home Care Services,A56019,0
London Borough of Sutton,15/01/2023,50312100,99.57,Absolute Care Services Ltd,SOCIAL SERVICES DAY CARE,Peoples Services,Home Care Services,A56019,0
London Borough of Sutton,15/01/2023,50312105,620.62,Absolute Care Services Ltd,SOCIAL SERVICES DAY CARE,Peoples Services,Home Care Services,A56019,0
London Borough of Sutton,31/12/2022,20039787,810.00,Access Independent Ltd,MANAGEMENT & TRAINING SERVICES,Health and Wellbeing,Mobility Scheme for the Disabled,A61015,0
London Borough of Sutton,04/01/2023,20039771,"7,503.32",Access UK Limited,TAXI AND COACH HIRE,Peoples Services,Childrens Social Care Transport,A32009,0
London Borough of Sutton,11/01/2023,20040288,"95,501.72",Access UK Limited,TAXI AND COACH HIRE,Peoples Services,Childrens Social Care Transport,A32009,0
London Borough of Sutton,18/01/2023,20040870,"235,263.21",Access UK Limited,TAXI AND COACH HIRE,Peoples Services,Childrens Social Care Transport,A32009,0
London Borough of Sutton,25/01/2023,20041391,"188,025.88",Access UK Limited,TAXI AND COACH HIRE,Peoples Services,Childrens Social Care Transport,A32009,0
London Borough of Sutton,04/01/2023,50303309,"5,410.61",Accomplish Group Ltd,SOCIAL SERVICES RESIDENTIAL,Peoples Services,Supported Living,A56088,0
London Borough of Sutton,06/01/2023,50304489,"4,671.40",Accomplish Group Ltd,SOCIAL SERVICES RESIDENTIAL,Peoples Services,Supported Living,A56088,0
London Borough of Sutton,06/01/2023,50304516,"3,080.00",Accomplish Group Ltd,SOCIAL SERVICES RESIDENTIAL,Peoples Services,Supported Living,A56088,0
London Borough of Sutton,20/01/2023,50310140,"8,103.64",Achieve Together Limited,SOCIAL SERVICES RESIDENTIAL,Peoples Services,Residential Care - Ext Provider,A56114,0
London Borough of Sutton,20/01/2023,50310140,-402.80,Achieve Together Limited,SOCIAL SERVICES RESIDENTIAL,Peoples Services,Residential Care - Client Cont ( Net Paymt ),A56113,0
London Borough of Sutton,20/01/2023,50310146,"6,845.04",Achieve Together Limited,SOCIAL SERVICES RESIDENTIAL,Peoples Services,Residential Care - Ext Provider,A56114,0
London Borough of Sutton,20/01/2023,50310146,-438.80,Achieve Together Limited,SOCIAL SERVICES RESIDENTIAL,Peoples Services,Residential Care - Client Cont ( Net Paymt ),A56113,0
London Borough of Sutton,20/01/2023,50310186,"4,682.44",Achieve Together Limited,SOCIAL SERVICES RESIDENTIAL,Peoples Services,Residential Care - Ext Provider,A56114,0
London Borough of Sutton,20/01/2023,50310186,"-2,671.12",Achieve Together Limited,SOCIAL SERVICES RESIDENTIAL,Peoples Services,Residential Care - Client Cont ( Net Paymt ),A56113,0
London Borough of Sutton,20/01/2023,50310223,"5,100.00",Achieve Together Limited,SOCIAL SERVICES RESIDENTIAL,Peoples Services,Residential Care - Ext Provider,A56114,0
London Borough of Sutton,20/01/2023,50310353,"4,375.48",Achieve Together Limited,SOCIAL SERVICES RESIDENTIAL,Peoples Services,Residential Care - Ext Provider,A56114,0
London Borough of Sutton,20/01/2023,50310353,-471.80,Achieve Together Limited,SOCIAL SERVICES RESIDENTIAL,Peoples Services,Residential Care - Client Cont ( Net Paymt ),A56113,0
London Borough of Sutton,20/01/2023,50310353,390.00,Achieve Together Limited,SOCIAL SERVICES RESIDENTIAL,Peoples Services,One to One Care,A56108,0
London Borough of Sutton,20/01/2023,50310429,"5,810.56",Achieve Together Limited,SOCIAL SERVICES RESIDENTIAL,Peoples Services,Residential Care - Ext Provider,A56114,0
London Borough of Sutton,20/01/2023,50310455,"7,303.88",Achieve Together Limited,SOCIAL SERVICES RESIDENTIAL,Peoples Services,Residential Care - Ext Provider,A56114,0
London Borough of Sutton,20/01/2023,50310455,-474.80,Achieve Together Limited,SOCIAL SERVICES RESIDENTIAL,Peoples Services,Residential Care - Client Cont ( Net Paymt ),A56113,0
London Borough of Sutton,19/01/2023,50309750,"-78,018.68",Achieve Together Limited,SOCIAL SERVICES RESIDENTIAL,Peoples Services,Supported Living,A56088,0
London Borough of Sutton,19/01/2023,50309751,"29,022.35",Achieve Together Limited,SOCIAL SERVICES RESIDENTIAL,Peoples Services,Supported Living,A56088,0
London Borough of Sutton,19/01/2023,50309751,"31,432.32",Achieve Together Limited,SOCIAL SERVICES RESIDENTIAL,Peoples Services,Supported Living,A56088,0
London Borough of Sutton,19/01/2023,50309754,"23,574.24",Achieve Together Limited,SOCIAL SERVICES RESIDENTIAL,Peoples Services,Supported Living,A56088,0
London Borough of Sutton,19/01/2023,50309754,"6,332.45",Achieve Together Limited,SOCIAL SERVICES RESIDENTIAL,Peoples Services,Supported Living,A56088,0
London Borough of Sutton,19/01/2023,50309754,"6,114.31",Achieve Together Limited,SOCIAL SERVICES RESIDENTIAL,Peoples Services,Supported Living,A56088,0
London Borough of Sutton,19/01/2023,50309755,"-32,489.29",Achieve Together Limited,SOCIAL SERVICES RESIDENTIAL,Peoples Services,Supported Living,A56088,0
London Borough of Sutton,19/01/2023,50309769,"-28,050.00",Achieve Together Limited,SOCIAL SERVICES RESIDENTIAL,Peoples Services,Supported Living,A56088,0
London Borough of Sutton,19/01/2023,50309770,"10,477.44",Achieve Together Limited,SOCIAL SERVICES RESIDENTIAL,Peoples Services,Supported Living,A56088,0
London Borough of Sutton,19/01/2023,50309770,"8,766.47",Achieve Together Limited,SOCIAL SERVICES RESIDENTIAL,Peoples Services,Supported Living,A56088,0
London Borough of Sutton,19/01/2023,50309770,"10,477.44",Achieve Together Limited,SOCIAL SERVICES RESIDENTIAL,Peoples Services,Supported Living,A56088,0
London Borough of Sutton,19/01/2023,50309812,"-40,739.29",Achieve Together Limited,SOCIAL SERVICES RESIDENTIAL,Peoples Services,Supported Living,A56088,0
London Borough of Sutton,19/01/2023,50309813,"26,193.60",Achieve Together Limited,SOCIAL SERVICES RESIDENTIAL,Peoples Services,Supported Living,A56088,0
London Borough of Sutton,19/01/2023,50309840,"55,380.76",Achieve Together Limited,SOCIAL SERVICES RESIDENTIAL,Peoples Services,Supported Living,A56088,0
London Borough of Sutton,19/01/2023,50309841,"-31,538.57",Achieve Together Limited,SOCIAL SERVICES RESIDENTIAL,Peoples Services,Supported Living,A56088,0
London Borough of Sutton,20/01/2023,50310131,"11,047.88",Achieve Together Limited,SOCIAL SERVICES RESIDENTIAL,Peoples Services,Residential Care - Ext Provider,A56114,0
London Borough of Sutton,20/01/2023,50310158,"4,653.76",Achieve Together Limited,SOCIAL SERVICES RESIDENTIAL,Peoples Services,Residential Care - Ext Provider,A56114,0
London Borough of Sutton,20/01/2023,50310246,"5,620.60",Achieve Together Limited,SOCIAL SERVICES RESIDENTIAL,Peoples Services,Residential Care - Ext Provider,A56114,0
London Borough of Sutton,20/01/2023,50310246,-438.80,Achieve Together Limited,SOCIAL SERVICES RESIDENTIAL,Peoples Services,Residential Care - Client Cont ( Net Paymt ),A56113,0
London Borough of Sutton,19/01/2023,50310799,"3,456.25",Achieve Together Limited,SOCIAL SERVICES RESIDENTIAL,Peoples Services,Home Care Services,A56019,0
London Borough of Sutton,01/12/2022,50302747,"16,784.33",Acorn Homes UK Ltd,CHILDREN'S SERVICES - FOSTERING & ADOPTION SERVICES,Peoples Services,Residential Care-Children,A56115,0
London Borough of Sutton,20/01/2023,50310237,"3,012.36",Acorn Lodge,SOCIAL SERVICES RESIDENTIAL,Peoples Services,Residential Care - Ext Provider,A56114,0
London Borough of Sutton,20/01/2023,50310152,"3,232.48",Acorn Residential Home,SOCIAL SERVICES RESIDENTIAL,Peoples Services,Residential Care - Ext Provider,A56114,0
London Borough of Sutton,20/01/2023,50310376,"6,441.84",Active Prospects,SOCIAL SERVICES DAY CARE,Peoples Services,Residential Care - Ext Provider,A56114,0
London Borough of Sutton,20/01/2023,50310414,-438.80,Active Prospects,SOCIAL SERVICES DAY CARE,Peoples Services,Residential Care - Client Cont ( Net Paymt ),A56113,0
London Borough of Sutton,20/01/2023,50310414,"8,918.80",Active Prospects,SOCIAL SERVICES DAY CARE,Peoples Services,Residential Care - Ext Provider,A56114,0
London Borough of Sutton,20/01/2023,50310205,"1,458.00",Admiral Healthcare Ltd,SOCIAL SERVICES RESIDENTIAL,Peoples Services,Residential Care - Ext Provider,A56114,0
London Borough of Sutton,01/11/2022,20039907,"1,496.28",Adt Fire & Security Plc,BUILDING MNTCE - SERVICES,Resources,FM - Planned Maintenance Contract - Mitie,A56097,0
London Borough of Sutton,01/11/2022,20040088,"4,698.60",Adt Fire & Security Plc,BUILDING MNTCE - SERVICES,Resources,FM - Planned Maintenance Contract - Mitie,A56097,0
London Borough of Sutton,15/12/2022,20039276,"28,565.30",AECOM Ltd,LEGAL & PROFESSIONAL SERVICES,Development Growth and Regeneration,Professional Fees,A44066,0
London Borough of Sutton,15/12/2022,20039276,"4,474.00",AECOM Ltd,LEGAL & PROFESSIONAL SERVICES,Development Growth and Regeneration,External Fees and Consultants,C20000,0
London Borough of Sutton,21/12/2022,50302713,"3,715.35",Affinity Fostering Services Ltd,CHILDREN'S SERVICES - FOSTERING & ADOPTION SERVICES,Peoples Services,Foster Parents Support,A44110,0
London Borough of Sutton,21/12/2022,50302714,"3,527.49",Affinity Fostering Services Ltd,CHILDREN'S SERVICES - FOSTERING & ADOPTION SERVICES,Peoples Services,Foster Parents Support,A44110,0
London Borough of Sutton,21/12/2022,50302811,"3,494.01",Affinity Fostering Services Ltd,CHILDREN'S SERVICES - FOSTERING & ADOPTION SERVICES,Peoples Services,Foster Parents Support,A44110,0
London Borough of Sutton,21/12/2022,50302812,"3,317.31",Affinity Fostering Services Ltd,CHILDREN'S SERVICES - FOSTERING & ADOPTION SERVICES,Peoples Services,Foster Parents Support,A44110,0
London Borough of Sutton,19/01/2023,50309773,"2,024.21",Agincare Enable Limited,SOCIAL SERVICES RESIDENTIAL,Peoples Services,Supported Living,A56088,0
London Borough of Sutton,19/01/2023,50309773,455.70,Agincare Enable Limited,SOCIAL SERVICES RESIDENTIAL,Peoples Services,Supported Living,A56088,0
London Borough of Sutton,19/01/2023,50309773,"2,024.21",Agincare Enable Limited,SOCIAL SERVICES RESIDENTIAL,Peoples Services,One to One Care,A56108,0
London Borough of Sutton,20/01/2023,50310142,"7,793.40",Leighton House Ltd,SOCIAL SERVICES RESIDENTIAL,Peoples Services,Residential Care - Ext Provider,A56114,0
London Borough of Sutton,20/01/2023,50310166,"8,716.00",Aitch Care Homes,SOCIAL SERVICES RESIDENTIAL,Peoples Services,Residential Care - Ext Provider,A56114,0
London Borough of Sutton,31/12/2022,20039675,952.10,Albany Housing YP Ltd,CARE LEAVERS,Peoples Services,Approved Lodgings,A61000,0
London Borough of Sutton,10/01/2023,50304346,608.25,REDACTED - PERSONAL DATA,GRANTS & EX GRATIA PAYMENTS,Peoples Services,Payment - Nursery Funding,A51056,0
London Borough of Sutton,15/11/2022,20040289,997.10,REDACTED - PERSONAL DATA,GRANTS & EX GRATIA PAYMENTS,Environment Housing and Neighbourhoods,Temporary Protection - Homeless Persons,A62028,0
London Borough of Sutton,11/01/2023,20040481,940.99,REDACTED - PERSONAL DATA,FOSTER PARENTS,Peoples Services,Foster Carers-Reimbursement of Expenses,A56009,0
London Borough of Sutton,12/01/2023,50305691,"1,600.00",All About Homes Ltd,CARE LEAVERS,Peoples Services,Education Allowance,A60008,0
London Borough of Sutton,12/01/2023,50306421,899.35,ALL CARE (GB) Limited,SOCIAL SERVICES RESIDENTIAL,Peoples Services,Home Care Services,A56019,0
London Borough of Sutton,12/01/2023,50306421,84.83,ALL CARE (GB) Limited,SOCIAL SERVICES RESIDENTIAL,Peoples Services,Home Care Services,A56019,0
London Borough of Sutton,10/01/2023,50302003,"159,396.66",All Saints Benhilton C Of E,GRANTS & EX GRATIA PAYMENTS,Peoples Services,Payments to Schools,A51013,0
London Borough of Sutton,10/01/2023,50302072,"2,787.75",All Saints Benhilton C Of E,GRANTS & EX GRATIA PAYMENTS,Peoples Services,Payment - school led tutoring grant,A51060,0
London Borough of Sutton,10/01/2023,50302101,"2,175.00",All Saints Benhilton C Of E,GRANTS & EX GRATIA PAYMENTS,Peoples Services,Payment - Covid 19 Recovery Premium,A51039,0
London Borough of Sutton,10/01/2023,50302124,"18,697.50",All Saints Benhilton C Of E,GRANTS & EX GRATIA PAYMENTS,Peoples Services,Payment - Deprivation Pupil Premium,A51030,0
London Borough of Sutton,10/01/2023,50302147,"3,615.00",All Saints Benhilton C Of E,GRANTS & EX GRATIA PAYMENTS,Peoples Services,Payment - Post-LAC Pupil Premium,A51032,0
London Borough of Sutton,10/01/2023,50302164,"-18,697.50",All Saints Benhilton C Of E,GRANTS & EX GRATIA PAYMENTS,Peoples Services,Payment - Deprivation Pupil Premium,A51030,0
London Borough of Sutton,23/01/2023,50310900,"1,740.00",All Saints Benhilton C Of E,GRANTS & EX GRATIA PAYMENTS,Resources,"Grants, Contributions & Donations",A47005,0
London Borough of Sutton,06/04/2022,50311158,"5,033.28",All Saints Benhilton C Of E,GRANTS & EX GRATIA PAYMENTS,Non-Service Cost Centres,Recharge-Teaching Staff,A10600,0
London Borough of Sutton,06/04/2022,50311159,654.75,All Saints Benhilton C Of E,GRANTS & EX GRATIA PAYMENTS,Non-Service Cost Centres,Recharge-Teaching Staff,A10600,0
London Borough of Sutton,25/01/2023,50311910,"1,184.50",All Saints Benhilton C Of E,GRANTS & EX GRATIA PAYMENTS,Non-Service Cost Centres,Recharge-Teaching Staff,A10600,0
London Borough of Sutton,27/01/2023,50312171,"2,505.00",All Saints Benhilton C Of E,GRANTS & EX GRATIA PAYMENTS,Peoples Services,Payment - Cluster Lead SENCO,A51035,0
London Borough of Sutton,31/01/2023,50312848,"15,510.53",All Saints Benhilton C Of E,GRANTS & EX GRATIA PAYMENTS,Peoples Services,Place Funding,A56110,0
London Borough of Sutton,23/01/2023,50310901,660.00,All Saints Carshalton Primary School,GRANTS & EX GRATIA PAYMENTS,Resources,"Grants, Contributions & Donations",A47005,0
London Borough of Sutton,31/01/2023,50312849,"15,814.65",All Saints Carshalton Primary School,GRANTS & EX GRATIA PAYMENTS,Peoples Services,Place Funding,A56110,0
London Borough of Sutton,20/01/2023,50310245,"4,621.64",Allied Care (Mhs) Ltd,SOCIAL SERVICES - OTHER,Peoples Services,Residential Care - Ext Provider,A56114,0
London Borough of Sutton,30/12/2022,20039832,834.85,Allied Publicity Services (Manchester) Ltd,REPROGRAPHICS & PHOTOGRAPHY,Health and Wellbeing,Mobility Scheme for the Disabled,A61015,0
London Borough of Sutton,01/01/2023,20039763,"1,817.18",Allstar Business Solutions,FUEL AND VEHICLE SUPPLIES,Environment Housing and Neighbourhoods,Vehicles -  Fuel,A30015,0
London Borough of Sutton,20/01/2023,50310332,"6,609.52",Allswell Care Services Ltd,SOCIAL SERVICES RESIDENTIAL,Peoples Services,Residential Care - Ext Provider,A56114,0
London Borough of Sutton,20/01/2023,50310440,"5,397.60",Allswell Care Services Ltd,SOCIAL SERVICES RESIDENTIAL,Peoples Services,Residential Care - Ext Provider,A56114,0
London Borough of Sutton,20/01/2023,50310628,"5,397.60",Allswell Care Services Ltd,SOCIAL SERVICES RESIDENTIAL,Peoples Services,Residential Care - Ext Provider,A56114,0
London Borough of Sutton,03/01/2023,50303318,820.76,Alpenbest Limited,SOCIAL SERVICES DAY CARE,Peoples Services,Home Care Services,A56019,0
London Borough of Sutton,03/01/2023,50303323,526.70,Alpenbest Limited,SOCIAL SERVICES DAY CARE,Peoples Services,Home Care Services,A56019,0
London Borough of Sutton,03/01/2023,50303324,925.64,Alpenbest Limited,SOCIAL SERVICES DAY CARE,Peoples Services,Home Care Services,A56019,0
London Borough of Sutton,03/01/2023,50303325,"3,183.52",Alpenbest Limited,SOCIAL SERVICES DAY CARE,Peoples Services,Home Care Services,A56019,0
London Borough of Sutton,03/01/2023,50303326,"1,620.16",Alpenbest Limited,SOCIAL SERVICES DAY CARE,Peoples Services,Home Care Services,A56019,0
London Borough of Sutton,03/01/2023,50303327,"3,183.52",Alpenbest Limited,SOCIAL SERVICES DAY CARE,Peoples Services,Home Care Services,A56019,0
London Borough of Sutton,03/01/2023,50303328,"1,564.12",Alpenbest Limited,SOCIAL SERVICES DAY CARE,Peoples Services,Home Care Services,A56019,0
London Borough of Sutton,03/01/2023,50303330,"1,648.76",Alpenbest Limited,SOCIAL SERVICES DAY CARE,Peoples Services,Home Care Services,A56019,0
London Borough of Sutton,03/01/2023,50303331,740.60,Alpenbest Limited,SOCIAL SERVICES DAY CARE,Peoples Services,Home Care Services,A56019,0
London Borough of Sutton,03/01/2023,50303337,516.82,Alpenbest Limited,SOCIAL SERVICES DAY CARE,Peoples Services,Home Care Services,A56019,0
London Borough of Sutton,03/01/2023,50303338,"3,183.52",Alpenbest Limited,SOCIAL SERVICES DAY CARE,Peoples Services,Home Care Services,A56019,0
London Borough of Sutton,03/01/2023,50303339,852.64,Alpenbest Limited,SOCIAL SERVICES DAY CARE,Peoples Services,Home Care Services,A56019,0
London Borough of Sutton,03/01/2023,50303341,777.93,Alpenbest Limited,SOCIAL SERVICES DAY CARE,Peoples Services,Home Care Services,A56019,0
London Borough of Sutton,03/01/2023,50303342,603.47,Alpenbest Limited,SOCIAL SERVICES DAY CARE,Peoples Services,Home Care Services,A56019,0
London Borough of Sutton,03/01/2023,50303343,"1,591.76",Alpenbest Limited,SOCIAL SERVICES DAY CARE,Peoples Services,Home Care Services,A56019,0
London Borough of Sutton,03/01/2023,50303344,822.74,Alpenbest Limited,SOCIAL SERVICES DAY CARE,Peoples Services,Home Care Services,A56019,0
London Borough of Sutton,03/01/2023,50303346,852.64,Alpenbest Limited,SOCIAL SERVICES DAY CARE,Peoples Services,Home Care Services,A56019,0
London Borough of Sutton,03/01/2023,50303349,"1,239.30",Alpenbest Limited,SOCIAL SERVICES DAY CARE,Peoples Services,Home Care Services,A56019,0
London Borough of Sutton,03/01/2023,50303349,833.80,Alpenbest Limited,SOCIAL SERVICES DAY CARE,Peoples Services,Home Care Services,A56019,0
London Borough of Sutton,03/01/2023,50303352,"1,648.88",Alpenbest Limited,SOCIAL SERVICES DAY CARE,Peoples Services,Home Care Services,A56019,0
London Borough of Sutton,03/01/2023,50303353,"1,222.20",Alpenbest Limited,SOCIAL SERVICES DAY CARE,Peoples Services,Home Care Services,A56019,0
London Borough of Sutton,03/01/2023,50303354,755.60,Alpenbest Limited,SOCIAL SERVICES DAY CARE,Peoples Services,Home Care Services,A56019,0
London Borough of Sutton,03/01/2023,50303428,596.67,Alpenbest Limited,SOCIAL SERVICES DAY CARE,Peoples Services,Home Care Services,A56019,0
London Borough of Sutton,03/01/2023,50303436,"1,604.71",Alpenbest Limited,SOCIAL SERVICES DAY CARE,Peoples Services,Home Care Services,A56019,0
London Borough of Sutton,03/01/2023,50303437,988.61,Alpenbest Limited,SOCIAL SERVICES DAY CARE,Peoples Services,Home Care Services,A56019,0
London Borough of Sutton,03/01/2023,50303438,"4,789.97",Alpenbest Limited,SOCIAL SERVICES DAY CARE,Peoples Services,Home Care Services,A56019,0
London Borough of Sutton,03/01/2023,50303439,"1,194.56",Alpenbest Limited,SOCIAL SERVICES DAY CARE,Peoples Services,Home Care Services,A56019,0
London Borough of Sutton,03/01/2023,50303441,"1,256.58",Alpenbest Limited,SOCIAL SERVICES DAY CARE,Peoples Services,Home Care Services,A56019,0
London Borough of Sutton,03/01/2023,50303442,"2,534.32",Alpenbest Limited,SOCIAL SERVICES DAY CARE,Peoples Services,Home Care Services,A56019,0
London Borough of Sutton,03/01/2023,50305970,"3,445.76",Alpenbest Limited,SOCIAL SERVICES DAY CARE,Peoples Services,Home Care Services,A56019,0
London Borough of Sutton,03/01/2023,50305996,"1,640.99",Alpenbest Limited,SOCIAL SERVICES DAY CARE,Peoples Services,Home Care Services,A56019,0
London Borough of Sutton,02/12/2022,50306108,"4,666.92",Alpenbest Limited,SOCIAL SERVICES DAY CARE,Peoples Services,Home Care Services,A56019,0
London Borough of Sutton,03/01/2023,50312612,"1,900.05",Alpenbest Limited,SOCIAL SERVICES DAY CARE,Peoples Services,Home Care Services,A56019,0
London Borough of Sutton,03/01/2023,50312613,"1,234.16",Alpenbest Limited,SOCIAL SERVICES DAY CARE,Peoples Services,Home Care Services,A56019,0
London Borough of Sutton,10/01/2023,50302323,"1,013.76",REDACTED - PERSONAL DATA,GRANTS & EX GRATIA PAYMENTS,Peoples Services,Payment - Nursery Funding,A51056,0
London Borough of Sutton,10/01/2023,50302384,850.61,REDACTED - PERSONAL DATA,GRANTS & EX GRATIA PAYMENTS,Peoples Services,Payment - Nursery Funding,A51056,0
London Borough of Sutton,31/01/2023,20041742,"-7,264.00",Ambient Support Limited,SOCIAL SERVICES RESIDENTIAL,Peoples Services,Supported Living,A56088,0
London Borough of Sutton,03/01/2023,50299462,"2,937.87",Ambient Support Limited,SOCIAL SERVICES RESIDENTIAL,Peoples Services,Supported Living,A56088,0
London Borough of Sutton,10/01/2023,50304777,836.00,Ambient Support Limited,SOCIAL SERVICES RESIDENTIAL,Peoples Services,Supported Living,A56088,0
London Borough of Sutton,10/01/2023,50304778,836.00,Ambient Support Limited,SOCIAL SERVICES RESIDENTIAL,Peoples Services,Supported Living,A56088,0
London Borough of Sutton,20/10/2022,50299390,"1,430.00",REDACTED - PERSONAL DATA,SUNDRY SUPPLIER - EDUCATION,Peoples Services,Miscellaneous Expenses,A49000,0
London Borough of Sutton,20/01/2023,50310172,"1,540.00",ANA Treatment Centres Ltd,SOCIAL SERVICES RESIDENTIAL,Peoples Services,Interim Placements - Ext Provider,A56102,0
London Borough of Sutton,20/01/2023,50310172,-207.32,ANA Treatment Centres Ltd,SOCIAL SERVICES RESIDENTIAL,Peoples Services,Residential Care - Client Cont ( Net Paymt ),A56113,0
London Borough of Sutton,20/01/2023,50310172,"1,840.00",ANA Treatment Centres Ltd,SOCIAL SERVICES RESIDENTIAL,Peoples Services,Interim Placements - Ext Provider,A56102,0
London Borough of Sutton,20/01/2023,50310172,-207.32,ANA Treatment Centres Ltd,SOCIAL SERVICES RESIDENTIAL,Peoples Services,Residential Care - Client Cont ( Net Paymt ),A56113,0
London Borough of Sutton,01/12/2022,50302716,"3,656.76",Anchor Foster Care Services Ltd,CHILDREN'S SERVICES - FOSTERING & ADOPTION SERVICES,Peoples Services,Foster Parents Support,A44110,0
London Borough of Sutton,01/12/2022,50302764,"4,495.00",Anchor Foster Care Services Ltd,CHILDREN'S SERVICES - FOSTERING & ADOPTION SERVICES,Peoples Services,Foster Parents Support,A44110,0
London Borough of Sutton,03/01/2023,20039736,"3,800.00",REDACTED - PERSONAL DATA,GRANTS & EX GRATIA PAYMENTS,Environment Housing and Neighbourhoods,Temporary Protection - Homeless Persons,A62028,0
London Borough of Sutton,23/12/2022,20039596,938.34,REDACTED - PERSONAL DATA,PLS LANDLORDS,Environment Housing and Neighbourhoods,Temporary Protection - Homeless Persons,A62028,0
London Borough of Sutton,10/01/2023,50302365,637.95,REDACTED - PERSONAL DATA,GRANTS & EX GRATIA PAYMENTS,Peoples Services,Payment - Nursery Funding,A51056,0
London Borough of Sutton,24/12/2022,50299545,"2,100.00",REDACTED - PERSONAL DATA,CHILDREN'S SERVICES - SEN SERVICES,Peoples Services,Independent School Fees,A56002,0
London Borough of Sutton,01/01/2023,50302753,"3,476.43",Ansacare Fostering Agency Ltd,CHILDREN'S SERVICES - FOSTERING & ADOPTION SERVICES,Peoples Services,Foster Parents Support,A44110,0
London Borough of Sutton,01/01/2023,50302788,"3,476.43",Ansacare Fostering Agency Ltd,CHILDREN'S SERVICES - FOSTERING & ADOPTION SERVICES,Peoples Services,Foster Parents Support,A44110,0
London Borough of Sutton,31/12/2022,20039749,"10,000.80",Apex Housing Solutions Ltd,SOCIAL SERVICES DAY CARE,Environment Housing and Neighbourhoods,Bed & Breakfast,A56000,0
London Borough of Sutton,30/12/2022,20039732,"13,575.00",Architecture PLB Ltd,CONSULTING ARCHITECTS ENGINEER,HRA,External Fees and Consultants,C20000,0
London Borough of Sutton,14/10/2022,20039810,703.20,Arthur Rai Medical Services Ltd,TEMP STAFF & CONSULTANCY,Health and Wellbeing,Agency Staff - Other,A10505,0
London Borough of Sutton,04/01/2023,50305960,"1,909.26",Ascent Fostering Agency Ltd,CHILDREN'S SERVICE - OTHER,Peoples Services,Foster Parents Support,A44110,0
London Borough of Sutton,03/01/2023,50304958,"1,312.36",Ashlong House Ltd,SOCIAL SERVICES RESIDENTIAL,Peoples Services,Supported Living,A56088,0
London Borough of Sutton,03/01/2023,50304961,"1,775.56",Ashlong House Ltd,SOCIAL SERVICES RESIDENTIAL,Peoples Services,Supported Living,A56088,0
London Borough of Sutton,03/01/2023,50304961,139.44,Ashlong House Ltd,SOCIAL SERVICES RESIDENTIAL,Peoples Services,Supported Living,A56088,0
London Borough of Sutton,08/01/2023,50304970,"1,065.84",Ashlong House Ltd,SOCIAL SERVICES RESIDENTIAL,Peoples Services,Supported Living,A56088,0
London Borough of Sutton,20/01/2023,50310182,"-1,990.00",Ashurst Lodge Healthcare Ltd,CHILDREN'S SERVICES - RESIDENTIAL,Peoples Services,Nursing Care - 3rd party top up payment,A56023,0
London Borough of Sutton,20/01/2023,50310182,"3,980.00",Ashurst Lodge Healthcare Ltd,CHILDREN'S SERVICES - RESIDENTIAL,Peoples Services,Residential Care - Ext Provider,A56114,0
London Borough of Sutton,20/01/2023,50310116,"4,144.68",Aspen Place,SOCIAL SERVICES DAY CARE,Peoples Services,Nursing Care - Ext Provider,A56025,0
London Borough of Sutton,20/01/2023,50310190,"5,699.00",Aspens Charities,SOCIAL SERVICES RESIDENTIAL,Peoples Services,Residential Care - Ext Provider,A56114,0
London Borough of Sutton,03/01/2023,50299429,"2,480.00",Aspirations Care Ltd,SOCIAL SERVICES DAY CARE,Peoples Services,Home Care Services,A56019,0
London Borough of Sutton,03/01/2023,50299429,"7,356.30",Aspirations Care Ltd,SOCIAL SERVICES DAY CARE,Peoples Services,Home Care Services,A56019,0
London Borough of Sutton,09/12/2022,20038502,600.00,ASSOCIATON OF ACCOUNTING TECHNICIANS,SUBSCRIPTIONS & PUBLICATIONS,Health and Wellbeing,Examination Fees,A44200,0
London Borough of Sutton,23/12/2022,20039415,702.00,ASSOCIATON OF ACCOUNTING TECHNICIANS,SUBSCRIPTIONS & PUBLICATIONS,Health and Wellbeing,Examination Fees,A44200,0
London Borough of Sutton,10/01/2023,50302325,"1,216.51",Aunty Connies Childcare,GRANTS & EX GRATIA PAYMENTS,Peoples Services,Payment - Nursery Funding,A51056,0
London Borough of Sutton,20/01/2023,50310153,"6,024.56",Autism & Aspergers Care Services,SOCIAL SERVICES RESIDENTIAL,Peoples Services,Residential Care - Ext Provider,A56114,0
London Borough of Sutton,04/01/2023,50302785,"49,334.28",Avance Ltd,CHILDREN'S SERVICES - FOSTERING & ADOPTION SERVICES,Peoples Services,Residential Care-Children,A56115,0
London Borough of Sutton,10/01/2023,50302184,"9,633.28",Avenue Primary Acadamy,GRANTS & EX GRATIA PAYMENTS,Peoples Services,Pupil Growth,A51014,0
London Borough of Sutton,10/01/2023,50304294,"9,633.32",Avenue Primary Acadamy,GRANTS & EX GRATIA PAYMENTS,Peoples Services,Pupil Growth,A51014,0
London Borough of Sutton,10/01/2023,50304301,"9,633.32",Avenue Primary Acadamy,GRANTS & EX GRATIA PAYMENTS,Peoples Services,Pupil Growth,A51014,0
London Borough of Sutton,10/01/2023,50304308,"9,633.32",Avenue Primary Acadamy,GRANTS & EX GRATIA PAYMENTS,Peoples Services,Pupil Growth,A51014,0
London Borough of Sutton,10/01/2023,50304315,"9,633.32",Avenue Primary Acadamy,GRANTS & EX GRATIA PAYMENTS,Peoples Services,Pupil Growth,A51014,0
London Borough of Sutton,17/06/2022,50308099,"2,950.00",Avenue Primary Acadamy,GRANTS & EX GRATIA PAYMENTS,Peoples Services,Special Educational Needs,A51015,0
London Borough of Sutton,07/12/2022,50308101,760.00,Avenue Primary Acadamy,GRANTS & EX GRATIA PAYMENTS,Peoples Services,Special Educational Needs,A51015,0
London Borough of Sutton,01/09/2022,50308105,"63,333.33",Avenue Primary Acadamy,GRANTS & EX GRATIA PAYMENTS,Peoples Services,Place extra funding,A56124,0
London Borough of Sutton,01/01/2023,50308106,"47,500.00",Avenue Primary Acadamy,GRANTS & EX GRATIA PAYMENTS,Peoples Services,Place extra funding,A56124,0
London Borough of Sutton,23/01/2023,50310902,"3,420.00",Avenue Primary Acadamy,GRANTS & EX GRATIA PAYMENTS,Resources,"Grants, Contributions & Donations",A47005,0
London Borough of Sutton,31/01/2023,50312850,"16,586.85",Avenue Primary Acadamy,GRANTS & EX GRATIA PAYMENTS,Peoples Services,Place Funding,A56110,0
London Borough of Sutton,19/01/2023,50309785,"13,604.57",Ayai Care Limited,SOCIAL SERVICES DAY CARE,Peoples Services,Supported Living,A56088,0
London Borough of Sutton,19/01/2023,50309852,"14,136.00",Ayai Care Limited,SOCIAL SERVICES DAY CARE,Peoples Services,Supported Living,A56088,0
London Borough of Sutton,20/01/2023,20041100,"2,058.00",Back Care Solutions,SUNDRY SUPPLIER - FINANCE,Peoples Services,Equipment And Materials Purchase,A40000,0
London Borough of Sutton,28/12/2022,50302687,"3,571.43",Back on Track Housing Ltd,SOCIAL SERVICES - OTHER,Peoples Services,Approved Lodgings,A61000,0
London Borough of Sutton,09/01/2023,50305942,"6,800.00",Back on Track Housing Ltd,SOCIAL SERVICES - OTHER,Peoples Services,Approved Lodgings,A61000,0
London Borough of Sutton,09/01/2023,50305942,303.57,Back on Track Housing Ltd,SOCIAL SERVICES - OTHER,Peoples Services,Approved Lodgings,A61000,0
London Borough of Sutton,09/01/2023,50305946,"5,059.46",Back on Track Housing Ltd,SOCIAL SERVICES - OTHER,Peoples Services,Accommodation - Supported Living,A62001,0
London Borough of Sutton,09/01/2023,50305951,"5,225.67",Back on Track Housing Ltd,SOCIAL SERVICES - OTHER,Peoples Services,Approved Lodgings,A61000,0
London Borough of Sutton,23/01/2023,50310903,"1,920.00",Bandon Hill Primary School (Academy),GRANTS & EX GRATIA PAYMENTS,Resources,"Grants, Contributions & Donations",A47005,0
London Borough of Sutton,31/01/2023,50312851,"18,819.70",Bandon Hill Primary School (Academy),GRANTS & EX GRATIA PAYMENTS,Peoples Services,Place Funding,A56110,0
London Borough of Sutton,06/09/2022,20031724,433.96,Banner Group Limited,BOOKS PUBLICATIONS STATIONERY,Health and Wellbeing,Equipment And Materials Purchase,A40000,0
London Borough of Sutton,03/01/2023,20039764,744.17,Banner Group Limited,BOOKS PUBLICATIONS STATIONERY,Peoples Services,Miscellaneous Expenses,A49000,0
London Borough of Sutton,16/01/2023,50308116,"12,716.74",BANSTEAD PREPARATORY SCHOOL,CHILDREN'S SERVICES - SEN SERVICES,Peoples Services,Independent School Fees,A56002,0
London Borough of Sutton,16/01/2023,50308117,"7,830.00",BANSTEAD PREPARATORY SCHOOL,CHILDREN'S SERVICES - SEN SERVICES,Peoples Services,Independent School Fees,A56002,0
London Borough of Sutton,31/12/2022,50305961,"3,890.50",Banya,SOCIAL SERVICES RESIDENTIAL,Peoples Services,Foster Parents Support,A44110,0
London Borough of Sutton,20/01/2023,50310216,"3,880.00",Barchester Healthcare Homes Ltd,SOCIAL SERVICES RESIDENTIAL,Peoples Services,Nursing Care - Ext Provider,A56025,0
London Borough of Sutton,23/09/2022,20039843,720.00,Barnardo's,CHILDREN'S SERVICES - RESIDENTIAL,Peoples Services,Play Groups,A56111,0
London Borough of Sutton,18/01/2023,20040884,"7,004.10",Barnardo's,CHILDREN'S SERVICES - RESIDENTIAL,Peoples Services,Housing and Support - Generic Services,A62013,0
London Borough of Sutton,20/10/2022,50299374,526.50,REDACTED - PERSONAL DATA,CHILDREN'S SERVICES - SEN SERVICES,Peoples Services,Miscellaneous Expenses,A49000,0
London Borough of Sutton,10/01/2023,50301997,"105,063.94",Beddington Infants School,GRANTS & EX GRATIA PAYMENTS,Peoples Services,Payments to Schools,A51013,0
London Borough of Sutton,10/01/2023,50302066,"1,842.75",Beddington Infants School,GRANTS & EX GRATIA PAYMENTS,Peoples Services,Payment - school led tutoring grant,A51060,0
London Borough of Sutton,10/01/2023,50302095,"1,558.75",Beddington Infants School,GRANTS & EX GRATIA PAYMENTS,Peoples Services,Payment - Covid 19 Recovery Premium,A51039,0
London Borough of Sutton,10/01/2023,50302118,"14,542.50",Beddington Infants School,GRANTS & EX GRATIA PAYMENTS,Peoples Services,Payment - Deprivation Pupil Premium,A51030,0
London Borough of Sutton,10/01/2023,50302142,602.50,Beddington Infants School,GRANTS & EX GRATIA PAYMENTS,Peoples Services,Payment - Post-LAC Pupil Premium,A51032,0
London Borough of Sutton,10/01/2023,50302158,"-14,542.50",Beddington Infants School,GRANTS & EX GRATIA PAYMENTS,Peoples Services,Payment - Deprivation Pupil Premium,A51030,0
London Borough of Sutton,23/01/2023,50310905,"1,080.00",Beddington Infants School,GRANTS & EX GRATIA PAYMENTS,Resources,"Grants, Contributions & Donations",A47005,0
London Borough of Sutton,06/04/2022,50311155,"2,200.00",Beddington Infants School,GRANTS & EX GRATIA PAYMENTS,Non-Service Cost Centres,Recharge-Teaching Staff,A10600,0
London Borough of Sutton,06/04/2022,50311156,"3,600.00",Beddington Infants School,GRANTS & EX GRATIA PAYMENTS,Non-Service Cost Centres,Recharge-Teaching Staff,A10600,0
London Borough of Sutton,06/04/2022,50311157,"1,200.00",Beddington Infants School,GRANTS & EX GRATIA PAYMENTS,Non-Service Cost Centres,Recharge-Teaching Staff,A10600,0
London Borough of Sutton,25/01/2023,50311905,"1,537.00",Beddington Infants School,GRANTS & EX GRATIA PAYMENTS,Non-Service Cost Centres,Recharge-Teaching Staff,A10600,0
London Borough of Sutton,31/01/2023,50312853,"13,397.07",Beddington Infants School,GRANTS & EX GRATIA PAYMENTS,Peoples Services,Place Funding,A56110,0
London Borough of Sutton,23/01/2023,50310906,"2,970.00",Beddington Park Primary (Academy) ,GRANTS & EX GRATIA PAYMENTS,Resources,"Grants, Contributions & Donations",A47005,0
London Borough of Sutton,31/01/2023,50312854,"13,716.05",Beddington Park Primary (Academy) ,GRANTS & EX GRATIA PAYMENTS,Peoples Services,Place Funding,A56110,0
London Borough of Sutton,19/01/2023,50309743,"25,610.71",Beechcroft Care Limited,SOCIAL SERVICES RESIDENTIAL,Peoples Services,Nursing Care - 3rd party top up payment,A56023,0
London Borough of Sutton,19/01/2023,50309743,"-51,221.43",Beechcroft Care Limited,SOCIAL SERVICES RESIDENTIAL,Peoples Services,Supported Living,A56088,0
London Borough of Sutton,19/01/2023,50309744,"10,214.64",Beechcroft Care Limited,SOCIAL SERVICES RESIDENTIAL,Peoples Services,Nursing Care - 3rd party top up payment,A56023,0
London Borough of Sutton,19/01/2023,50309744,"-20,429.28",Beechcroft Care Limited,SOCIAL SERVICES RESIDENTIAL,Peoples Services,Supported Living,A56088,0
London Borough of Sutton,19/01/2023,50309745,"4,421.70",Beechcroft Care Limited,SOCIAL SERVICES RESIDENTIAL,Peoples Services,Supported Living,A56088,0
London Borough of Sutton,19/01/2023,50309745,"40,287.08",Beechcroft Care Limited,SOCIAL SERVICES RESIDENTIAL,Peoples Services,Supported Living,A56088,0
London Borough of Sutton,19/01/2023,50309745,"2,841.43",Beechcroft Care Limited,SOCIAL SERVICES RESIDENTIAL,Peoples Services,Supported Living,A56088,0
London Borough of Sutton,19/01/2023,50309745,"40,287.08",Beechcroft Care Limited,SOCIAL SERVICES RESIDENTIAL,Peoples Services,Supported Living,A56088,0
London Borough of Sutton,04/01/2023,20039772,697.44,Beeches Tree Care,AGRICULTURAL & ESTATE SERVICES,Environment Housing and Neighbourhoods,Purchases and Repairs Fixtures & Fittings,A25005,0
London Borough of Sutton,04/01/2023,20039773,"1,585.98",Beeches Tree Care,AGRICULTURAL & ESTATE SERVICES,Environment Housing and Neighbourhoods,Maintenance of trees,A28003,0
London Borough of Sutton,05/01/2023,20039885,422.92,Beeches Tree Care,AGRICULTURAL & ESTATE SERVICES,Environment Housing and Neighbourhoods,Maintenance of trees,A28003,0
London Borough of Sutton,06/01/2023,20039973,"1,892.85",Beeches Tree Care,AGRICULTURAL & ESTATE SERVICES,Environment Housing and Neighbourhoods,Tree Works,A56042,0
London Borough of Sutton,17/01/2023,20040751,"2,133.66",Beeches Tree Care,AGRICULTURAL & ESTATE SERVICES,Environment Housing and Neighbourhoods,Tree Works,A56042,0
London Borough of Sutton,19/01/2023,20040982,"1,888.44",Beeches Tree Care,AGRICULTURAL & ESTATE SERVICES,Environment Housing and Neighbourhoods,Tree Works,A56042,0
London Borough of Sutton,19/01/2023,20040983,"4,117.03",Beeches Tree Care,AGRICULTURAL & ESTATE SERVICES,Environment Housing and Neighbourhoods,Tree Works,A56042,0
London Borough of Sutton,19/01/2023,20040986,"3,856.95",Beeches Tree Care,AGRICULTURAL & ESTATE SERVICES,Environment Housing and Neighbourhoods,Highway Trees - Maintenance,A28005,0
London Borough of Sutton,19/01/2023,20040992,"1,661.38",Beeches Tree Care,AGRICULTURAL & ESTATE SERVICES,Environment Housing and Neighbourhoods,Maintenance of trees,A28003,0
London Borough of Sutton,19/01/2023,20040993,"2,092.94",Beeches Tree Care,AGRICULTURAL & ESTATE SERVICES,Environment Housing and Neighbourhoods,Highway Trees - Maintenance,A28005,0
London Borough of Sutton,19/01/2023,20040994,"3,505.48",Beeches Tree Care,AGRICULTURAL & ESTATE SERVICES,Environment Housing and Neighbourhoods,Highway Trees - Maintenance,A28005,0
London Borough of Sutton,10/01/2023,20041000,"17,740.00",Beeches Tree Care,AGRICULTURAL & ESTATE SERVICES,Environment Housing and Neighbourhoods,Purchases and Repairs Fixtures & Fittings,A25005,0
London Borough of Sutton,20/01/2023,20041061,464.96,Beeches Tree Care,AGRICULTURAL & ESTATE SERVICES,Resources,"Grants, Contributions & Donations",A47005,0
London Borough of Sutton,23/01/2023,20041149,489.50,Beeches Tree Care,AGRICULTURAL & ESTATE SERVICES,Environment Housing and Neighbourhoods,Tree Works,A56042,0
London Borough of Sutton,19/12/2022,50307333,"1,955.42",Bell Decorating Group Ltd,CONSTRUCTION INDUSTRY,HRA,Payments to Contractors,C14000,0
London Borough of Sutton,19/12/2022,50307334,"1,955.42",Bell Decorating Group Ltd,CONSTRUCTION INDUSTRY,HRA,Payments to Contractors,C14000,0
London Borough of Sutton,10/01/2023,50302270,"1,383.66",Belmont Village Playgroup,GRANTS & EX GRATIA PAYMENTS,Peoples Services,Payment - Nursery Funding,A51056,0
London Borough of Sutton,10/01/2023,50302326,"4,763.40",Belmont Village Playgroup,GRANTS & EX GRATIA PAYMENTS,Peoples Services,Payment - Nursery Funding,A51056,0
London Borough of Sutton,25/12/2022,50303371,981.94,Best at Home Domiciliary Care Services Ltd,SOCIAL SERVICES DAY CARE,Peoples Services,Home Care Services,A56019,0
London Borough of Sutton,01/01/2023,50303372,"1,081.96",Best at Home Domiciliary Care Services Ltd,SOCIAL SERVICES DAY CARE,Peoples Services,Home Care Services,A56019,0
London Borough of Sutton,25/12/2022,50303373,827.97,Best at Home Domiciliary Care Services Ltd,SOCIAL SERVICES DAY CARE,Peoples Services,Home Care Services,A56019,0
London Borough of Sutton,25/12/2022,50303373,150.00,Best at Home Domiciliary Care Services Ltd,SOCIAL SERVICES DAY CARE,Peoples Services,Home Care Services,A56019,0
London Borough of Sutton,01/01/2023,50303374,907.98,Best at Home Domiciliary Care Services Ltd,SOCIAL SERVICES DAY CARE,Peoples Services,Home Care Services,A56019,0
London Borough of Sutton,01/01/2023,50303374,165.00,Best at Home Domiciliary Care Services Ltd,SOCIAL SERVICES DAY CARE,Peoples Services,Home Care Services,A56019,0
London Borough of Sutton,25/12/2022,50303382,512.50,Best at Home Domiciliary Care Services Ltd,SOCIAL SERVICES DAY CARE,Peoples Services,Home Care Services,A56019,0
London Borough of Sutton,01/01/2023,50303383,602.50,Best at Home Domiciliary Care Services Ltd,SOCIAL SERVICES DAY CARE,Peoples Services,Home Care Services,A56019,0
London Borough of Sutton,25/12/2022,50303396,"3,156.00",Best at Home Domiciliary Care Services Ltd,SOCIAL SERVICES DAY CARE,Peoples Services,Home Care Services,A56019,0
London Borough of Sutton,01/01/2023,50303397,"3,516.00",Best at Home Domiciliary Care Services Ltd,SOCIAL SERVICES DAY CARE,Peoples Services,Home Care Services,A56019,0
London Borough of Sutton,25/12/2022,50303411,579.98,Best at Home Domiciliary Care Services Ltd,SOCIAL SERVICES DAY CARE,Peoples Services,Home Care Services,A56019,0
London Borough of Sutton,25/12/2022,50303419,827.97,Best at Home Domiciliary Care Services Ltd,SOCIAL SERVICES DAY CARE,Peoples Services,Home Care Services,A56019,0
London Borough of Sutton,01/01/2023,50303420,907.98,Best at Home Domiciliary Care Services Ltd,SOCIAL SERVICES DAY CARE,Peoples Services,Home Care Services,A56019,0
London Borough of Sutton,25/12/2022,50303426,"3,156.00",Best at Home Domiciliary Care Services Ltd,SOCIAL SERVICES DAY CARE,Peoples Services,Home Care Services,A56019,0
London Borough of Sutton,01/01/2023,50303427,"3,516.00",Best at Home Domiciliary Care Services Ltd,SOCIAL SERVICES DAY CARE,Peoples Services,Home Care Services,A56019,0
London Borough of Sutton,01/01/2023,50303444,506.25,Best at Home Domiciliary Care Services Ltd,SOCIAL SERVICES DAY CARE,Peoples Services,Home Care Services,A56019,0
London Borough of Sutton,25/12/2022,50303453,901.97,Best at Home Domiciliary Care Services Ltd,SOCIAL SERVICES DAY CARE,Peoples Services,Home Care Services,A56019,0
London Borough of Sutton,01/01/2023,50303454,"1,011.98",Best at Home Domiciliary Care Services Ltd,SOCIAL SERVICES DAY CARE,Peoples Services,Home Care Services,A56019,0
London Borough of Sutton,25/12/2022,50303458,"3,156.00",Best at Home Domiciliary Care Services Ltd,SOCIAL SERVICES DAY CARE,Peoples Services,Home Care Services,A56019,0
London Borough of Sutton,01/01/2023,50303459,"3,516.00",Best at Home Domiciliary Care Services Ltd,SOCIAL SERVICES DAY CARE,Peoples Services,Home Care Services,A56019,0
London Borough of Sutton,08/01/2023,50306143,"3,336.00",Best at Home Domiciliary Care Services Ltd,SOCIAL SERVICES DAY CARE,Peoples Services,Home Care Services,A56019,0
London Borough of Sutton,08/01/2023,50306166,"1,031.95",Best at Home Domiciliary Care Services Ltd,SOCIAL SERVICES DAY CARE,Peoples Services,Home Care Services,A56019,0
London Borough of Sutton,08/01/2023,50306249,565.00,Best at Home Domiciliary Care Services Ltd,SOCIAL SERVICES DAY CARE,Peoples Services,Home Care Services,A56019,0
London Borough of Sutton,08/01/2023,50306301,867.98,Best at Home Domiciliary Care Services Ltd,SOCIAL SERVICES DAY CARE,Peoples Services,Home Care Services,A56019,0
London Borough of Sutton,08/01/2023,50306301,157.50,Best at Home Domiciliary Care Services Ltd,SOCIAL SERVICES DAY CARE,Peoples Services,Home Care Services,A56019,0
London Borough of Sutton,08/01/2023,50306337,"3,336.00",Best at Home Domiciliary Care Services Ltd,SOCIAL SERVICES DAY CARE,Peoples Services,Home Care Services,A56019,0
London Borough of Sutton,08/01/2023,50306404,867.98,Best at Home Domiciliary Care Services Ltd,SOCIAL SERVICES DAY CARE,Peoples Services,Home Care Services,A56019,0
London Borough of Sutton,08/01/2023,50306410,941.98,Best at Home Domiciliary Care Services Ltd,SOCIAL SERVICES DAY CARE,Peoples Services,Home Care Services,A56019,0
London Borough of Sutton,08/01/2023,50306412,"3,336.00",Best at Home Domiciliary Care Services Ltd,SOCIAL SERVICES DAY CARE,Peoples Services,Home Care Services,A56019,0
London Borough of Sutton,19/08/2022,50307343,"3,156.00",Best at Home Domiciliary Care Services Ltd,SOCIAL SERVICES DAY CARE,Peoples Services,Home Care Services,A56019,0
London Borough of Sutton,19/08/2022,50307345,"3,156.00",Best at Home Domiciliary Care Services Ltd,SOCIAL SERVICES DAY CARE,Peoples Services,Home Care Services,A56019,0
London Borough of Sutton,19/08/2022,50307356,"1,356.00",Best at Home Domiciliary Care Services Ltd,SOCIAL SERVICES DAY CARE,Peoples Services,Home Care Services,A56019,0
London Borough of Sutton,19/08/2022,50307357,526.00,Best at Home Domiciliary Care Services Ltd,SOCIAL SERVICES DAY CARE,Peoples Services,Home Care Services,A56019,0
London Borough of Sutton,19/08/2022,50307358,526.00,Best at Home Domiciliary Care Services Ltd,SOCIAL SERVICES DAY CARE,Peoples Services,Home Care Services,A56019,0
London Borough of Sutton,19/08/2022,50307359,526.00,Best at Home Domiciliary Care Services Ltd,SOCIAL SERVICES DAY CARE,Peoples Services,Home Care Services,A56019,0
London Borough of Sutton,19/08/2022,50307366,"3,156.00",Best at Home Domiciliary Care Services Ltd,SOCIAL SERVICES DAY CARE,Peoples Services,Home Care Services,A56019,0
London Borough of Sutton,19/08/2022,50307371,"3,168.00",Best at Home Domiciliary Care Services Ltd,SOCIAL SERVICES DAY CARE,Peoples Services,Home Care Services,A56019,0
London Borough of Sutton,19/08/2022,50307372,"3,156.00",Best at Home Domiciliary Care Services Ltd,SOCIAL SERVICES DAY CARE,Peoples Services,Home Care Services,A56019,0
London Borough of Sutton,19/08/2022,50307373,"3,156.00",Best at Home Domiciliary Care Services Ltd,SOCIAL SERVICES DAY CARE,Peoples Services,Home Care Services,A56019,0
London Borough of Sutton,19/08/2022,50307374,"3,156.00",Best at Home Domiciliary Care Services Ltd,SOCIAL SERVICES DAY CARE,Peoples Services,Home Care Services,A56019,0
London Borough of Sutton,19/08/2022,50307375,"3,156.00",Best at Home Domiciliary Care Services Ltd,SOCIAL SERVICES DAY CARE,Peoples Services,Home Care Services,A56019,0
London Borough of Sutton,19/08/2022,50307376,"3,216.00",Best at Home Domiciliary Care Services Ltd,SOCIAL SERVICES DAY CARE,Peoples Services,Home Care Services,A56019,0
London Borough of Sutton,19/08/2022,50307378,600.00,Best at Home Domiciliary Care Services Ltd,SOCIAL SERVICES DAY CARE,Peoples Services,Home Care Services,A56019,0
London Borough of Sutton,15/01/2023,50310677,542.50,Best at Home Domiciliary Care Services Ltd,SOCIAL SERVICES DAY CARE,Peoples Services,Home Care Services,A56019,0
London Borough of Sutton,15/01/2023,50310694,827.97,Best at Home Domiciliary Care Services Ltd,SOCIAL SERVICES DAY CARE,Peoples Services,Home Care Services,A56019,0
London Borough of Sutton,15/01/2023,50310694,150.00,Best at Home Domiciliary Care Services Ltd,SOCIAL SERVICES DAY CARE,Peoples Services,Home Care Services,A56019,0
London Borough of Sutton,15/01/2023,50310715,"3,156.00",Best at Home Domiciliary Care Services Ltd,SOCIAL SERVICES DAY CARE,Peoples Services,Home Care Services,A56019,0
London Borough of Sutton,15/01/2023,50310724,827.97,Best at Home Domiciliary Care Services Ltd,SOCIAL SERVICES DAY CARE,Peoples Services,Home Care Services,A56019,0
London Borough of Sutton,15/01/2023,50310739,"3,156.00",Best at Home Domiciliary Care Services Ltd,SOCIAL SERVICES DAY CARE,Peoples Services,Home Care Services,A56019,0
London Borough of Sutton,15/01/2023,50310744,981.94,Best at Home Domiciliary Care Services Ltd,SOCIAL SERVICES DAY CARE,Peoples Services,Home Care Services,A56019,0
London Borough of Sutton,15/01/2023,50310766,901.97,Best at Home Domiciliary Care Services Ltd,SOCIAL SERVICES DAY CARE,Peoples Services,Home Care Services,A56019,0
London Borough of Sutton,15/01/2023,50310770,"3,156.00",Best at Home Domiciliary Care Services Ltd,SOCIAL SERVICES DAY CARE,Peoples Services,Home Care Services,A56019,0
London Borough of Sutton,30/11/2022,20039887,846.00,Bestcourt UK Ltd,ACCOMMODATION BED & BREAKFAST,Environment Housing and Neighbourhoods,Bed & Breakfast,A56000,0
London Borough of Sutton,31/12/2022,20039890,"6,573.00",Bestcourt UK Ltd,ACCOMMODATION BED & BREAKFAST,Environment Housing and Neighbourhoods,Bed & Breakfast,A56000,0
London Borough of Sutton,12/09/2022,20039774,"3,750.00",Better Families Social Work Services Ltd,SUNDRY SUPPLIER - SOCIAL SERVICES,Peoples Services,Client Care/Assistance,A61011,0
London Borough of Sutton,19/01/2023,50309774,"4,650.00",BETTER LIFE SUPPORTED LIVING LIMITED,SOCIAL SERVICES RESIDENTIAL,Peoples Services,One to One Care,A56108,0
London Borough of Sutton,29/12/2022,20039863,"5,362.50",Bevan Brittan LLP,LEGAL & PROFESSIONAL SERVICES,Resources,Professional Fees,A44066,0
London Borough of Sutton,25/01/2023,20041567,"7,500.00",Bevan Brittan LLP,LEGAL & PROFESSIONAL SERVICES,Environment Housing and Neighbourhoods,External Legal Fees,C20008,0
London Borough of Sutton,18/01/2023,50311848,"22,667.00",BIG BEAR BESPOKE EDUCATION,CHILDREN'S SERVICES - SEN SERVICES,Peoples Services,Independent School Fees,A56002,0
London Borough of Sutton,16/01/2023,50308110,547.20,REDACTED - PERSONAL DATA,CHILDREN'S SERVICES - SEN SERVICES,Peoples Services,Miscellaneous Expenses,A49000,0
London Borough of Sutton,10/01/2023,50302419,"5,103.65",Bizzy Bees Day Nursery,GRANTS & EX GRATIA PAYMENTS,Peoples Services,Payment - Nursery Funding,A51056,0
London Borough of Sutton,11/01/2023,20040308,"4,000.00",Bloom Procurement Services Ltd,TEMP STAFF & CONSULTANCY,Resources,Consultancy Services,A56007,0
London Borough of Sutton,31/12/2022,20039606,"1,113.01",BOC Limited,BUILDING MNTCE - SERVICES,Resources,Equipment And Materials Purchase,A40000,0
London Borough of Sutton,20/01/2023,50310241,"2,400.00",Brama Care Ltd,SOCIAL SERVICES-HOME CARE,Peoples Services,Nursing Care - Ext Provider,A56025,0
London Borough of Sutton,20/01/2023,50310266,"3,821.24",Bridge House Care Centre,SOCIAL SERVICES RESIDENTIAL,Peoples Services,Nursing Care - Ext Provider,A56025,0
London Borough of Sutton,20/01/2023,50310266,-836.76,Bridge House Care Centre,SOCIAL SERVICES RESIDENTIAL,Peoples Services,Nursing Care - 3rd party top up payment,A56023,0
London Borough of Sutton,20/01/2023,50310270,-836.76,Bridge House Care Centre,SOCIAL SERVICES RESIDENTIAL,Peoples Services,Nursing Care - 3rd party top up payment,A56023,0
London Borough of Sutton,20/01/2023,50310270,"3,821.24",Bridge House Care Centre,SOCIAL SERVICES RESIDENTIAL,Peoples Services,Nursing Care Short Term,A56026,0
London Borough of Sutton,20/01/2023,50310284,"2,258.45",Bridge House Care Centre,SOCIAL SERVICES RESIDENTIAL,Peoples Services,Nursing Care - Ext Provider,A56025,0
London Borough of Sutton,20/01/2023,50310284,-446.66,Bridge House Care Centre,SOCIAL SERVICES RESIDENTIAL,Peoples Services,Nursing Care - 3rd party top up payment,A56023,0
London Borough of Sutton,20/01/2023,50310304,-750.40,Bridge House Care Centre,SOCIAL SERVICES RESIDENTIAL,Peoples Services,Nursing Care - 3rd party top up payment,A56023,0
London Borough of Sutton,20/01/2023,50310311,"3,848.24",Bridge House Care Centre,SOCIAL SERVICES RESIDENTIAL,Peoples Services,Nursing Care - Ext Provider,A56025,0
London Borough of Sutton,20/01/2023,50310311,-750.40,Bridge House Care Centre,SOCIAL SERVICES RESIDENTIAL,Peoples Services,Nursing Care - 3rd party top up payment,A56023,0
London Borough of Sutton,20/01/2023,50310365,"3,720.16",Bridge House Care Centre,SOCIAL SERVICES RESIDENTIAL,Peoples Services,Nursing Care - Ext Provider,A56025,0
London Borough of Sutton,20/01/2023,50310365,-735.68,Bridge House Care Centre,SOCIAL SERVICES RESIDENTIAL,Peoples Services,Nursing Care - 3rd party top up payment,A56023,0
London Borough of Sutton,20/01/2023,50310380,-750.40,Bridge House Care Centre,SOCIAL SERVICES RESIDENTIAL,Peoples Services,Nursing Care - 3rd party top up payment,A56023,0
London Borough of Sutton,20/01/2023,50310380,"3,734.88",Bridge House Care Centre,SOCIAL SERVICES RESIDENTIAL,Peoples Services,Nursing Care Short Term,A56026,0
London Borough of Sutton,20/01/2023,50310401,"3,665.20",Bridge House Care Centre,SOCIAL SERVICES RESIDENTIAL,Peoples Services,Nursing Care - Ext Provider,A56025,0
London Borough of Sutton,20/01/2023,50310401,-632.64,Bridge House Care Centre,SOCIAL SERVICES RESIDENTIAL,Peoples Services,Nursing Care - 3rd party top up payment,A56023,0
London Borough of Sutton,20/01/2023,50310407,"3,848.24",Bridge House Care Centre,SOCIAL SERVICES RESIDENTIAL,Peoples Services,Nursing Care - Ext Provider,A56025,0
London Borough of Sutton,20/01/2023,50310407,-750.40,Bridge House Care Centre,SOCIAL SERVICES RESIDENTIAL,Peoples Services,Nursing Care - 3rd party top up payment,A56023,0
London Borough of Sutton,20/01/2023,50310430,"3,734.88",Bridge House Care Centre,SOCIAL SERVICES RESIDENTIAL,Peoples Services,Nursing Care - Ext Provider,A56025,0
London Borough of Sutton,20/01/2023,50310433,"3,736.00",Bridge House Care Centre,SOCIAL SERVICES RESIDENTIAL,Peoples Services,Nursing Care - Ext Provider,A56025,0
London Borough of Sutton,20/01/2023,50310433,-750.40,Bridge House Care Centre,SOCIAL SERVICES RESIDENTIAL,Peoples Services,Nursing Care - 3rd party top up payment,A56023,0
London Borough of Sutton,20/01/2023,50310446,-750.40,Bridge House Care Centre,SOCIAL SERVICES RESIDENTIAL,Peoples Services,Nursing Care - 3rd party top up payment,A56023,0
London Borough of Sutton,20/01/2023,50310446,"3,848.24",Bridge House Care Centre,SOCIAL SERVICES RESIDENTIAL,Peoples Services,Nursing Care - Ext Provider,A56025,0
London Borough of Sutton,20/01/2023,50310464,"3,734.88",Bridge House Care Centre,SOCIAL SERVICES RESIDENTIAL,Peoples Services,Nursing Care - Ext Provider,A56025,0
London Borough of Sutton,20/01/2023,50310464,-750.40,Bridge House Care Centre,SOCIAL SERVICES RESIDENTIAL,Peoples Services,Nursing Care - 3rd party top up payment,A56023,0
London Borough of Sutton,20/01/2023,50310490,"3,822.36",Bridge House Care Centre,SOCIAL SERVICES RESIDENTIAL,Peoples Services,Nursing Care - Ext Provider,A56025,0
London Borough of Sutton,20/01/2023,50310490,-836.76,Bridge House Care Centre,SOCIAL SERVICES RESIDENTIAL,Peoples Services,Nursing Care - 3rd party top up payment,A56023,0
London Borough of Sutton,20/01/2023,50310526,"3,579.44",Bridge House Care Centre,SOCIAL SERVICES RESIDENTIAL,Peoples Services,Nursing Care - Ext Provider,A56025,0
London Borough of Sutton,20/01/2023,50310526,-632.64,Bridge House Care Centre,SOCIAL SERVICES RESIDENTIAL,Peoples Services,Nursing Care - 3rd party top up payment,A56023,0
London Borough of Sutton,20/01/2023,50310531,-750.40,Bridge House Care Centre,SOCIAL SERVICES RESIDENTIAL,Peoples Services,Nursing Care - 3rd party top up payment,A56023,0
London Borough of Sutton,20/01/2023,50310531,"3,734.88",Bridge House Care Centre,SOCIAL SERVICES RESIDENTIAL,Peoples Services,Nursing Care Short Term,A56026,0
London Borough of Sutton,20/01/2023,50310535,-750.40,Bridge House Care Centre,SOCIAL SERVICES RESIDENTIAL,Peoples Services,Nursing Care - 3rd party top up payment,A56023,0
London Borough of Sutton,20/01/2023,50310535,"3,848.24",Bridge House Care Centre,SOCIAL SERVICES RESIDENTIAL,Peoples Services,Nursing Care Short Term,A56026,0
London Borough of Sutton,20/01/2023,50310584,"3,848.24",Bridge House Care Centre,SOCIAL SERVICES RESIDENTIAL,Peoples Services,Nursing Care - Ext Provider,A56025,0
London Borough of Sutton,20/01/2023,50310584,-750.40,Bridge House Care Centre,SOCIAL SERVICES RESIDENTIAL,Peoples Services,Nursing Care - 3rd party top up payment,A56023,0
London Borough of Sutton,20/01/2023,50310607,"3,821.24",Bridge House Care Centre,SOCIAL SERVICES RESIDENTIAL,Peoples Services,Nursing Care - Ext Provider,A56025,0
London Borough of Sutton,20/01/2023,50310607,-836.76,Bridge House Care Centre,SOCIAL SERVICES RESIDENTIAL,Peoples Services,Nursing Care - 3rd party top up payment,A56023,0
London Borough of Sutton,10/01/2023,50302399,956.93,REDACTED - PERSONAL DATA,TEMP STAFF & CONSULTANCY,Peoples Services,Payment - Nursery Funding,A51056,0
London Borough of Sutton,01/12/2022,50302804,"3,498.57",Bridging Gaps Limited,CHILDREN'S SERVICES - FOSTERING & ADOPTION SERVICES,Peoples Services,Foster Parents Support,A44110,0
London Borough of Sutton,10/01/2023,50305940,"4,041.07",Bridging the Gap,CHILDREN'S SERVICE - OTHER,Peoples Services,Approved Lodgings,A61000,0
London Borough of Sutton,12/12/2022,50305944,"2,216.06",Bridging the Gap,CHILDREN'S SERVICE - OTHER,Peoples Services,Approved Lodgings,A61000,0
London Borough of Sutton,01/12/2022,50302725,"3,506.41",Brighter Futures Foster Care Ltd,CHILDREN'S SERVICES - FOSTERING & ADOPTION SERVICES,Peoples Services,Foster Parents Support,A44110,0
London Borough of Sutton,01/12/2022,50302763,"3,506.41",Brighter Futures Foster Care Ltd,CHILDREN'S SERVICES - FOSTERING & ADOPTION SERVICES,Peoples Services,Foster Parents Support,A44110,0
London Borough of Sutton,01/12/2022,50302805,"3,164.17",Brighter Futures Foster Care Ltd,CHILDREN'S SERVICES - FOSTERING & ADOPTION SERVICES,Peoples Services,Foster Parents Support,A44110,0
London Borough of Sutton,19/01/2023,50311851,"1,832.35",Brit School,GRANTS & EX GRATIA PAYMENTS,Peoples Services,Independent School Fees,A56002,0
London Borough of Sutton,30/12/2022,20040683,523.40,British Gas,UTILITIES,HRA,Electricity,A21000,0
London Borough of Sutton,06/01/2023,20040705,"1,070.44",British Gas,UTILITIES,Resources,Electricity,A21000,0
London Borough of Sutton,06/01/2023,20040706,"1,125.18",British Gas,UTILITIES,Resources,Electricity,A21000,0
London Borough of Sutton,06/01/2023,20040714,"1,406.65",British Gas,UTILITIES,Resources,Gas,A21003,0
London Borough of Sutton,20/01/2023,50310138,-772.64,British Home & Hospital For Incurables,SOCIAL SERVICES RESIDENTIAL,Peoples Services,Nursing Care - Client Cont ( Net paymt ),A56024,0
London Borough of Sutton,20/01/2023,50310138,"2,591.80",British Home & Hospital For Incurables,SOCIAL SERVICES RESIDENTIAL,Peoples Services,Nursing Care - Ext Provider,A56025,0
London Borough of Sutton,27/11/2022,20039804,"19,298.43",British Telecommunications Plc,UTILITIES,Resources,Telephones,A45020,0
London Borough of Sutton,19/01/2023,50311853,"1,833.29",Brunel SEN Multi Academy Trust,CHILDREN'S SERVICES - SEN SERVICES,Peoples Services,Top-up Funding,A51016,0
London Borough of Sutton,10/01/2023,50302275,"5,097.71",Bumpsa Daisies Nurserys,GRANTS & EX GRATIA PAYMENTS,Peoples Services,Payment - Nursery Funding,A51056,0
London Borough of Sutton,10/01/2023,50302335,"10,644.48",Bumpsa Daisies Nurserys,GRANTS & EX GRATIA PAYMENTS,Peoples Services,Payment - Nursery Funding,A51056,0
London Borough of Sutton,20/01/2023,50310111,"-1,434.45",Bupa Care Services,SOCIAL SERVICES RESIDENTIAL,Peoples Services,Nursing Care - 3rd party top up payment,A56023,0
London Borough of Sutton,20/01/2023,50310111,"6,550.70",Bupa Care Services,SOCIAL SERVICES RESIDENTIAL,Peoples Services,Nursing Care - Ext Provider,A56025,0
London Borough of Sutton,20/01/2023,50310331,-836.76,Bupa Care Services,SOCIAL SERVICES RESIDENTIAL,Peoples Services,Nursing Care - 3rd party top up payment,A56023,0
London Borough of Sutton,20/01/2023,50310331,"7,084.60",Bupa Care Services,SOCIAL SERVICES RESIDENTIAL,Peoples Services,Nursing Care Short Term,A56026,0
London Borough of Sutton,20/01/2023,50310547,"-4,163.96",Bupa Care Services,SOCIAL SERVICES RESIDENTIAL,Peoples Services,Nursing Care - 3rd party top up payment,A56023,0
London Borough of Sutton,20/01/2023,50310547,"7,491.16",Bupa Care Services,SOCIAL SERVICES RESIDENTIAL,Peoples Services,Nursing Care Short Term,A56026,0
London Borough of Sutton,10/01/2023,50302277,"1,092.36",Busy Bees Day Nurseries Ltd,GRANTS & EX GRATIA PAYMENTS,Peoples Services,Payment - Nursery Funding,A51056,0
London Borough of Sutton,10/01/2023,50302337,"16,504.01",Busy Bees Day Nurseries Ltd,GRANTS & EX GRATIA PAYMENTS,Peoples Services,Payment - Nursery Funding,A51056,0
London Borough of Sutton,10/01/2023,50302276,606.87,Busy Bees Day Nurseries Ltd,GRANTS & EX GRATIA PAYMENTS,Peoples Services,Payment - Nursery Funding,A51056,0
London Borough of Sutton,10/01/2023,50302336,"16,118.78",Busy Bees Day Nurseries Ltd,GRANTS & EX GRATIA PAYMENTS,Peoples Services,Payment - Nursery Funding,A51056,0
London Borough of Sutton,20/01/2023,50310130,"8,118.48",Butterfly's Care Homes Ltd,SOCIAL SERVICES RESIDENTIAL,Peoples Services,Residential Care - Ext Provider,A56114,0
London Borough of Sutton,01/01/2023,50302694,"2,975.69",By The Bridge Ltd,CHILDREN'S SERVICES - FOSTERING & ADOPTION SERVICES,Peoples Services,Foster Parents Support,A44110,0
London Borough of Sutton,01/01/2023,50302695,"2,975.69",By The Bridge Ltd,CHILDREN'S SERVICES - FOSTERING & ADOPTION SERVICES,Peoples Services,Foster Parents Support,A44110,0
London Borough of Sutton,01/01/2023,50302735,"4,667.05",By The Bridge Ltd,CHILDREN'S SERVICES - FOSTERING & ADOPTION SERVICES,Peoples Services,Foster Parents Support,A44110,0
London Borough of Sutton,21/12/2022,50302744,"24,374.68",Calcot Services for Children Ltd,CHILDREN'S SERVICES - FOSTERING & ADOPTION SERVICES,Peoples Services,Residential Care-Children,A56115,0
London Borough of Sutton,24/01/2023,20041418,"11,735.00",Caloo Limited,SUNDRY SUPPLIER - FINANCE,Resources,Other Supplies & Services,A44291,0
London Borough of Sutton,22/11/2022,50302690,"32,284.29",Cambian Childcare Ltd,CHILDREN'S SERVICES - FOSTERING & ADOPTION SERVICES,Peoples Services,Residential Care-Children,A56115,0
London Borough of Sutton,22/11/2022,50302745,"20,105.67",Cambian Childcare Ltd,CHILDREN'S SERVICES - FOSTERING & ADOPTION SERVICES,Peoples Services,Residential Care-Children,A56115,0
London Borough of Sutton,05/01/2023,20040031,"1,447.10",Canon (UK) Ltd,REPROGRAPHICS & PHOTOGRAPHY,Resources,IT Hardware Maintenance,A45008,0
London Borough of Sutton,20/01/2023,50310118,-965.84,Canterbury Oast Trust,SOCIAL SERVICES RESIDENTIAL,Peoples Services,Residential Care - Client Cont ( Net Paymt ),A56113,0
London Borough of Sutton,20/01/2023,50310118,204.72,Canterbury Oast Trust,SOCIAL SERVICES RESIDENTIAL,Peoples Services,One to One Care,A56108,0
London Borough of Sutton,20/01/2023,50310118,"4,060.72",Canterbury Oast Trust,SOCIAL SERVICES RESIDENTIAL,Peoples Services,Residential Care - Ext Provider,A56114,0
London Borough of Sutton,31/12/2022,50305950,"5,690.67",Capstone Foster Care (South East) Ltd,CHILDREN'S SERVICES - FOSTERING & ADOPTION SERVICES,Peoples Services,Foster Parents Support,A44110,0
London Borough of Sutton,31/12/2022,50305958,"5,695.01",Capstone Foster Care (South East) Ltd,CHILDREN'S SERVICES - FOSTERING & ADOPTION SERVICES,Peoples Services,Foster Parents Support,A44110,0
London Borough of Sutton,22/11/2022,20039614,734.81,Care Advocates Ltd,MANAGEMENT & TRAINING SERVICES,Peoples Services,Approved Lodgings,A61000,0
London Borough of Sutton,03/01/2023,50299473,"-3,635.06",Care Advocates Ltd,MANAGEMENT & TRAINING SERVICES,Peoples Services,Supported Living,A56088,0
London Borough of Sutton,03/01/2023,50299473,"6,547.20",Care Advocates Ltd,MANAGEMENT & TRAINING SERVICES,Peoples Services,Supported Living,A56088,0
London Borough of Sutton,03/01/2023,50299473,"2,573.31",Care Advocates Ltd,MANAGEMENT & TRAINING SERVICES,Peoples Services,Supported Living,A56088,0
London Borough of Sutton,03/01/2023,50299476,"2,573.31",Care Advocates Ltd,MANAGEMENT & TRAINING SERVICES,Peoples Services,Supported Living,A56088,0
London Borough of Sutton,03/01/2023,50299476,"1,800.70",Care Advocates Ltd,MANAGEMENT & TRAINING SERVICES,Peoples Services,Supported Living,A56088,0
London Borough of Sutton,03/01/2023,50299476,"2,465.83",Care Advocates Ltd,MANAGEMENT & TRAINING SERVICES,Peoples Services,Supported Living,A56088,0
London Borough of Sutton,03/01/2023,50299477,"3,909.72",Care Advocates Ltd,MANAGEMENT & TRAINING SERVICES,Peoples Services,Supported Living,A56088,0
London Borough of Sutton,03/01/2023,50299477,"2,976.00",Care Advocates Ltd,MANAGEMENT & TRAINING SERVICES,Peoples Services,Supported Living,A56088,0
London Borough of Sutton,03/01/2023,50299477,"2,573.31",Care Advocates Ltd,MANAGEMENT & TRAINING SERVICES,Peoples Services,Supported Living,A56088,0
London Borough of Sutton,03/01/2023,50302755,"5,535.72",Care Advocates Ltd,MANAGEMENT & TRAINING SERVICES,Peoples Services,Accommodation - Supported Living,A62001,0
London Borough of Sutton,03/01/2023,50302755,276.78,Care Advocates Ltd,MANAGEMENT & TRAINING SERVICES,Peoples Services,Accommodation - Supported Living,A62001,0
London Borough of Sutton,23/11/2022,50304962,"30,785.82",Care Advocates Ltd,MANAGEMENT & TRAINING SERVICES,Peoples Services,Supported Living,A56088,0
London Borough of Sutton,23/11/2022,50304962,"-48,342.32",Care Advocates Ltd,MANAGEMENT & TRAINING SERVICES,Peoples Services,Supported Living,A56088,0
London Borough of Sutton,23/11/2022,50304962,"20,254.44",Care Advocates Ltd,MANAGEMENT & TRAINING SERVICES,Peoples Services,Supported Living,A56088,0
London Borough of Sutton,23/11/2022,50304967,"14,054.40",Care Advocates Ltd,MANAGEMENT & TRAINING SERVICES,Peoples Services,Supported Living,A56088,0
London Borough of Sutton,23/11/2022,50304967,"-32,357.89",Care Advocates Ltd,MANAGEMENT & TRAINING SERVICES,Peoples Services,Supported Living,A56088,0
London Borough of Sutton,23/11/2022,50304967,"20,254.44",Care Advocates Ltd,MANAGEMENT & TRAINING SERVICES,Peoples Services,Supported Living,A56088,0
London Borough of Sutton,23/11/2022,50304969,"17,400.68",Care Advocates Ltd,MANAGEMENT & TRAINING SERVICES,Peoples Services,Supported Living,A56088,0
London Borough of Sutton,23/11/2022,50304969,"-36,090.73",Care Advocates Ltd,MANAGEMENT & TRAINING SERVICES,Peoples Services,Supported Living,A56088,0
London Borough of Sutton,23/11/2022,50304969,"20,254.44",Care Advocates Ltd,MANAGEMENT & TRAINING SERVICES,Peoples Services,Supported Living,A56088,0
London Borough of Sutton,20/01/2023,50310408,-714.29,Care Concern Group,SOCIAL SERVICES RESIDENTIAL,Peoples Services,Nursing Care - 3rd party top up payment,A56023,0
London Borough of Sutton,20/01/2023,50310408,-239.07,Care Concern Group,SOCIAL SERVICES RESIDENTIAL,Peoples Services,Nursing Care - 3rd party top up payment,A56023,0
London Borough of Sutton,20/01/2023,50310408,"2,560.51",Care Concern Group,SOCIAL SERVICES RESIDENTIAL,Peoples Services,Nursing Care - Ext Provider,A56025,0
London Borough of Sutton,20/01/2023,50310499,"3,320.32",Care Concern Group,SOCIAL SERVICES RESIDENTIAL,Peoples Services,Residential Care - Ext Provider,A56114,0
London Borough of Sutton,19/01/2023,50309788,"2,070.36",Care Connexions UK Limited,SOCIAL SERVICES RESIDENTIAL,Peoples Services,One to One Care,A56108,0
London Borough of Sutton,20/01/2023,50310248,"3,768.36",Care Direct Uk Ltd ,SOCIAL SERVICES RESIDENTIAL,Peoples Services,Residential Care - Ext Provider,A56114,0
London Borough of Sutton,18/12/2022,50300885,773.54,Care More Ltd,SOCIAL SERVICES RESIDENTIAL,Peoples Services,Home Care Services,A56019,0
London Borough of Sutton,18/12/2022,50300885,45.50,Care More Ltd,SOCIAL SERVICES RESIDENTIAL,Peoples Services,Home Care Services,A56019,0
London Borough of Sutton,18/12/2022,50300891,773.54,Care More Ltd,SOCIAL SERVICES RESIDENTIAL,Peoples Services,Home Care Services,A56019,0
London Borough of Sutton,18/12/2022,50300893,728.00,Care More Ltd,SOCIAL SERVICES RESIDENTIAL,Peoples Services,Home Care Services,A56019,0
London Borough of Sutton,18/12/2022,50300901,33.00,Care More Ltd,SOCIAL SERVICES RESIDENTIAL,Peoples Services,Home Care Services,A56019,0
London Borough of Sutton,18/12/2022,50300901,917.07,Care More Ltd,SOCIAL SERVICES RESIDENTIAL,Peoples Services,Home Care Services,A56019,0
London Borough of Sutton,18/12/2022,50300910,826.00,Care More Ltd,SOCIAL SERVICES RESIDENTIAL,Peoples Services,Home Care Services,A56019,0
London Borough of Sutton,18/12/2022,50300919,773.54,Care More Ltd,SOCIAL SERVICES RESIDENTIAL,Peoples Services,Home Care Services,A56019,0
London Borough of Sutton,18/12/2022,50301025,917.07,Care More Ltd,SOCIAL SERVICES RESIDENTIAL,Peoples Services,Home Care Services,A56019,0
London Borough of Sutton,18/12/2022,50301031,591.54,Care More Ltd,SOCIAL SERVICES RESIDENTIAL,Peoples Services,Home Care Services,A56019,0
London Borough of Sutton,18/12/2022,50301032,773.54,Care More Ltd,SOCIAL SERVICES RESIDENTIAL,Peoples Services,Home Care Services,A56019,0
London Borough of Sutton,18/12/2022,50301039,409.54,Care More Ltd,SOCIAL SERVICES RESIDENTIAL,Peoples Services,Home Care Services,A56019,0
London Borough of Sutton,18/12/2022,50301039,182.00,Care More Ltd,SOCIAL SERVICES RESIDENTIAL,Peoples Services,Home Care Services,A56019,0
London Borough of Sutton,09/10/2022,50303482,728.00,Care More Ltd,SOCIAL SERVICES RESIDENTIAL,Peoples Services,Home Care Services,A56019,0
London Borough of Sutton,25/12/2022,50304661,773.54,Care More Ltd,SOCIAL SERVICES RESIDENTIAL,Peoples Services,Home Care Services,A56019,0
London Borough of Sutton,01/01/2023,50304662,773.54,Care More Ltd,SOCIAL SERVICES RESIDENTIAL,Peoples Services,Home Care Services,A56019,0
London Borough of Sutton,01/01/2023,50304663,787.54,Care More Ltd,SOCIAL SERVICES RESIDENTIAL,Peoples Services,Home Care Services,A56019,0
London Borough of Sutton,25/12/2022,50304674,500.57,Care More Ltd,SOCIAL SERVICES RESIDENTIAL,Peoples Services,Home Care Services,A56019,0
London Borough of Sutton,25/12/2022,50304676,773.54,Care More Ltd,SOCIAL SERVICES RESIDENTIAL,Peoples Services,Home Care Services,A56019,0
London Borough of Sutton,01/01/2023,50304677,773.54,Care More Ltd,SOCIAL SERVICES RESIDENTIAL,Peoples Services,Home Care Services,A56019,0
London Borough of Sutton,25/12/2022,50304691,728.00,Care More Ltd,SOCIAL SERVICES RESIDENTIAL,Peoples Services,Home Care Services,A56019,0
London Borough of Sutton,01/01/2023,50304692,728.00,Care More Ltd,SOCIAL SERVICES RESIDENTIAL,Peoples Services,Home Care Services,A56019,0
London Borough of Sutton,25/12/2022,50304703,409.57,Care More Ltd,SOCIAL SERVICES RESIDENTIAL,Peoples Services,Home Care Services,A56019,0
London Borough of Sutton,25/12/2022,50304703,181.97,Care More Ltd,SOCIAL SERVICES RESIDENTIAL,Peoples Services,Home Care Services,A56019,0
London Borough of Sutton,01/01/2023,50304704,409.54,Care More Ltd,SOCIAL SERVICES RESIDENTIAL,Peoples Services,Home Care Services,A56019,0
London Borough of Sutton,01/01/2023,50304704,182.00,Care More Ltd,SOCIAL SERVICES RESIDENTIAL,Peoples Services,Home Care Services,A56019,0
London Borough of Sutton,25/12/2022,50304717,773.54,Care More Ltd,SOCIAL SERVICES RESIDENTIAL,Peoples Services,Home Care Services,A56019,0
London Borough of Sutton,25/12/2022,50304717,45.50,Care More Ltd,SOCIAL SERVICES RESIDENTIAL,Peoples Services,Home Care Services,A56019,0
London Borough of Sutton,01/01/2023,50304718,773.54,Care More Ltd,SOCIAL SERVICES RESIDENTIAL,Peoples Services,Home Care Services,A56019,0
London Borough of Sutton,01/01/2023,50304718,45.50,Care More Ltd,SOCIAL SERVICES RESIDENTIAL,Peoples Services,Home Care Services,A56019,0
London Borough of Sutton,25/12/2022,50304722,773.54,Care More Ltd,SOCIAL SERVICES RESIDENTIAL,Peoples Services,Home Care Services,A56019,0
London Borough of Sutton,01/01/2023,50304723,773.54,Care More Ltd,SOCIAL SERVICES RESIDENTIAL,Peoples Services,Home Care Services,A56019,0
London Borough of Sutton,01/01/2023,50304736,20.00,Care More Ltd,SOCIAL SERVICES RESIDENTIAL,Peoples Services,Home Care Services,A56019,0
London Borough of Sutton,01/01/2023,50304736,917.07,Care More Ltd,SOCIAL SERVICES RESIDENTIAL,Peoples Services,Home Care Services,A56019,0
London Borough of Sutton,25/12/2022,50304749,826.00,Care More Ltd,SOCIAL SERVICES RESIDENTIAL,Peoples Services,Home Care Services,A56019,0
London Borough of Sutton,01/01/2023,50304750,538.00,Care More Ltd,SOCIAL SERVICES RESIDENTIAL,Peoples Services,Home Care Services,A56019,0
London Borough of Sutton,27/11/2022,50306161,922.57,Care More Ltd,SOCIAL SERVICES RESIDENTIAL,Peoples Services,Home Care Services,A56019,0
London Borough of Sutton,07/11/2022,50306162,715.00,Care More Ltd,SOCIAL SERVICES RESIDENTIAL,Peoples Services,Home Care Services,A56019,0
London Borough of Sutton,08/01/2023,50306172,773.54,Care More Ltd,SOCIAL SERVICES RESIDENTIAL,Peoples Services,Home Care Services,A56019,0
London Borough of Sutton,08/01/2023,50306174,787.54,Care More Ltd,SOCIAL SERVICES RESIDENTIAL,Peoples Services,Home Care Services,A56019,0
London Borough of Sutton,08/01/2023,50306175,728.00,Care More Ltd,SOCIAL SERVICES RESIDENTIAL,Peoples Services,Home Care Services,A56019,0
London Borough of Sutton,08/01/2023,50306177,20.00,Care More Ltd,SOCIAL SERVICES RESIDENTIAL,Peoples Services,Home Care Services,A56019,0
London Borough of Sutton,08/01/2023,50306177,927.07,Care More Ltd,SOCIAL SERVICES RESIDENTIAL,Peoples Services,Home Care Services,A56019,0
London Borough of Sutton,08/01/2023,50306186,773.54,Care More Ltd,SOCIAL SERVICES RESIDENTIAL,Peoples Services,Home Care Services,A56019,0
London Borough of Sutton,08/01/2023,50306186,45.50,Care More Ltd,SOCIAL SERVICES RESIDENTIAL,Peoples Services,Home Care Services,A56019,0
London Borough of Sutton,08/01/2023,50306192,773.54,Care More Ltd,SOCIAL SERVICES RESIDENTIAL,Peoples Services,Home Care Services,A56019,0
London Borough of Sutton,08/01/2023,50306284,917.07,Care More Ltd,SOCIAL SERVICES RESIDENTIAL,Peoples Services,Home Care Services,A56019,0
London Borough of Sutton,08/01/2023,50306327,546.07,Care More Ltd,SOCIAL SERVICES RESIDENTIAL,Peoples Services,Home Care Services,A56019,0
London Borough of Sutton,08/01/2023,50306328,773.54,Care More Ltd,SOCIAL SERVICES RESIDENTIAL,Peoples Services,Home Care Services,A56019,0
London Borough of Sutton,08/01/2023,50306330,409.54,Care More Ltd,SOCIAL SERVICES RESIDENTIAL,Peoples Services,Home Care Services,A56019,0
London Borough of Sutton,08/01/2023,50306330,182.00,Care More Ltd,SOCIAL SERVICES RESIDENTIAL,Peoples Services,Home Care Services,A56019,0
London Borough of Sutton,25/12/2022,50306369,917.07,Care More Ltd,SOCIAL SERVICES RESIDENTIAL,Peoples Services,Home Care Services,A56019,0
London Borough of Sutton,01/01/2023,50306370,917.07,Care More Ltd,SOCIAL SERVICES RESIDENTIAL,Peoples Services,Home Care Services,A56019,0
London Borough of Sutton,25/12/2022,50306372,20.00,Care More Ltd,SOCIAL SERVICES RESIDENTIAL,Peoples Services,Home Care Services,A56019,0
London Borough of Sutton,25/12/2022,50306372,937.07,Care More Ltd,SOCIAL SERVICES RESIDENTIAL,Peoples Services,Home Care Services,A56019,0
London Borough of Sutton,11/12/2022,50306385,566.77,Care More Ltd,SOCIAL SERVICES RESIDENTIAL,Peoples Services,Home Care Services,A56019,0
London Borough of Sutton,11/12/2022,50306386,917.07,Care More Ltd,SOCIAL SERVICES RESIDENTIAL,Peoples Services,Home Care Services,A56019,0
London Borough of Sutton,15/01/2023,50312659,773.54,Care More Ltd,SOCIAL SERVICES RESIDENTIAL,Peoples Services,Home Care Services,A56019,0
London Borough of Sutton,22/01/2023,50312660,773.54,Care More Ltd,SOCIAL SERVICES RESIDENTIAL,Peoples Services,Home Care Services,A56019,0
London Borough of Sutton,15/01/2023,50312661,787.54,Care More Ltd,SOCIAL SERVICES RESIDENTIAL,Peoples Services,Home Care Services,A56019,0
London Borough of Sutton,22/01/2023,50312662,787.54,Care More Ltd,SOCIAL SERVICES RESIDENTIAL,Peoples Services,Home Care Services,A56019,0
London Borough of Sutton,15/01/2023,50312663,728.00,Care More Ltd,SOCIAL SERVICES RESIDENTIAL,Peoples Services,Home Care Services,A56019,0
London Borough of Sutton,22/01/2023,50312664,728.00,Care More Ltd,SOCIAL SERVICES RESIDENTIAL,Peoples Services,Home Care Services,A56019,0
London Borough of Sutton,15/01/2023,50312675,33.00,Care More Ltd,SOCIAL SERVICES RESIDENTIAL,Peoples Services,Home Care Services,A56019,0
London Borough of Sutton,15/01/2023,50312675,917.07,Care More Ltd,SOCIAL SERVICES RESIDENTIAL,Peoples Services,Home Care Services,A56019,0
London Borough of Sutton,22/01/2023,50312676,20.00,Care More Ltd,SOCIAL SERVICES RESIDENTIAL,Peoples Services,Home Care Services,A56019,0
London Borough of Sutton,22/01/2023,50312676,917.07,Care More Ltd,SOCIAL SERVICES RESIDENTIAL,Peoples Services,Home Care Services,A56019,0
London Borough of Sutton,15/01/2023,50312686,45.50,Care More Ltd,SOCIAL SERVICES RESIDENTIAL,Peoples Services,Home Care Services,A56019,0
London Borough of Sutton,15/01/2023,50312686,773.54,Care More Ltd,SOCIAL SERVICES RESIDENTIAL,Peoples Services,Home Care Services,A56019,0
London Borough of Sutton,22/01/2023,50312687,773.54,Care More Ltd,SOCIAL SERVICES RESIDENTIAL,Peoples Services,Home Care Services,A56019,0
London Borough of Sutton,22/01/2023,50312687,45.50,Care More Ltd,SOCIAL SERVICES RESIDENTIAL,Peoples Services,Home Care Services,A56019,0
London Borough of Sutton,15/01/2023,50312710,826.00,Care More Ltd,SOCIAL SERVICES RESIDENTIAL,Peoples Services,Home Care Services,A56019,0
London Borough of Sutton,22/01/2023,50312711,826.00,Care More Ltd,SOCIAL SERVICES RESIDENTIAL,Peoples Services,Home Care Services,A56019,0
London Borough of Sutton,15/01/2023,50312720,773.54,Care More Ltd,SOCIAL SERVICES RESIDENTIAL,Peoples Services,Home Care Services,A56019,0
London Borough of Sutton,22/01/2023,50312721,773.54,Care More Ltd,SOCIAL SERVICES RESIDENTIAL,Peoples Services,Home Care Services,A56019,0
London Borough of Sutton,15/01/2023,50312733,546.07,Care More Ltd,SOCIAL SERVICES RESIDENTIAL,Peoples Services,Home Care Services,A56019,0
London Borough of Sutton,22/01/2023,50312734,546.07,Care More Ltd,SOCIAL SERVICES RESIDENTIAL,Peoples Services,Home Care Services,A56019,0
London Borough of Sutton,15/01/2023,50312737,773.54,Care More Ltd,SOCIAL SERVICES RESIDENTIAL,Peoples Services,Home Care Services,A56019,0
London Borough of Sutton,22/01/2023,50312738,773.54,Care More Ltd,SOCIAL SERVICES RESIDENTIAL,Peoples Services,Home Care Services,A56019,0
London Borough of Sutton,20/01/2023,50310240,-438.80,Care UK Homecare Ltd,SOCIAL SERVICES RESIDENTIAL,Peoples Services,Residential Care - Client Cont ( Net Paymt ),A56113,0
London Borough of Sutton,20/01/2023,50310240,"4,772.96",Care UK Homecare Ltd,SOCIAL SERVICES RESIDENTIAL,Peoples Services,Residential Care - Ext Provider,A56114,0
London Borough of Sutton,20/01/2023,50310333,"3,960.00",Care UK Homecare Ltd,SOCIAL SERVICES RESIDENTIAL,Peoples Services,Nursing Care - Ext Provider,A56025,0
London Borough of Sutton,20/01/2023,50310333,-836.76,Care UK Homecare Ltd,SOCIAL SERVICES RESIDENTIAL,Peoples Services,Nursing Care - 3rd party top up payment,A56023,0
London Borough of Sutton,20/01/2023,50310493,"4,200.00",Care UK Homecare Ltd,SOCIAL SERVICES RESIDENTIAL,Peoples Services,Nursing Care Short Term,A56026,0
London Borough of Sutton,20/01/2023,50310528,-662.24,Care UK Homecare Ltd,SOCIAL SERVICES RESIDENTIAL,Peoples Services,Nursing Care - 3rd party top up payment,A56023,0
London Borough of Sutton,20/01/2023,50310528,"3,696.24",Care UK Homecare Ltd,SOCIAL SERVICES RESIDENTIAL,Peoples Services,Nursing Care - Ext Provider,A56025,0
London Borough of Sutton,20/01/2023,50310548,-836.76,Care UK Homecare Ltd,SOCIAL SERVICES RESIDENTIAL,Peoples Services,Nursing Care - 3rd party top up payment,A56023,0
London Borough of Sutton,20/01/2023,50310548,"4,200.00",Care UK Homecare Ltd,SOCIAL SERVICES RESIDENTIAL,Peoples Services,Nursing Care Short Term,A56026,0
London Borough of Sutton,03/01/2023,50299423,410.56,Care Unlimited Domcare Ltd,SOCIAL SERVICES DAY CARE,Peoples Services,Supported Living,A56088,0
London Borough of Sutton,03/01/2023,50299423,"1,056.88",Care Unlimited Domcare Ltd,SOCIAL SERVICES DAY CARE,Peoples Services,Supported Living,A56088,0
London Borough of Sutton,03/01/2023,50299423,"3,595.20",Care Unlimited Domcare Ltd,SOCIAL SERVICES DAY CARE,Peoples Services,Supported Living,A56088,0
London Borough of Sutton,03/01/2023,50299424,410.56,Care Unlimited Domcare Ltd,SOCIAL SERVICES DAY CARE,Peoples Services,Supported Living,A56088,0
London Borough of Sutton,03/01/2023,50299424,"1,056.88",Care Unlimited Domcare Ltd,SOCIAL SERVICES DAY CARE,Peoples Services,Supported Living,A56088,0
London Borough of Sutton,03/01/2023,50299424,"3,595.20",Care Unlimited Domcare Ltd,SOCIAL SERVICES DAY CARE,Peoples Services,Supported Living,A56088,0
London Borough of Sutton,03/01/2023,50299425,410.56,Care Unlimited Domcare Ltd,SOCIAL SERVICES DAY CARE,Peoples Services,Supported Living,A56088,0
London Borough of Sutton,03/01/2023,50299425,"1,056.88",Care Unlimited Domcare Ltd,SOCIAL SERVICES DAY CARE,Peoples Services,Supported Living,A56088,0
London Borough of Sutton,03/01/2023,50299425,"3,595.20",Care Unlimited Domcare Ltd,SOCIAL SERVICES DAY CARE,Peoples Services,Supported Living,A56088,0
London Borough of Sutton,03/01/2023,50299426,410.56,Care Unlimited Domcare Ltd,SOCIAL SERVICES DAY CARE,Peoples Services,Supported Living,A56088,0
London Borough of Sutton,03/01/2023,50299426,"1,056.88",Care Unlimited Domcare Ltd,SOCIAL SERVICES DAY CARE,Peoples Services,Supported Living,A56088,0
London Borough of Sutton,03/01/2023,50299426,"3,595.20",Care Unlimited Domcare Ltd,SOCIAL SERVICES DAY CARE,Peoples Services,Supported Living,A56088,0
London Borough of Sutton,08/01/2023,50310655,"5,931.52",Care Unlimited Domcare Ltd,SOCIAL SERVICES DAY CARE,Peoples Services,Supported Living,A56088,0
London Borough of Sutton,01/01/2023,50300760,"4,087.20",Care4Care Services Ltd,SOCIAL SERVICES DAY CARE,Peoples Services,Home Care Services,A56019,0
London Borough of Sutton,01/01/2023,50300761,"4,087.20",Care4Care Services Ltd,SOCIAL SERVICES DAY CARE,Peoples Services,Home Care Services,A56019,0
London Borough of Sutton,01/01/2023,50300762,"1,920.20",Care4Care Services Ltd,SOCIAL SERVICES DAY CARE,Peoples Services,Home Care Services,A56019,0
London Borough of Sutton,01/01/2023,50300771,"1,065.60",Care4Care Services Ltd,SOCIAL SERVICES DAY CARE,Peoples Services,Home Care Services,A56019,0
London Borough of Sutton,01/01/2023,50300772,920.00,Care4Care Services Ltd,SOCIAL SERVICES DAY CARE,Peoples Services,Home Care Services,A56019,0
London Borough of Sutton,01/01/2023,50300794,892.83,Care4Care Services Ltd,SOCIAL SERVICES DAY CARE,Peoples Services,Home Care Services,A56019,0
London Borough of Sutton,01/01/2023,50300795,"3,644.20",Care4Care Services Ltd,SOCIAL SERVICES DAY CARE,Peoples Services,Home Care Services,A56019,0
London Borough of Sutton,01/01/2023,50300795,300.60,Care4Care Services Ltd,SOCIAL SERVICES DAY CARE,Peoples Services,Home Care Services,A56019,0
London Borough of Sutton,01/01/2023,50300796,"1,475.00",Care4Care Services Ltd,SOCIAL SERVICES DAY CARE,Peoples Services,Home Care Services,A56019,0
London Borough of Sutton,01/01/2023,50300797,"1,422.75",Care4Care Services Ltd,SOCIAL SERVICES DAY CARE,Peoples Services,Home Care Services,A56019,0
London Borough of Sutton,29/12/2022,20039630,580.00,Caremark (Sutton),SOCIAL SERVICES DAY CARE,Peoples Services,Home Care Services,A56019,0
London Borough of Sutton,11/12/2022,50299287,929.70,Caremark (Sutton),SOCIAL SERVICES DAY CARE,Peoples Services,Home Care Services,A56019,0
London Borough of Sutton,11/12/2022,50299288,685.00,Caremark (Sutton),SOCIAL SERVICES DAY CARE,Peoples Services,Home Care Services,A56019,0
London Borough of Sutton,25/12/2022,50301315,530.66,Caremark (Sutton),SOCIAL SERVICES DAY CARE,Peoples Services,Home Care Services,A56019,0
London Borough of Sutton,25/12/2022,50301318,540.75,Caremark (Sutton),SOCIAL SERVICES DAY CARE,Peoples Services,Home Care Services,A56019,0
London Borough of Sutton,25/12/2022,50301319,803.37,Caremark (Sutton),SOCIAL SERVICES DAY CARE,Peoples Services,Home Care Services,A56019,0
London Borough of Sutton,25/12/2022,50301319,32.25,Caremark (Sutton),SOCIAL SERVICES DAY CARE,Peoples Services,Home Care Services,A56019,0
London Borough of Sutton,25/12/2022,50301321,"1,875.50",Caremark (Sutton),SOCIAL SERVICES DAY CARE,Peoples Services,Home Care Services,A56019,0
London Borough of Sutton,25/12/2022,50301325,500.41,Caremark (Sutton),SOCIAL SERVICES DAY CARE,Peoples Services,Home Care Services,A56019,0
London Borough of Sutton,25/12/2022,50301326,580.36,Caremark (Sutton),SOCIAL SERVICES DAY CARE,Peoples Services,Home Care Services,A56019,0
London Borough of Sutton,25/12/2022,50301331,846.38,Caremark (Sutton),SOCIAL SERVICES DAY CARE,Peoples Services,Home Care Services,A56019,0
London Borough of Sutton,25/12/2022,50301332,938.37,Caremark (Sutton),SOCIAL SERVICES DAY CARE,Peoples Services,Home Care Services,A56019,0
London Borough of Sutton,18/12/2022,50301335,540.75,Caremark (Sutton),SOCIAL SERVICES DAY CARE,Peoples Services,Home Care Services,A56019,0
London Borough of Sutton,25/12/2022,50301339,"1,032.61",Caremark (Sutton),SOCIAL SERVICES DAY CARE,Peoples Services,Home Care Services,A56019,0
London Borough of Sutton,25/12/2022,50301339,196.85,Caremark (Sutton),SOCIAL SERVICES DAY CARE,Peoples Services,Home Care Services,A56019,0
London Borough of Sutton,18/12/2022,50301354,803.37,Caremark (Sutton),SOCIAL SERVICES DAY CARE,Peoples Services,Home Care Services,A56019,0
London Borough of Sutton,18/12/2022,50301354,32.25,Caremark (Sutton),SOCIAL SERVICES DAY CARE,Peoples Services,Home Care Services,A56019,0
London Borough of Sutton,18/12/2022,50301362,"1,897.00",Caremark (Sutton),SOCIAL SERVICES DAY CARE,Peoples Services,Home Care Services,A56019,0
London Borough of Sutton,18/12/2022,50301366,500.41,Caremark (Sutton),SOCIAL SERVICES DAY CARE,Peoples Services,Home Care Services,A56019,0
London Borough of Sutton,18/12/2022,50301372,580.36,Caremark (Sutton),SOCIAL SERVICES DAY CARE,Peoples Services,Home Care Services,A56019,0
London Borough of Sutton,18/12/2022,50301400,846.38,Caremark (Sutton),SOCIAL SERVICES DAY CARE,Peoples Services,Home Care Services,A56019,0
London Borough of Sutton,18/12/2022,50301401,938.37,Caremark (Sutton),SOCIAL SERVICES DAY CARE,Peoples Services,Home Care Services,A56019,0
London Borough of Sutton,18/12/2022,50301419,530.66,Caremark (Sutton),SOCIAL SERVICES DAY CARE,Peoples Services,Home Care Services,A56019,0
London Borough of Sutton,18/12/2022,50301435,938.66,Caremark (Sutton),SOCIAL SERVICES DAY CARE,Peoples Services,Home Care Services,A56019,0
London Borough of Sutton,18/12/2022,50301435,178.94,Caremark (Sutton),SOCIAL SERVICES DAY CARE,Peoples Services,Home Care Services,A56019,0
London Borough of Sutton,25/12/2022,50304789,929.70,Caremark (Sutton),SOCIAL SERVICES DAY CARE,Peoples Services,Home Care Services,A56019,0
London Borough of Sutton,18/12/2022,50304790,929.70,Caremark (Sutton),SOCIAL SERVICES DAY CARE,Peoples Services,Home Care Services,A56019,0
London Borough of Sutton,25/12/2022,50304791,685.00,Caremark (Sutton),SOCIAL SERVICES DAY CARE,Peoples Services,Home Care Services,A56019,0
London Borough of Sutton,18/12/2022,50304792,996.50,Caremark (Sutton),SOCIAL SERVICES DAY CARE,Peoples Services,Home Care Services,A56019,0
London Borough of Sutton,08/01/2023,50309509,948.78,Caremark (Sutton),SOCIAL SERVICES DAY CARE,Peoples Services,Home Care Services,A56019,0
London Borough of Sutton,08/01/2023,50309543,999.83,Caremark (Sutton),SOCIAL SERVICES DAY CARE,Peoples Services,Home Care Services,A56019,0
London Borough of Sutton,08/01/2023,50309543,166.05,Caremark (Sutton),SOCIAL SERVICES DAY CARE,Peoples Services,Home Care Services,A56019,0
London Borough of Sutton,01/01/2023,50311406,959.17,Caremark (Sutton),SOCIAL SERVICES DAY CARE,Peoples Services,Home Care Services,A56019,0
London Borough of Sutton,08/01/2023,50311408,813.78,Caremark (Sutton),SOCIAL SERVICES DAY CARE,Peoples Services,Home Care Services,A56019,0
London Borough of Sutton,08/01/2023,50311408,32.25,Caremark (Sutton),SOCIAL SERVICES DAY CARE,Peoples Services,Home Care Services,A56019,0
London Borough of Sutton,01/01/2023,50311409,827.18,Caremark (Sutton),SOCIAL SERVICES DAY CARE,Peoples Services,Home Care Services,A56019,0
London Borough of Sutton,01/01/2023,50311409,32.25,Caremark (Sutton),SOCIAL SERVICES DAY CARE,Peoples Services,Home Care Services,A56019,0
London Borough of Sutton,08/01/2023,50311414,506.61,Caremark (Sutton),SOCIAL SERVICES DAY CARE,Peoples Services,Home Care Services,A56019,0
London Borough of Sutton,01/01/2023,50311415,512.82,Caremark (Sutton),SOCIAL SERVICES DAY CARE,Peoples Services,Home Care Services,A56019,0
London Borough of Sutton,08/01/2023,50311419,943.90,Caremark (Sutton),SOCIAL SERVICES DAY CARE,Peoples Services,Home Care Services,A56019,0
London Borough of Sutton,01/01/2023,50311420,955.09,Caremark (Sutton),SOCIAL SERVICES DAY CARE,Peoples Services,Home Care Services,A56019,0
London Borough of Sutton,08/01/2023,50311421,610.00,Caremark (Sutton),SOCIAL SERVICES DAY CARE,Peoples Services,Home Care Services,A56019,0
London Borough of Sutton,01/01/2023,50311422,616.00,Caremark (Sutton),SOCIAL SERVICES DAY CARE,Peoples Services,Home Care Services,A56019,0
London Borough of Sutton,08/01/2023,50311426,856.78,Caremark (Sutton),SOCIAL SERVICES DAY CARE,Peoples Services,Home Care Services,A56019,0
London Borough of Sutton,01/01/2023,50312517,871.18,Caremark (Sutton),SOCIAL SERVICES DAY CARE,Peoples Services,Home Care Services,A56019,0
London Borough of Sutton,01/01/2023,50312518,599.17,Caremark (Sutton),SOCIAL SERVICES DAY CARE,Peoples Services,Home Care Services,A56019,0
London Borough of Sutton,08/01/2023,50312519,592.76,Caremark (Sutton),SOCIAL SERVICES DAY CARE,Peoples Services,Home Care Services,A56019,0
London Borough of Sutton,08/01/2023,50312520,547.75,Caremark (Sutton),SOCIAL SERVICES DAY CARE,Peoples Services,Home Care Services,A56019,0
London Borough of Sutton,01/01/2023,50312521,554.75,Caremark (Sutton),SOCIAL SERVICES DAY CARE,Peoples Services,Home Care Services,A56019,0
London Borough of Sutton,08/01/2023,50312522,"1,921.00",Caremark (Sutton),SOCIAL SERVICES DAY CARE,Peoples Services,Home Care Services,A56019,0
London Borough of Sutton,01/01/2023,50312575,549.07,Caremark (Sutton),SOCIAL SERVICES DAY CARE,Peoples Services,Home Care Services,A56019,0
London Borough of Sutton,08/01/2023,50312576,537.86,Caremark (Sutton),SOCIAL SERVICES DAY CARE,Peoples Services,Home Care Services,A56019,0
London Borough of Sutton,05/01/2023,50302706,"9,675.00",Caremore Group Ltd,CHILDREN'S SERVICES - FOSTERING & ADOPTION SERVICES,Peoples Services,Approved Lodgings,A61000,0
London Borough of Sutton,05/01/2023,50305963,"9,997.51",Caremore Group Ltd,CHILDREN'S SERVICES - FOSTERING & ADOPTION SERVICES,Peoples Services,Approved Lodgings,A61000,0
London Borough of Sutton,20/01/2023,50310252,"5,621.56",Caretech Community Services Ltd,SOCIAL SERVICES RESIDENTIAL,Peoples Services,Residential Care - Ext Provider,A56114,0
London Borough of Sutton,20/01/2023,50310341,"5,879.88",Caretech Community Services Ltd,SOCIAL SERVICES RESIDENTIAL,Peoples Services,Residential Care - Ext Provider,A56114,0
London Borough of Sutton,20/01/2023,50310341,-710.00,Caretech Community Services Ltd,SOCIAL SERVICES RESIDENTIAL,Peoples Services,Residential Care - Client Cont ( Net Paymt ),A56113,0
London Borough of Sutton,20/01/2023,50310562,"6,030.96",Caretech Community Services Ltd,SOCIAL SERVICES RESIDENTIAL,Peoples Services,Residential Care - Ext Provider,A56114,0
London Borough of Sutton,20/01/2023,50310562,-627.80,Caretech Community Services Ltd,SOCIAL SERVICES RESIDENTIAL,Peoples Services,Residential Care - Client Cont ( Net Paymt ),A56113,0
London Borough of Sutton,19/01/2023,50311859,"7,800.00",CareTrade Charitable Trust,CHILDREN'S SERVICES - SEN SERVICES,Peoples Services,Independent School Fees,A56002,0
London Borough of Sutton,10/01/2023,50302033,"4,076.70",Carew Academy,CHILDREN'S SERVICES - RESIDENTIAL,Peoples Services,Payments to Schools,A51013,0
London Borough of Sutton,10/01/2023,50302040,"11,296.86",Carew Academy,CHILDREN'S SERVICES - RESIDENTIAL,Peoples Services,Payments to Schools,A51013,0
London Borough of Sutton,23/01/2023,50310908,"3,570.00",Carew Academy,CHILDREN'S SERVICES - RESIDENTIAL,Resources,"Grants, Contributions & Donations",A47005,0
London Borough of Sutton,30/11/2022,20039371,"4,660.72",Caridon Young Living Ltd,CHILDREN'S SERVICES - RESIDENTIAL,Peoples Services,Approved Lodgings,A61000,0
London Borough of Sutton,30/11/2022,20039785,"2,995.71",Caridon Young Living Ltd,CHILDREN'S SERVICES - RESIDENTIAL,Peoples Services,Approved Lodgings,A61000,0
London Borough of Sutton,30/11/2022,50299173,"5,196.43",Caridon Young Living Ltd,CHILDREN'S SERVICES - RESIDENTIAL,Peoples Services,Approved Lodgings,A61000,0
London Borough of Sutton,31/12/2022,50305945,"3,841.08",Caridon Young Living Ltd,CHILDREN'S SERVICES - RESIDENTIAL,Peoples Services,Approved Lodgings,A61000,0
London Borough of Sutton,31/12/2022,50310107,"1,812.87",Caridon Young Living Ltd,CHILDREN'S SERVICES - RESIDENTIAL,Peoples Services,Approved Lodgings,A61000,0
London Borough of Sutton,31/12/2022,50310107,35.71,Caridon Young Living Ltd,CHILDREN'S SERVICES - RESIDENTIAL,Peoples Services,Approved Lodgings,A61000,0
London Borough of Sutton,19/01/2023,50309807,"21,201.43",Care  Support Partners Ltd,SOCIAL SERVICES RESIDENTIAL,Peoples Services,Supported Living,A56088,0
London Borough of Sutton,19/01/2023,50309807,"7,824.85",Care  Support Partners Ltd,SOCIAL SERVICES RESIDENTIAL,Peoples Services,Supported Living,A56088,0
London Borough of Sutton,19/01/2023,50309807,"6,259.88",Care  Support Partners Ltd,SOCIAL SERVICES RESIDENTIAL,Peoples Services,Supported Living,A56088,0
London Borough of Sutton,19/01/2023,50309808,"-28,174.54",Care  Support Partners Ltd,SOCIAL SERVICES RESIDENTIAL,Peoples Services,Supported Living,A56088,0
London Borough of Sutton,05/01/2023,50303703,712.08,Carlene House,SOCIAL SERVICES RESIDENTIAL,Peoples Services,Supported Living,A56088,0
London Borough of Sutton,05/01/2023,50303703,984.48,Carlene House,SOCIAL SERVICES RESIDENTIAL,Peoples Services,Supported Living,A56088,0
London Borough of Sutton,05/01/2023,50303703,"1,312.88",Carlene House,SOCIAL SERVICES RESIDENTIAL,Peoples Services,Supported Living,A56088,0
London Borough of Sutton,05/01/2023,50303704,712.08,Carlene House,SOCIAL SERVICES RESIDENTIAL,Peoples Services,Supported Living,A56088,0
London Borough of Sutton,05/01/2023,50303704,"1,898.64",Carlene House,SOCIAL SERVICES RESIDENTIAL,Peoples Services,Supported Living,A56088,0
London Borough of Sutton,05/01/2023,50303704,"1,312.88",Carlene House,SOCIAL SERVICES RESIDENTIAL,Peoples Services,Supported Living,A56088,0
London Borough of Sutton,20/01/2023,50310318,"5,684.08",Carlene House,SOCIAL SERVICES RESIDENTIAL,Peoples Services,Residential Care - Ext Provider,A56114,0
London Borough of Sutton,20/01/2023,50310319,"5,684.08",Carlene House,SOCIAL SERVICES RESIDENTIAL,Peoples Services,Residential Care - Ext Provider,A56114,0
London Borough of Sutton,20/01/2023,50310320,"5,684.08",Carlene House,SOCIAL SERVICES RESIDENTIAL,Peoples Services,Residential Care - Ext Provider,A56114,0
London Borough of Sutton,20/01/2023,50310321,"5,684.08",Carlene House,SOCIAL SERVICES RESIDENTIAL,Peoples Services,Residential Care - Ext Provider,A56114,0
London Borough of Sutton,20/01/2023,50310346,"5,684.08",Carlene House,SOCIAL SERVICES RESIDENTIAL,Peoples Services,Residential Care - Ext Provider,A56114,0
London Borough of Sutton,20/01/2023,50310482,"5,684.08",Carlene House,SOCIAL SERVICES RESIDENTIAL,Peoples Services,Residential Care - Ext Provider,A56114,0
London Borough of Sutton,20/01/2023,50310646,"5,684.08",Carlene House,SOCIAL SERVICES RESIDENTIAL,Peoples Services,Residential Care - Ext Provider,A56114,0
London Borough of Sutton,10/01/2023,50302377,637.95,REDACTED - PERSONAL DATA,GRANTS & EX GRATIA PAYMENTS,Peoples Services,Payment - Nursery Funding,A51056,0
London Borough of Sutton,10/01/2023,50302375,"1,594.89",REDACTED - PERSONAL DATA,GRANTS & EX GRATIA PAYMENTS,Peoples Services,Payment - Nursery Funding,A51056,0
London Borough of Sutton,29/11/2022,20037672,680.00,REDACTED - PERSONAL DATA,TEMP STAFF & CONSULTANCY,Health and Wellbeing,Professional Fees,A44066,0
London Borough of Sutton,10/01/2023,50302179,"4,816.70",Carshalton Boys Sports College (Academy),GRANTS & EX GRATIA PAYMENTS,Peoples Services,Pupil Growth,A51014,0
London Borough of Sutton,10/01/2023,50304289,"4,816.80",Carshalton Boys Sports College (Academy),GRANTS & EX GRATIA PAYMENTS,Peoples Services,Pupil Growth,A51014,0
London Borough of Sutton,10/01/2023,50304296,"4,816.80",Carshalton Boys Sports College (Academy),GRANTS & EX GRATIA PAYMENTS,Peoples Services,Pupil Growth,A51014,0
London Borough of Sutton,10/01/2023,50304303,"4,816.80",Carshalton Boys Sports College (Academy),GRANTS & EX GRATIA PAYMENTS,Peoples Services,Pupil Growth,A51014,0
London Borough of Sutton,10/01/2023,50304310,"4,816.80",Carshalton Boys Sports College (Academy),GRANTS & EX GRATIA PAYMENTS,Peoples Services,Pupil Growth,A51014,0
London Borough of Sutton,23/01/2023,50310909,"10,650.00",Carshalton Boys Sports College (Academy),GRANTS & EX GRATIA PAYMENTS,Resources,"Grants, Contributions & Donations",A47005,0
London Borough of Sutton,28/12/2022,20039569,"3,574.08",Castle Water Ltd ,UTILITIES,Resources,Water Services,A24005,0
London Borough of Sutton,13/01/2023,50310106,"26,527.14",Catch 22 Charity Limited,CHILDREN'S SERVICES - RESIDENTIAL,Peoples Services,Residential Care-Children,A56115,0
London Borough of Sutton,13/01/2023,50310109,"29,042.57",Catch 22 Charity Limited,CHILDREN'S SERVICES - RESIDENTIAL,Peoples Services,Residential Care-Children,A56115,0
London Borough of Sutton,13/01/2023,50310110,"29,042.57",Catch 22 Charity Limited,CHILDREN'S SERVICES - RESIDENTIAL,Peoples Services,Residential Care-Children,A56115,0
London Borough of Sutton,10/01/2023,50302376,658.94,REDACTED - PERSONAL DATA,GRANTS & EX GRATIA PAYMENTS,Peoples Services,Payment - Nursery Funding,A51056,0
London Borough of Sutton,31/10/2022,20040284,"1,490.17",Caysh Housing Project,SOCIAL SERVICES RESIDENTIAL,Peoples Services,Approved Lodgings,A61000,0
London Borough of Sutton,31/10/2022,20040285,"1,522.72",Caysh Housing Project,SOCIAL SERVICES RESIDENTIAL,Peoples Services,Approved Lodgings,A61000,0
London Borough of Sutton,31/10/2022,20040286,"1,490.17",Caysh Housing Project,SOCIAL SERVICES RESIDENTIAL,Peoples Services,Approved Lodgings,A61000,0
London Borough of Sutton,14/12/2022,20041266,"8,658.00",Caysh Housing Project,SOCIAL SERVICES RESIDENTIAL,Peoples Services,Miscellaneous Expenses,A49000,0
London Borough of Sutton,20/10/2022,50299400,596.95,REDACTED - PERSONAL DATA,CHILDREN'S SERVICES - SEN SERVICES,Peoples Services,Miscellaneous Expenses,A49000,0
London Borough of Sutton,10/01/2023,50302280,"1,043.81",Cheam Baptist Church Pre-School,GRANTS & EX GRATIA PAYMENTS,Peoples Services,Payment - Nursery Funding,A51056,0
London Borough of Sutton,10/01/2023,50302341,"7,963.81",Cheam Baptist Church Pre-School,GRANTS & EX GRATIA PAYMENTS,Peoples Services,Payment - Nursery Funding,A51056,0
London Borough of Sutton,13/01/2023,50305619,"1,684.39",Cheam Baptist Church Pre-School,GRANTS & EX GRATIA PAYMENTS,Peoples Services,Predictable Needs funding,A56125,0
London Borough of Sutton,23/01/2023,50310911,900.00,Cheam Common Infants School -ACADEMY,GRANTS & EX GRATIA PAYMENTS,Resources,"Grants, Contributions & Donations",A47005,0
London Borough of Sutton,31/01/2023,50312856,"29,983.93",Cheam Common Infants School -ACADEMY,GRANTS & EX GRATIA PAYMENTS,Peoples Services,Place Funding,A56110,0
London Borough of Sutton,10/01/2023,50302047,"1,506.56",Cheam Common Junior Academy,GRANTS & EX GRATIA PAYMENTS,Peoples Services,Payment - Cluster Lead SENCO,A51035,0
London Borough of Sutton,23/01/2023,50310912,"1,620.00",Cheam Common Junior Academy,GRANTS & EX GRATIA PAYMENTS,Resources,"Grants, Contributions & Donations",A47005,0
London Borough of Sutton,10/01/2023,50302046,"2,643.43",Cheam High School (Academy),GRANTS & EX GRATIA PAYMENTS,Peoples Services,Payment - Cluster Lead SENCO,A51035,0
London Borough of Sutton,10/01/2023,50302181,"3,211.14",Cheam High School (Academy),GRANTS & EX GRATIA PAYMENTS,Peoples Services,Pupil Growth,A51014,0
London Borough of Sutton,10/01/2023,50304291,"3,211.16",Cheam High School (Academy),GRANTS & EX GRATIA PAYMENTS,Peoples Services,Pupil Growth,A51014,0
London Borough of Sutton,10/01/2023,50304298,"3,211.16",Cheam High School (Academy),GRANTS & EX GRATIA PAYMENTS,Peoples Services,Pupil Growth,A51014,0
London Borough of Sutton,10/01/2023,50304305,"3,211.16",Cheam High School (Academy),GRANTS & EX GRATIA PAYMENTS,Peoples Services,Pupil Growth,A51014,0
London Borough of Sutton,10/01/2023,50304312,"3,211.16",Cheam High School (Academy),GRANTS & EX GRATIA PAYMENTS,Peoples Services,Pupil Growth,A51014,0
London Borough of Sutton,23/01/2023,50310914,"7,980.00",Cheam High School (Academy),GRANTS & EX GRATIA PAYMENTS,Resources,"Grants, Contributions & Donations",A47005,0
London Borough of Sutton,23/01/2023,50310915,"1,530.00",Cheam Park Farm Primary School,GRANTS & EX GRATIA PAYMENTS,Resources,"Grants, Contributions & Donations",A47005,0
London Borough of Sutton,31/01/2023,50312858,"15,814.65",Cheam Park Farm Primary School,GRANTS & EX GRATIA PAYMENTS,Peoples Services,Place Funding,A56110,0
London Borough of Sutton,20/01/2023,50310282,-662.24,Chegworth Nursing Home Bayswift Ltd,SOCIAL SERVICES RESIDENTIAL,Peoples Services,Nursing Care - 3rd party top up payment,A56023,0
London Borough of Sutton,20/01/2023,50310282,"4,955.56",Chegworth Nursing Home Bayswift Ltd,SOCIAL SERVICES RESIDENTIAL,Peoples Services,Nursing Care Short Term,A56026,0
London Borough of Sutton,20/01/2023,50310343,"3,753.20",Chegworth Nursing Home Bayswift Ltd,SOCIAL SERVICES RESIDENTIAL,Peoples Services,Nursing Care - Ext Provider,A56025,0
London Borough of Sutton,20/01/2023,50310343,-735.68,Chegworth Nursing Home Bayswift Ltd,SOCIAL SERVICES RESIDENTIAL,Peoples Services,Nursing Care - 3rd party top up payment,A56023,0
London Borough of Sutton,20/01/2023,50310366,-632.64,Chegworth Nursing Home Bayswift Ltd,SOCIAL SERVICES RESIDENTIAL,Peoples Services,Nursing Care - 3rd party top up payment,A56023,0
London Borough of Sutton,20/01/2023,50310366,"3,919.08",Chegworth Nursing Home Bayswift Ltd,SOCIAL SERVICES RESIDENTIAL,Peoples Services,Nursing Care - Ext Provider,A56025,0
London Borough of Sutton,20/01/2023,50310367,"4,149.92",Chegworth Nursing Home Bayswift Ltd,SOCIAL SERVICES RESIDENTIAL,Peoples Services,Nursing Care - Ext Provider,A56025,0
London Borough of Sutton,20/01/2023,50310367,-750.40,Chegworth Nursing Home Bayswift Ltd,SOCIAL SERVICES RESIDENTIAL,Peoples Services,Nursing Care - 3rd party top up payment,A56023,0
London Borough of Sutton,20/01/2023,50310395,"3,734.88",Chegworth Nursing Home Bayswift Ltd,SOCIAL SERVICES RESIDENTIAL,Peoples Services,Nursing Care Short Term,A56026,0
London Borough of Sutton,20/01/2023,50310395,-750.40,Chegworth Nursing Home Bayswift Ltd,SOCIAL SERVICES RESIDENTIAL,Peoples Services,Nursing Care - 3rd party top up payment,A56023,0
London Borough of Sutton,20/01/2023,50310399,"3,900.00",Chegworth Nursing Home Bayswift Ltd,SOCIAL SERVICES RESIDENTIAL,Peoples Services,Nursing Care Short Term,A56026,0
London Borough of Sutton,20/01/2023,50310399,-836.76,Chegworth Nursing Home Bayswift Ltd,SOCIAL SERVICES RESIDENTIAL,Peoples Services,Nursing Care - 3rd party top up payment,A56023,0
London Borough of Sutton,20/01/2023,50310425,"3,665.20",Chegworth Nursing Home Bayswift Ltd,SOCIAL SERVICES RESIDENTIAL,Peoples Services,Nursing Care - Ext Provider,A56025,0
London Borough of Sutton,20/01/2023,50310425,-632.64,Chegworth Nursing Home Bayswift Ltd,SOCIAL SERVICES RESIDENTIAL,Peoples Services,Nursing Care - 3rd party top up payment,A56023,0
London Borough of Sutton,20/01/2023,50310470,"2,905.28",Chegworth Nursing Home Bayswift Ltd,SOCIAL SERVICES RESIDENTIAL,Peoples Services,Nursing Care Short Term,A56026,0
London Borough of Sutton,20/01/2023,50310484,"3,821.24",Chegworth Nursing Home Bayswift Ltd,SOCIAL SERVICES RESIDENTIAL,Peoples Services,Nursing Care Short Term,A56026,0
London Borough of Sutton,20/01/2023,50310484,-836.76,Chegworth Nursing Home Bayswift Ltd,SOCIAL SERVICES RESIDENTIAL,Peoples Services,Nursing Care - 3rd party top up payment,A56023,0
London Borough of Sutton,20/01/2023,50310485,"1,624.54",Chegworth Nursing Home Bayswift Ltd,SOCIAL SERVICES RESIDENTIAL,Peoples Services,Nursing Care - Ext Provider,A56025,0
London Borough of Sutton,20/01/2023,50310485,-239.07,Chegworth Nursing Home Bayswift Ltd,SOCIAL SERVICES RESIDENTIAL,Peoples Services,Nursing Care - 3rd party top up payment,A56023,0
London Borough of Sutton,20/01/2023,50310525,"3,665.20",Chegworth Nursing Home Bayswift Ltd,SOCIAL SERVICES RESIDENTIAL,Peoples Services,Nursing Care - Ext Provider,A56025,0
London Borough of Sutton,20/01/2023,50310525,-632.64,Chegworth Nursing Home Bayswift Ltd,SOCIAL SERVICES RESIDENTIAL,Peoples Services,Nursing Care - 3rd party top up payment,A56023,0
London Borough of Sutton,20/01/2023,50310534,"3,848.24",Chegworth Nursing Home Bayswift Ltd,SOCIAL SERVICES RESIDENTIAL,Peoples Services,Nursing Care - Ext Provider,A56025,0
London Borough of Sutton,20/01/2023,50310534,-750.40,Chegworth Nursing Home Bayswift Ltd,SOCIAL SERVICES RESIDENTIAL,Peoples Services,Nursing Care - 3rd party top up payment,A56023,0
London Borough of Sutton,20/01/2023,50310542,"3,821.24",Chegworth Nursing Home Bayswift Ltd,SOCIAL SERVICES RESIDENTIAL,Peoples Services,Nursing Care Short Term,A56026,0
London Borough of Sutton,20/01/2023,50310542,-836.76,Chegworth Nursing Home Bayswift Ltd,SOCIAL SERVICES RESIDENTIAL,Peoples Services,Nursing Care - 3rd party top up payment,A56023,0
London Borough of Sutton,20/01/2023,50310564,"3,821.24",Chegworth Nursing Home Bayswift Ltd,SOCIAL SERVICES RESIDENTIAL,Peoples Services,Nursing Care Short Term,A56026,0
London Borough of Sutton,20/01/2023,50310564,-836.76,Chegworth Nursing Home Bayswift Ltd,SOCIAL SERVICES RESIDENTIAL,Peoples Services,Nursing Care - 3rd party top up payment,A56023,0
London Borough of Sutton,20/01/2023,50310610,"3,821.24",Chegworth Nursing Home Bayswift Ltd,SOCIAL SERVICES RESIDENTIAL,Peoples Services,Nursing Care Short Term,A56026,0
London Borough of Sutton,20/01/2023,50310610,-836.76,Chegworth Nursing Home Bayswift Ltd,SOCIAL SERVICES RESIDENTIAL,Peoples Services,Nursing Care - 3rd party top up payment,A56023,0
London Borough of Sutton,20/01/2023,50310621,-735.68,Chegworth Nursing Home Bayswift Ltd,SOCIAL SERVICES RESIDENTIAL,Peoples Services,Nursing Care - 3rd party top up payment,A56023,0
London Borough of Sutton,20/01/2023,50310621,"3,720.16",Chegworth Nursing Home Bayswift Ltd,SOCIAL SERVICES RESIDENTIAL,Peoples Services,Nursing Care - Ext Provider,A56025,0
London Borough of Sutton,20/01/2023,50310633,"4,150.40",Chegworth Nursing Home Bayswift Ltd,SOCIAL SERVICES RESIDENTIAL,Peoples Services,Nursing Care - Ext Provider,A56025,0
London Borough of Sutton,20/01/2023,50310641,"3,734.88",Chegworth Nursing Home Bayswift Ltd,SOCIAL SERVICES RESIDENTIAL,Peoples Services,Nursing Care Short Term,A56026,0
London Borough of Sutton,20/01/2023,50310641,-750.40,Chegworth Nursing Home Bayswift Ltd,SOCIAL SERVICES RESIDENTIAL,Peoples Services,Nursing Care - 3rd party top up payment,A56023,0
London Borough of Sutton,20/01/2023,50310348,"3,486.32",Cherry Lodge,SOCIAL SERVICES RESIDENTIAL,Peoples Services,Residential Care - Ext Provider,A56114,0
London Borough of Sutton,20/01/2023,50310630,"2,895.32",Cherry Lodge,SOCIAL SERVICES RESIDENTIAL,Peoples Services,Residential Care - Ext Provider,A56114,0
London Borough of Sutton,20/01/2023,50310630,-460.04,Cherry Lodge,SOCIAL SERVICES RESIDENTIAL,Peoples Services,Residential Care - Client Cont ( Net Paymt ),A56113,0
London Borough of Sutton,20/01/2023,50310462,-735.68,CHHG Ltd,SOCIAL SERVICES RESIDENTIAL,Peoples Services,Nursing Care - 3rd party top up payment,A56023,0
London Borough of Sutton,20/01/2023,50310462,"3,927.68",CHHG Ltd,SOCIAL SERVICES RESIDENTIAL,Peoples Services,Nursing Care - Ext Provider,A56025,0
London Borough of Sutton,09/12/2022,50302779,"11,599.27",Children's Trust,CHILDREN'S SERVICES - DAY CARE,Peoples Services,Residential Care-Children,A56115,0
London Borough of Sutton,10/01/2023,50308069,"5,428.72",Children's Trust,CHILDREN'S SERVICES - DAY CARE,Peoples Services,Independent School Fees,A56002,0
London Borough of Sutton,10/01/2023,50308070,"4,557.62",Children's Trust,CHILDREN'S SERVICES - DAY CARE,Peoples Services,Independent School Fees,A56002,0
London Borough of Sutton,10/01/2023,50308071,"5,522.96",Children's Trust,CHILDREN'S SERVICES - DAY CARE,Peoples Services,Independent School Fees,A56002,0
London Borough of Sutton,31/12/2022,50308072,"9,516.00",Chipstead Valley Primary School,GRANTS & EX GRATIA PAYMENTS,Peoples Services,Top-up Funding,A51016,0
London Borough of Sutton,20/01/2023,50310400,"-13,982.46",Choice Care Group (Surrey) Ltd,SOCIAL SERVICES RESIDENTIAL,Peoples Services,Residential Care - Ext Provider,A56114,0
London Borough of Sutton,20/01/2023,50310400,"4,559.14",Choice Care Group (Surrey) Ltd,SOCIAL SERVICES RESIDENTIAL,Peoples Services,Residential Care - Client Cont ( Net Paymt ),A56113,0
London Borough of Sutton,20/01/2023,50310400,"-4,698.45",Choice Care Group (Surrey) Ltd,SOCIAL SERVICES RESIDENTIAL,Peoples Services,Residential Care - Client Cont ( Net Paymt ),A56113,0
London Borough of Sutton,20/01/2023,50310400,861.77,Choice Care Group (Surrey) Ltd,SOCIAL SERVICES RESIDENTIAL,Peoples Services,Residential Care - Client Cont ( Net Paymt ),A56113,0
London Borough of Sutton,20/01/2023,50310506,"7,809.32",Choice Care Group (Surrey) Ltd,SOCIAL SERVICES RESIDENTIAL,Peoples Services,Residential Care - Ext Provider,A56114,0
London Borough of Sutton,20/01/2023,50310580,"7,512.24",Choice Care Group (Surrey) Ltd,SOCIAL SERVICES RESIDENTIAL,Peoples Services,Residential Care - Ext Provider,A56114,0
London Borough of Sutton,20/01/2023,50310632,"8,682.92",Choice Care Group (Surrey) Ltd,SOCIAL SERVICES RESIDENTIAL,Peoples Services,Residential Care - Ext Provider,A56114,0
London Borough of Sutton,05/12/2022,20038353,"1,736.36",Choice Support,GRANTS & EX GRATIA PAYMENTS,Peoples Services,Provider Contract Payments,A44290,0
London Borough of Sutton,05/12/2022,20038354,"2,055.00",Choice Support,GRANTS & EX GRATIA PAYMENTS,Peoples Services,Provider Contract Payments,A44290,0
London Borough of Sutton,08/12/2022,20038488,"1,602.36",Choice Support,GRANTS & EX GRATIA PAYMENTS,Peoples Services,Provider Contract Payments,A44290,0
London Borough of Sutton,08/12/2022,20038489,"1,602.36",Choice Support,GRANTS & EX GRATIA PAYMENTS,Peoples Services,Provider Contract Payments,A44290,0
London Borough of Sutton,08/12/2022,20038490,"1,602.36",Choice Support,GRANTS & EX GRATIA PAYMENTS,Peoples Services,Provider Contract Payments,A44290,0
London Borough of Sutton,03/01/2023,50299466,"2,747.91",Choice Support,GRANTS & EX GRATIA PAYMENTS,Peoples Services,Home Care Services,A56019,0
London Borough of Sutton,03/01/2023,50303701,"6,350.27",Choice Support,GRANTS & EX GRATIA PAYMENTS,Peoples Services,Supported Living,A56088,0
London Borough of Sutton,03/01/2023,50303701,244.50,Choice Support,GRANTS & EX GRATIA PAYMENTS,Peoples Services,Supported Living,A56088,0
London Borough of Sutton,03/01/2023,50303701,633.81,Choice Support,GRANTS & EX GRATIA PAYMENTS,Peoples Services,Supported Living,A56088,0
London Borough of Sutton,03/01/2023,50303707,"1,694.94",Choice Support,GRANTS & EX GRATIA PAYMENTS,Peoples Services,Supported Living,A56088,0
London Borough of Sutton,03/01/2023,50303707,"1,793.41",Choice Support,GRANTS & EX GRATIA PAYMENTS,Peoples Services,Supported Living,A56088,0
London Borough of Sutton,03/01/2023,50303707,244.50,Choice Support,GRANTS & EX GRATIA PAYMENTS,Peoples Services,Supported Living,A56088,0
London Borough of Sutton,03/01/2023,50303707,633.81,Choice Support,GRANTS & EX GRATIA PAYMENTS,Peoples Services,Supported Living,A56088,0
London Borough of Sutton,03/01/2023,50303708,"2,812.80",Choice Support,GRANTS & EX GRATIA PAYMENTS,Peoples Services,Supported Living,A56088,0
London Borough of Sutton,03/01/2023,50303708,"1,642.44",Choice Support,GRANTS & EX GRATIA PAYMENTS,Peoples Services,Supported Living,A56088,0
London Borough of Sutton,03/01/2023,50303708,244.50,Choice Support,GRANTS & EX GRATIA PAYMENTS,Peoples Services,Supported Living,A56088,0
London Borough of Sutton,03/01/2023,50303708,633.81,Choice Support,GRANTS & EX GRATIA PAYMENTS,Peoples Services,Supported Living,A56088,0
London Borough of Sutton,03/01/2023,50303709,"2,335.23",Choice Support,GRANTS & EX GRATIA PAYMENTS,Peoples Services,Supported Living,A56088,0
London Borough of Sutton,03/01/2023,50303709,"1,529.46",Choice Support,GRANTS & EX GRATIA PAYMENTS,Peoples Services,Supported Living,A56088,0
London Borough of Sutton,03/01/2023,50303709,244.50,Choice Support,GRANTS & EX GRATIA PAYMENTS,Peoples Services,Supported Living,A56088,0
London Borough of Sutton,03/01/2023,50303709,633.81,Choice Support,GRANTS & EX GRATIA PAYMENTS,Peoples Services,Supported Living,A56088,0
London Borough of Sutton,03/01/2023,50303710,"6,920.92",Choice Support,GRANTS & EX GRATIA PAYMENTS,Peoples Services,Supported Living,A56088,0
London Borough of Sutton,03/01/2023,50303710,887.36,Choice Support,GRANTS & EX GRATIA PAYMENTS,Peoples Services,Supported Living,A56088,0
London Borough of Sutton,03/01/2023,50303711,"5,843.98",Choice Support,GRANTS & EX GRATIA PAYMENTS,Peoples Services,Supported Living,A56088,0
London Borough of Sutton,03/01/2023,50303711,887.36,Choice Support,GRANTS & EX GRATIA PAYMENTS,Peoples Services,Supported Living,A56088,0
London Borough of Sutton,03/01/2023,50303712,"3,578.95",Choice Support,GRANTS & EX GRATIA PAYMENTS,Peoples Services,Supported Living,A56088,0
London Borough of Sutton,03/01/2023,50303712,"3,156.34",Choice Support,GRANTS & EX GRATIA PAYMENTS,Peoples Services,Supported Living,A56088,0
London Borough of Sutton,03/01/2023,50303712,244.50,Choice Support,GRANTS & EX GRATIA PAYMENTS,Peoples Services,Supported Living,A56088,0
London Borough of Sutton,03/01/2023,50303712,633.81,Choice Support,GRANTS & EX GRATIA PAYMENTS,Peoples Services,Supported Living,A56088,0
London Borough of Sutton,03/01/2023,50303714,887.36,Choice Support,GRANTS & EX GRATIA PAYMENTS,Peoples Services,Supported Living,A56088,0
London Borough of Sutton,03/01/2023,50303714,"5,015.35",Choice Support,GRANTS & EX GRATIA PAYMENTS,Peoples Services,Supported Living,A56088,0
London Borough of Sutton,03/01/2023,50303715,"5,866.30",Choice Support,GRANTS & EX GRATIA PAYMENTS,Peoples Services,Supported Living,A56088,0
London Borough of Sutton,03/01/2023,50303715,887.36,Choice Support,GRANTS & EX GRATIA PAYMENTS,Peoples Services,Supported Living,A56088,0
London Borough of Sutton,16/01/2023,50307442,"2,747.91",Choice Support,GRANTS & EX GRATIA PAYMENTS,Peoples Services,Home Care Services,A56019,0
London Borough of Sutton,19/01/2023,50309753,"4,441.15",Choice Support,GRANTS & EX GRATIA PAYMENTS,Peoples Services,Supported Living,A56088,0
London Borough of Sutton,19/01/2023,50309757,"4,878.07",Choice Support,GRANTS & EX GRATIA PAYMENTS,Peoples Services,Supported Living,A56088,0
London Borough of Sutton,19/01/2023,50309757,"17,966.57",Choice Support,GRANTS & EX GRATIA PAYMENTS,Peoples Services,Supported Living,A56088,0
London Borough of Sutton,19/01/2023,50309757,"24,434.53",Choice Support,GRANTS & EX GRATIA PAYMENTS,Peoples Services,Supported Living,A56088,0
London Borough of Sutton,19/01/2023,50309757,"1,207.39",Choice Support,GRANTS & EX GRATIA PAYMENTS,Peoples Services,Supported Living,A56088,0
London Borough of Sutton,19/01/2023,50309758,"-4,383.89",Choice Support,GRANTS & EX GRATIA PAYMENTS,Peoples Services,Supported Living,A56088,0
London Borough of Sutton,19/01/2023,50309758,"-1,085.07",Choice Support,GRANTS & EX GRATIA PAYMENTS,Peoples Services,Supported Living,A56088,0
London Borough of Sutton,19/01/2023,50309758,"-22,101.36",Choice Support,GRANTS & EX GRATIA PAYMENTS,Peoples Services,Supported Living,A56088,0
London Borough of Sutton,19/01/2023,50309758,"-16,240.71",Choice Support,GRANTS & EX GRATIA PAYMENTS,Peoples Services,Supported Living,A56088,0
London Borough of Sutton,19/01/2023,50309759,"4,878.07",Choice Support,GRANTS & EX GRATIA PAYMENTS,Peoples Services,Supported Living,A56088,0
London Borough of Sutton,19/01/2023,50309759,"24,075.20",Choice Support,GRANTS & EX GRATIA PAYMENTS,Peoples Services,Supported Living,A56088,0
London Borough of Sutton,19/01/2023,50309759,"16,924.43",Choice Support,GRANTS & EX GRATIA PAYMENTS,Peoples Services,Supported Living,A56088,0
London Borough of Sutton,19/01/2023,50309759,"6,640.63",Choice Support,GRANTS & EX GRATIA PAYMENTS,Peoples Services,Supported Living,A56088,0
London Borough of Sutton,19/01/2023,50309760,"-4,383.89",Choice Support,GRANTS & EX GRATIA PAYMENTS,Peoples Services,Supported Living,A56088,0
London Borough of Sutton,19/01/2023,50309760,"-1,182.11",Choice Support,GRANTS & EX GRATIA PAYMENTS,Peoples Services,Supported Living,A56088,0
London Borough of Sutton,19/01/2023,50309760,"-15,209.86",Choice Support,GRANTS & EX GRATIA PAYMENTS,Peoples Services,Supported Living,A56088,0
London Borough of Sutton,19/01/2023,50309760,"-21,636.21",Choice Support,GRANTS & EX GRATIA PAYMENTS,Peoples Services,Supported Living,A56088,0
London Borough of Sutton,19/01/2023,50309761,"-5,099.68",Choice Support,GRANTS & EX GRATIA PAYMENTS,Peoples Services,Supported Living,A56088,0
London Borough of Sutton,19/01/2023,50309761,"-33,836.39",Choice Support,GRANTS & EX GRATIA PAYMENTS,Peoples Services,Supported Living,A56088,0
London Borough of Sutton,19/01/2023,50309762,"4,878.07",Choice Support,GRANTS & EX GRATIA PAYMENTS,Peoples Services,Supported Living,A56088,0
London Borough of Sutton,19/01/2023,50309762,"39,526.45",Choice Support,GRANTS & EX GRATIA PAYMENTS,Peoples Services,Supported Living,A56088,0
London Borough of Sutton,19/01/2023,50309762,"1,207.39",Choice Support,GRANTS & EX GRATIA PAYMENTS,Peoples Services,Supported Living,A56088,0
London Borough of Sutton,19/01/2023,50309764,"1,127.78",Choice Support,GRANTS & EX GRATIA PAYMENTS,Peoples Services,Supported Living,A56088,0
London Borough of Sutton,19/01/2023,50309764,"1,219.58",Choice Support,GRANTS & EX GRATIA PAYMENTS,Peoples Services,Supported Living,A56088,0
London Borough of Sutton,19/01/2023,50309764,"3,252.17",Choice Support,GRANTS & EX GRATIA PAYMENTS,Peoples Services,Supported Living,A56088,0
London Borough of Sutton,19/01/2023,50309765,902.23,Choice Support,GRANTS & EX GRATIA PAYMENTS,Peoples Services,Supported Living,A56088,0
London Borough of Sutton,19/01/2023,50309765,868.49,Choice Support,GRANTS & EX GRATIA PAYMENTS,Peoples Services,Supported Living,A56088,0
London Borough of Sutton,19/01/2023,50309765,"3,326.08",Choice Support,GRANTS & EX GRATIA PAYMENTS,Peoples Services,Supported Living,A56088,0
London Borough of Sutton,19/01/2023,50309771,"4,878.07",Choice Support,GRANTS & EX GRATIA PAYMENTS,Peoples Services,Supported Living,A56088,0
London Borough of Sutton,19/01/2023,50309771,"21,200.56",Choice Support,GRANTS & EX GRATIA PAYMENTS,Peoples Services,Supported Living,A56088,0
London Borough of Sutton,19/01/2023,50309771,"16,385.42",Choice Support,GRANTS & EX GRATIA PAYMENTS,Peoples Services,Supported Living,A56088,0
London Borough of Sutton,19/01/2023,50309771,"6,640.63",Choice Support,GRANTS & EX GRATIA PAYMENTS,Peoples Services,Supported Living,A56088,0
London Borough of Sutton,19/01/2023,50309772,"-4,383.89",Choice Support,GRANTS & EX GRATIA PAYMENTS,Peoples Services,Supported Living,A56088,0
London Borough of Sutton,19/01/2023,50309772,"-9,862.29",Choice Support,GRANTS & EX GRATIA PAYMENTS,Peoples Services,Supported Living,A56088,0
London Borough of Sutton,19/01/2023,50309772,"-14,725.46",Choice Support,GRANTS & EX GRATIA PAYMENTS,Peoples Services,Supported Living,A56088,0
London Borough of Sutton,19/01/2023,50309772,"-45,210.00",Choice Support,GRANTS & EX GRATIA PAYMENTS,Peoples Services,Supported Living,A56088,0
London Borough of Sutton,19/01/2023,50309775,"-8,426.79",Choice Support,GRANTS & EX GRATIA PAYMENTS,Peoples Services,Supported Living,A56088,0
London Borough of Sutton,19/01/2023,50309775,"-55,725.21",Choice Support,GRANTS & EX GRATIA PAYMENTS,Peoples Services,Supported Living,A56088,0
London Borough of Sutton,19/01/2023,50309776,"54,719.35",Choice Support,GRANTS & EX GRATIA PAYMENTS,Peoples Services,Supported Living,A56088,0
London Borough of Sutton,19/01/2023,50309776,"8,905.91",Choice Support,GRANTS & EX GRATIA PAYMENTS,Peoples Services,Supported Living,A56088,0
London Borough of Sutton,19/01/2023,50309777,"-4,383.89",Choice Support,GRANTS & EX GRATIA PAYMENTS,Peoples Services,Supported Living,A56088,0
London Borough of Sutton,19/01/2023,50309777,"-1,182.11",Choice Support,GRANTS & EX GRATIA PAYMENTS,Peoples Services,Supported Living,A56088,0
London Borough of Sutton,19/01/2023,50309777,"-14,886.93",Choice Support,GRANTS & EX GRATIA PAYMENTS,Peoples Services,Supported Living,A56088,0
London Borough of Sutton,19/01/2023,50309777,"-21,042.21",Choice Support,GRANTS & EX GRATIA PAYMENTS,Peoples Services,Supported Living,A56088,0
London Borough of Sutton,19/01/2023,50309778,"4,878.07",Choice Support,GRANTS & EX GRATIA PAYMENTS,Peoples Services,Supported Living,A56088,0
London Borough of Sutton,19/01/2023,50309778,"23,414.24",Choice Support,GRANTS & EX GRATIA PAYMENTS,Peoples Services,Supported Living,A56088,0
London Borough of Sutton,19/01/2023,50309778,"16,565.09",Choice Support,GRANTS & EX GRATIA PAYMENTS,Peoples Services,Supported Living,A56088,0
London Borough of Sutton,19/01/2023,50309778,"6,640.63",Choice Support,GRANTS & EX GRATIA PAYMENTS,Peoples Services,Supported Living,A56088,0
London Borough of Sutton,19/01/2023,50309779,"-3,957.64",Choice Support,GRANTS & EX GRATIA PAYMENTS,Peoples Services,Supported Living,A56088,0
London Borough of Sutton,19/01/2023,50309779,"-52,551.71",Choice Support,GRANTS & EX GRATIA PAYMENTS,Peoples Services,Supported Living,A56088,0
London Borough of Sutton,19/01/2023,50309780,"4,878.07",Choice Support,GRANTS & EX GRATIA PAYMENTS,Peoples Services,Supported Living,A56088,0
London Borough of Sutton,19/01/2023,50309780,"37,823.35",Choice Support,GRANTS & EX GRATIA PAYMENTS,Peoples Services,Supported Living,A56088,0
London Borough of Sutton,19/01/2023,50309780,"14,301.56",Choice Support,GRANTS & EX GRATIA PAYMENTS,Peoples Services,Supported Living,A56088,0
London Borough of Sutton,19/01/2023,50309780,"6,640.63",Choice Support,GRANTS & EX GRATIA PAYMENTS,Peoples Services,Supported Living,A56088,0
London Borough of Sutton,19/01/2023,50309784,"1,127.78",Choice Support,GRANTS & EX GRATIA PAYMENTS,Peoples Services,Supported Living,A56088,0
London Borough of Sutton,19/01/2023,50309784,"1,219.58",Choice Support,GRANTS & EX GRATIA PAYMENTS,Peoples Services,Supported Living,A56088,0
London Borough of Sutton,19/01/2023,50309784,"2,808.69",Choice Support,GRANTS & EX GRATIA PAYMENTS,Peoples Services,Supported Living,A56088,0
London Borough of Sutton,19/01/2023,50309789,"4,964.20",Choice Support,GRANTS & EX GRATIA PAYMENTS,Peoples Services,Supported Living,A56088,0
London Borough of Sutton,19/01/2023,50309789,"23,715.88",Choice Support,GRANTS & EX GRATIA PAYMENTS,Peoples Services,Supported Living,A56088,0
London Borough of Sutton,19/01/2023,50309789,"16,658.64",Choice Support,GRANTS & EX GRATIA PAYMENTS,Peoples Services,Supported Living,A56088,0
London Borough of Sutton,19/01/2023,50309789,"6,640.63",Choice Support,GRANTS & EX GRATIA PAYMENTS,Peoples Services,Supported Living,A56088,0
London Borough of Sutton,19/01/2023,50309790,"-4,383.89",Choice Support,GRANTS & EX GRATIA PAYMENTS,Peoples Services,Supported Living,A56088,0
London Borough of Sutton,19/01/2023,50309790,"-1,182.11",Choice Support,GRANTS & EX GRATIA PAYMENTS,Peoples Services,Supported Living,A56088,0
London Borough of Sutton,19/01/2023,50309790,"-14,971.00",Choice Support,GRANTS & EX GRATIA PAYMENTS,Peoples Services,Supported Living,A56088,0
London Borough of Sutton,19/01/2023,50309790,"-21,313.29",Choice Support,GRANTS & EX GRATIA PAYMENTS,Peoples Services,Supported Living,A56088,0
London Borough of Sutton,19/01/2023,50309791,"4,878.07",Choice Support,GRANTS & EX GRATIA PAYMENTS,Peoples Services,Supported Living,A56088,0
London Borough of Sutton,19/01/2023,50309791,"22,278.55",Choice Support,GRANTS & EX GRATIA PAYMENTS,Peoples Services,Supported Living,A56088,0
London Borough of Sutton,19/01/2023,50309791,"14,373.25",Choice Support,GRANTS & EX GRATIA PAYMENTS,Peoples Services,Supported Living,A56088,0
London Borough of Sutton,19/01/2023,50309791,"1,207.39",Choice Support,GRANTS & EX GRATIA PAYMENTS,Peoples Services,Supported Living,A56088,0
London Borough of Sutton,19/01/2023,50309792,"-4,383.89",Choice Support,GRANTS & EX GRATIA PAYMENTS,Peoples Services,Supported Living,A56088,0
London Borough of Sutton,19/01/2023,50309792,"-1,085.07",Choice Support,GRANTS & EX GRATIA PAYMENTS,Peoples Services,Supported Living,A56088,0
London Borough of Sutton,19/01/2023,50309792,"-16,690.14",Choice Support,GRANTS & EX GRATIA PAYMENTS,Peoples Services,Supported Living,A56088,0
London Borough of Sutton,19/01/2023,50309792,"-18,739.29",Choice Support,GRANTS & EX GRATIA PAYMENTS,Peoples Services,Supported Living,A56088,0
London Borough of Sutton,19/01/2023,50309798,"1,127.78",Choice Support,GRANTS & EX GRATIA PAYMENTS,Peoples Services,Supported Living,A56088,0
London Borough of Sutton,19/01/2023,50309798,"1,219.58",Choice Support,GRANTS & EX GRATIA PAYMENTS,Peoples Services,Supported Living,A56088,0
London Borough of Sutton,19/01/2023,50309798,"3,215.23",Choice Support,GRANTS & EX GRATIA PAYMENTS,Peoples Services,Supported Living,A56088,0
London Borough of Sutton,19/01/2023,50309803,902.23,Choice Support,GRANTS & EX GRATIA PAYMENTS,Peoples Services,Supported Living,A56088,0
London Borough of Sutton,19/01/2023,50309803,868.49,Choice Support,GRANTS & EX GRATIA PAYMENTS,Peoples Services,Supported Living,A56088,0
London Borough of Sutton,19/01/2023,50309803,"3,843.47",Choice Support,GRANTS & EX GRATIA PAYMENTS,Peoples Services,Supported Living,A56088,0
London Borough of Sutton,19/01/2023,50309822,"1,127.78",Choice Support,GRANTS & EX GRATIA PAYMENTS,Peoples Services,Supported Living,A56088,0
London Borough of Sutton,19/01/2023,50309822,"1,219.58",Choice Support,GRANTS & EX GRATIA PAYMENTS,Peoples Services,Supported Living,A56088,0
London Borough of Sutton,19/01/2023,50309822,"5,506.53",Choice Support,GRANTS & EX GRATIA PAYMENTS,Peoples Services,Supported Living,A56088,0
London Borough of Sutton,19/01/2023,50309823,"1,127.78",Choice Support,GRANTS & EX GRATIA PAYMENTS,Peoples Services,Supported Living,A56088,0
London Borough of Sutton,19/01/2023,50309823,"1,219.58",Choice Support,GRANTS & EX GRATIA PAYMENTS,Peoples Services,Supported Living,A56088,0
London Borough of Sutton,19/01/2023,50309823,"3,215.23",Choice Support,GRANTS & EX GRATIA PAYMENTS,Peoples Services,Supported Living,A56088,0
London Borough of Sutton,19/01/2023,50309827,902.23,Choice Support,GRANTS & EX GRATIA PAYMENTS,Peoples Services,Supported Living,A56088,0
London Borough of Sutton,19/01/2023,50309827,"4,286.95",Choice Support,GRANTS & EX GRATIA PAYMENTS,Peoples Services,Supported Living,A56088,0
London Borough of Sutton,19/01/2023,50309830,"1,127.78",Choice Support,GRANTS & EX GRATIA PAYMENTS,Peoples Services,Supported Living,A56088,0
London Borough of Sutton,19/01/2023,50309830,"1,219.58",Choice Support,GRANTS & EX GRATIA PAYMENTS,Peoples Services,Supported Living,A56088,0
London Borough of Sutton,19/01/2023,50309830,"3,326.08",Choice Support,GRANTS & EX GRATIA PAYMENTS,Peoples Services,Supported Living,A56088,0
London Borough of Sutton,19/01/2023,50309837,902.23,Choice Support,GRANTS & EX GRATIA PAYMENTS,Peoples Services,Supported Living,A56088,0
London Borough of Sutton,19/01/2023,50309837,868.49,Choice Support,GRANTS & EX GRATIA PAYMENTS,Peoples Services,Supported Living,A56088,0
London Borough of Sutton,19/01/2023,50309837,"4,286.95",Choice Support,GRANTS & EX GRATIA PAYMENTS,Peoples Services,Supported Living,A56088,0
London Borough of Sutton,19/01/2023,50309839,902.23,Choice Support,GRANTS & EX GRATIA PAYMENTS,Peoples Services,Supported Living,A56088,0
London Borough of Sutton,19/01/2023,50309839,868.49,Choice Support,GRANTS & EX GRATIA PAYMENTS,Peoples Services,Supported Living,A56088,0
London Borough of Sutton,19/01/2023,50309839,"2,550.02",Choice Support,GRANTS & EX GRATIA PAYMENTS,Peoples Services,Supported Living,A56088,0
London Borough of Sutton,19/01/2023,50309845,"3,567.48",Choice Support,GRANTS & EX GRATIA PAYMENTS,Peoples Services,Supported Living,A56088,0
London Borough of Sutton,19/01/2023,50309847,902.23,Choice Support,GRANTS & EX GRATIA PAYMENTS,Peoples Services,Supported Living,A56088,0
London Borough of Sutton,19/01/2023,50309847,868.49,Choice Support,GRANTS & EX GRATIA PAYMENTS,Peoples Services,Supported Living,A56088,0
London Borough of Sutton,19/01/2023,50309847,"3,584.80",Choice Support,GRANTS & EX GRATIA PAYMENTS,Peoples Services,Supported Living,A56088,0
London Borough of Sutton,19/01/2023,50309848,"1,127.78",Choice Support,GRANTS & EX GRATIA PAYMENTS,Peoples Services,Supported Living,A56088,0
London Borough of Sutton,19/01/2023,50309848,"1,219.58",Choice Support,GRANTS & EX GRATIA PAYMENTS,Peoples Services,Supported Living,A56088,0
London Borough of Sutton,19/01/2023,50309848,"3,399.99",Choice Support,GRANTS & EX GRATIA PAYMENTS,Peoples Services,Supported Living,A56088,0
London Borough of Sutton,19/01/2023,50309854,"1,127.78",Choice Support,GRANTS & EX GRATIA PAYMENTS,Peoples Services,Supported Living,A56088,0
London Borough of Sutton,19/01/2023,50309854,"1,219.58",Choice Support,GRANTS & EX GRATIA PAYMENTS,Peoples Services,Supported Living,A56088,0
London Borough of Sutton,19/01/2023,50309854,"5,395.64",Choice Support,GRANTS & EX GRATIA PAYMENTS,Peoples Services,Supported Living,A56088,0
London Borough of Sutton,20/01/2023,50310201,"5,716.12",Choice Support,GRANTS & EX GRATIA PAYMENTS,Peoples Services,Residential Care - Ext Provider,A56114,0
London Borough of Sutton,25/01/2023,50311971,"6,295.80",Choice Support,GRANTS & EX GRATIA PAYMENTS,Peoples Services,Home Care Services,A56019,0
London Borough of Sutton,10/01/2023,50302281,"1,092.36",Christchurch Fledgelings Pre-School,GRANTS & EX GRATIA PAYMENTS,Peoples Services,Payment - Nursery Funding,A51056,0
London Borough of Sutton,10/01/2023,50302342,"14,035.03",Christchurch Fledgelings Pre-School,GRANTS & EX GRATIA PAYMENTS,Peoples Services,Payment - Nursery Funding,A51056,0
London Borough of Sutton,08/01/2023,20040508,"1,096.98",REDACTED - PERSONAL DATA,GRANTS & EX GRATIA PAYMENTS,Environment Housing and Neighbourhoods,Temporary Protection - Homeless Persons,A62028,0
London Borough of Sutton,23/12/2022,20039459,"4,475.56",Chroma Vision Limited,AGRICULTURAL & ESTATE SERVICES,Environment Housing and Neighbourhoods,IT Software Purchase,A45040,0
London Borough of Sutton,20/10/2022,20040149,"2,437.50",CIPFA Business Limited,CONFERENCES,Resources,Consultancy Services,A56007,0
London Borough of Sutton,11/01/2023,20040280,"23,400.00",CIPFA Business Limited,CONFERENCES,Health and Wellbeing,Consultancy Services,A56007,0
London Borough of Sutton,14/11/2022,50308102,"2,185.00",Barrow Hedges Primary School Academy,GRANTS & EX GRATIA PAYMENTS,Peoples Services,Special Educational Needs,A51015,0
London Borough of Sutton,23/01/2023,50310904,"1,920.00",Barrow Hedges Primary School Academy,GRANTS & EX GRATIA PAYMENTS,Resources,"Grants, Contributions & Donations",A47005,0
London Borough of Sutton,31/01/2023,50312852,"18,247.68",Barrow Hedges Primary School Academy,GRANTS & EX GRATIA PAYMENTS,Peoples Services,Place Funding,A56110,0
London Borough of Sutton,01/01/2023,20039762,"9,626.00",Cityglen Ltd,ACCOMMODATION BED & BREAKFAST,Environment Housing and Neighbourhoods,Bed & Breakfast,A56000,0
London Borough of Sutton,28/11/2022,20039837,"1,485.00",Civica UK Ltd,BUSINESS & COMPUTER SYSTEMS,Resources,IT Software Purchase,A45040,0
London Borough of Sutton,20/01/2023,50310305,"4,525.36",Claremont Care Svs Ltd,SOCIAL SERVICES RESIDENTIAL,Peoples Services,Nursing Care - Ext Provider,A56025,0
London Borough of Sutton,20/01/2023,50310305,-750.40,Claremont Care Svs Ltd,SOCIAL SERVICES RESIDENTIAL,Peoples Services,Nursing Care - 3rd party top up payment,A56023,0
London Borough of Sutton,20/01/2023,50310328,"6,236.76",Claremont Care Svs Ltd,SOCIAL SERVICES RESIDENTIAL,Peoples Services,Nursing Care Short Term,A56026,0
London Borough of Sutton,20/01/2023,50310328,-836.76,Claremont Care Svs Ltd,SOCIAL SERVICES RESIDENTIAL,Peoples Services,Nursing Care - 3rd party top up payment,A56023,0
London Borough of Sutton,20/01/2023,50310451,"3,848.24",Claremont Care Svs Ltd,SOCIAL SERVICES RESIDENTIAL,Peoples Services,Nursing Care - Ext Provider,A56025,0
London Borough of Sutton,20/01/2023,50310451,-750.40,Claremont Care Svs Ltd,SOCIAL SERVICES RESIDENTIAL,Peoples Services,Nursing Care - 3rd party top up payment,A56023,0
London Borough of Sutton,20/01/2023,50310456,"6,236.76",Claremont Care Svs Ltd,SOCIAL SERVICES RESIDENTIAL,Peoples Services,Nursing Care - Ext Provider,A56025,0
London Borough of Sutton,20/01/2023,50310456,-836.76,Claremont Care Svs Ltd,SOCIAL SERVICES RESIDENTIAL,Peoples Services,Nursing Care - 3rd party top up payment,A56023,0
London Borough of Sutton,20/01/2023,50310522,"6,487.64",Claremont Care Svs Ltd,SOCIAL SERVICES RESIDENTIAL,Peoples Services,Nursing Care - Ext Provider,A56025,0
London Borough of Sutton,20/01/2023,50310522,-750.40,Claremont Care Svs Ltd,SOCIAL SERVICES RESIDENTIAL,Peoples Services,Nursing Care - 3rd party top up payment,A56023,0
London Borough of Sutton,20/01/2023,50310523,"14,613.88",Claremont Care Svs Ltd,SOCIAL SERVICES RESIDENTIAL,Peoples Services,Nursing Care - Ext Provider,A56025,0
London Borough of Sutton,20/01/2023,50310523,"-11,424.00",Claremont Care Svs Ltd,SOCIAL SERVICES RESIDENTIAL,Peoples Services,Nursing Care - 3rd party top up payment,A56023,0
London Borough of Sutton,20/01/2023,50310567,"6,513.96",Claremont Care Svs Ltd,SOCIAL SERVICES RESIDENTIAL,Peoples Services,Nursing Care - Ext Provider,A56025,0
London Borough of Sutton,20/01/2023,50310567,-836.76,Claremont Care Svs Ltd,SOCIAL SERVICES RESIDENTIAL,Peoples Services,Nursing Care - 3rd party top up payment,A56023,0
London Borough of Sutton,20/01/2023,50310573,-735.68,Claremont Care Svs Ltd,SOCIAL SERVICES RESIDENTIAL,Peoples Services,Nursing Care - 3rd party top up payment,A56023,0
London Borough of Sutton,20/01/2023,50310573,"5,367.84",Claremont Care Svs Ltd,SOCIAL SERVICES RESIDENTIAL,Peoples Services,Nursing Care - Ext Provider,A56025,0
London Borough of Sutton,20/01/2023,50310117,-735.68,Bondcare (London) Ltd,SOCIAL SERVICES RESIDENTIAL,Peoples Services,Nursing Care - 3rd party top up payment,A56023,0
London Borough of Sutton,20/01/2023,50310117,"3,720.16",Bondcare (London) Ltd,SOCIAL SERVICES RESIDENTIAL,Peoples Services,Nursing Care - Ext Provider,A56025,0
London Borough of Sutton,17/01/2023,50308097,896.00,REDACTED - PERSONAL DATA,CHILDREN'S SERVICES - SEN SERVICES,Peoples Services,Special Educational Needs,A51015,0
London Borough of Sutton,11/01/2023,50308065,607.56,Classroom Teachers Ltd,ACADEMIC INSTNS - OTHER,Peoples Services,Independent School Fees,A56002,0
London Borough of Sutton,05/01/2023,50307456,"2,439.02",Clear Thinking Care Limited,SOCIAL SERVICES RESIDENTIAL,Peoples Services,Supported Living,A56088,0
London Borough of Sutton,05/01/2023,50307457,"2,439.02",Clear Thinking Care Limited,SOCIAL SERVICES RESIDENTIAL,Peoples Services,Supported Living,A56088,0
London Borough of Sutton,05/01/2023,50307459,"2,439.02",Clear Thinking Care Limited,SOCIAL SERVICES RESIDENTIAL,Peoples Services,Supported Living,A56088,0
London Borough of Sutton,05/01/2023,50307460,"2,439.02",Clear Thinking Care Limited,SOCIAL SERVICES RESIDENTIAL,Peoples Services,Supported Living,A56088,0
London Borough of Sutton,05/01/2023,50307461,"2,439.02",Clear Thinking Care Limited,SOCIAL SERVICES RESIDENTIAL,Peoples Services,Supported Living,A56088,0
London Borough of Sutton,05/01/2023,50307463,"2,787.46",Clear Thinking Care Limited,SOCIAL SERVICES RESIDENTIAL,Peoples Services,Supported Living,A56088,0
London Borough of Sutton,05/01/2023,50307464,"2,439.02",Clear Thinking Care Limited,SOCIAL SERVICES RESIDENTIAL,Peoples Services,Supported Living,A56088,0
London Borough of Sutton,05/01/2023,50307465,"2,439.02",Clear Thinking Care Limited,SOCIAL SERVICES RESIDENTIAL,Peoples Services,Supported Living,A56088,0
London Borough of Sutton,05/01/2023,50307466,"2,439.02",Clear Thinking Care Limited,SOCIAL SERVICES RESIDENTIAL,Peoples Services,Supported Living,A56088,0
London Borough of Sutton,05/01/2023,50307467,"2,787.46",Clear Thinking Care Limited,SOCIAL SERVICES RESIDENTIAL,Peoples Services,Supported Living,A56088,0
London Borough of Sutton,05/01/2023,50307468,"2,439.02",Clear Thinking Care Limited,SOCIAL SERVICES RESIDENTIAL,Peoples Services,Supported Living,A56088,0
London Borough of Sutton,05/01/2023,50307469,"2,439.02",Clear Thinking Care Limited,SOCIAL SERVICES RESIDENTIAL,Peoples Services,Supported Living,A56088,0
London Borough of Sutton,05/01/2023,50307470,"2,439.02",Clear Thinking Care Limited,SOCIAL SERVICES RESIDENTIAL,Peoples Services,Supported Living,A56088,0
London Borough of Sutton,18/01/2023,50309554,"2,439.02",Clear Thinking Care Limited,SOCIAL SERVICES RESIDENTIAL,Peoples Services,Supported Living,A56088,0
London Borough of Sutton,23/01/2023,50311684,"2,439.02",Clear Thinking Care Limited,SOCIAL SERVICES RESIDENTIAL,Peoples Services,Supported Living,A56088,0
London Borough of Sutton,22/12/2022,20039484,"1,734.00",Clemlec Group LTD,BUILDING MNTCE - SERVICES,Environment Housing and Neighbourhoods,Grants Given For Capital Purposes,C20004,0
London Borough of Sutton,19/01/2023,50309850,"-4,287.43",CLIA CARE LTD,SOCIAL SERVICES RESIDENTIAL,Peoples Services,Nursing Care - 3rd party top up payment,A56023,0
London Borough of Sutton,19/01/2023,50309850,"3,886.47",CLIA CARE LTD,SOCIAL SERVICES RESIDENTIAL,Peoples Services,Supported Living,A56088,0
London Borough of Sutton,19/01/2023,50309850,731.60,CLIA CARE LTD,SOCIAL SERVICES RESIDENTIAL,Peoples Services,Supported Living,A56088,0
London Borough of Sutton,19/01/2023,50309850,"1,097.00",CLIA CARE LTD,SOCIAL SERVICES RESIDENTIAL,Peoples Services,Supported Living,A56088,0
London Borough of Sutton,19/01/2023,50309850,"2,859.75",CLIA CARE LTD,SOCIAL SERVICES RESIDENTIAL,Peoples Services,One to One Care,A56108,0
London Borough of Sutton,01/01/2023,50301513,725.58,Clovecare Ltd,SOCIAL SERVICES RESIDENTIAL,Peoples Services,Home Care Services,A56019,0
London Borough of Sutton,01/01/2023,50301532,677.58,Clovecare Ltd,SOCIAL SERVICES RESIDENTIAL,Peoples Services,Home Care Services,A56019,0
London Borough of Sutton,01/01/2023,50301537,966.29,Clovecare Ltd,SOCIAL SERVICES RESIDENTIAL,Peoples Services,Home Care Services,A56019,0
London Borough of Sutton,01/01/2023,50301537,70.33,Clovecare Ltd,SOCIAL SERVICES RESIDENTIAL,Peoples Services,Home Care Services,A56019,0
London Borough of Sutton,25/12/2022,50301647,645.00,Clovecare Ltd,SOCIAL SERVICES RESIDENTIAL,Peoples Services,Home Care Services,A56019,0
London Borough of Sutton,25/12/2022,50301708,919.98,Clovecare Ltd,SOCIAL SERVICES RESIDENTIAL,Peoples Services,Home Care Services,A56019,0
London Borough of Sutton,25/12/2022,50301708,46.88,Clovecare Ltd,SOCIAL SERVICES RESIDENTIAL,Peoples Services,Home Care Services,A56019,0
London Borough of Sutton,25/12/2022,50301743,645.00,Clovecare Ltd,SOCIAL SERVICES RESIDENTIAL,Peoples Services,Home Care Services,A56019,0
London Borough of Sutton,08/01/2023,50306563,867.01,Clovecare Ltd,SOCIAL SERVICES RESIDENTIAL,Peoples Services,Home Care Services,A56019,0
London Borough of Sutton,08/01/2023,50306563,46.88,Clovecare Ltd,SOCIAL SERVICES RESIDENTIAL,Peoples Services,Home Care Services,A56019,0
London Borough of Sutton,08/01/2023,50306612,613.29,Clovecare Ltd,SOCIAL SERVICES RESIDENTIAL,Peoples Services,Home Care Services,A56019,0
London Borough of Sutton,08/01/2023,50306719,613.29,Clovecare Ltd,SOCIAL SERVICES RESIDENTIAL,Peoples Services,Home Care Services,A56019,0
London Borough of Sutton,15/01/2023,50310884,852.23,Clovecare Ltd,SOCIAL SERVICES RESIDENTIAL,Peoples Services,Home Care Services,A56019,0
London Borough of Sutton,15/01/2023,50310884,47.88,Clovecare Ltd,SOCIAL SERVICES RESIDENTIAL,Peoples Services,Home Care Services,A56019,0
London Borough of Sutton,15/01/2023,50310889,597.00,Clovecare Ltd,SOCIAL SERVICES RESIDENTIAL,Peoples Services,Home Care Services,A56019,0
London Borough of Sutton,15/01/2023,50310896,597.00,Clovecare Ltd,SOCIAL SERVICES RESIDENTIAL,Peoples Services,Home Care Services,A56019,0
London Borough of Sutton,22/01/2023,50311982,597.00,Clovecare Ltd,SOCIAL SERVICES RESIDENTIAL,Peoples Services,Home Care Services,A56019,0
London Borough of Sutton,22/01/2023,50312021,852.23,Clovecare Ltd,SOCIAL SERVICES RESIDENTIAL,Peoples Services,Home Care Services,A56019,0
London Borough of Sutton,22/01/2023,50312021,47.88,Clovecare Ltd,SOCIAL SERVICES RESIDENTIAL,Peoples Services,Home Care Services,A56019,0
London Borough of Sutton,22/01/2023,50312044,597.00,Clovecare Ltd,SOCIAL SERVICES RESIDENTIAL,Peoples Services,Home Care Services,A56019,0
London Borough of Sutton,20/01/2023,50310189,"4,234.16",Coast Care Homes Ltd,SOCIAL SERVICES RESIDENTIAL,Peoples Services,Residential Care - Ext Provider,A56114,0
London Borough of Sutton,20/01/2023,50310193,"12,960.16",Cognithan Ltd,SOCIAL SERVICES RESIDENTIAL,Peoples Services,Residential Care - Ext Provider,A56114,0
London Borough of Sutton,04/09/2022,20031510,"150,275.00",Cognus Ltd,LEGAL & PROFESSIONAL SERVICES,Peoples Services,Consultancy Services,A56007,0
London Borough of Sutton,04/09/2022,20031512,"133,895.33",Cognus Ltd,LEGAL & PROFESSIONAL SERVICES,Peoples Services,Special Educational Needs,A51015,0
London Borough of Sutton,04/09/2022,20031513,"133,895.33",Cognus Ltd,LEGAL & PROFESSIONAL SERVICES,Peoples Services,Special Educational Needs,A51015,0
London Borough of Sutton,04/10/2022,20033405,"42,533.33",Cognus Ltd,LEGAL & PROFESSIONAL SERVICES,Peoples Services,Consultancy Services,A56007,0
London Borough of Sutton,04/10/2022,20033406,"133,895.33",Cognus Ltd,LEGAL & PROFESSIONAL SERVICES,Peoples Services,Special Educational Needs,A51015,0
London Borough of Sutton,04/10/2022,20033407,"14,404.17",Cognus Ltd,LEGAL & PROFESSIONAL SERVICES,Peoples Services,Consultancy Services,A56007,0
London Borough of Sutton,04/10/2022,20033408,"14,404.17",Cognus Ltd,LEGAL & PROFESSIONAL SERVICES,Peoples Services,Consultancy Services,A56007,0
London Borough of Sutton,04/10/2022,20033409,"150,275.00",Cognus Ltd,LEGAL & PROFESSIONAL SERVICES,Peoples Services,Consultancy Services,A56007,0
London Borough of Sutton,04/10/2022,20033410,"133,895.33",Cognus Ltd,LEGAL & PROFESSIONAL SERVICES,Peoples Services,Special Educational Needs,A51015,0
London Borough of Sutton,04/12/2022,20038094,"150,275.00",Cognus Ltd,LEGAL & PROFESSIONAL SERVICES,Peoples Services,Consultancy Services,A56007,0
London Borough of Sutton,04/12/2022,20038096,"218,108.33",Cognus Ltd,LEGAL & PROFESSIONAL SERVICES,Peoples Services,Consultancy Services,A56007,0
London Borough of Sutton,06/12/2022,20039390,"3,300.51",Cognus Ltd,LEGAL & PROFESSIONAL SERVICES,Peoples Services,Other Supplies & Services,A44291,0
London Borough of Sutton,04/01/2023,20039750,"150,275.00",Cognus Ltd,LEGAL & PROFESSIONAL SERVICES,Peoples Services,Consultancy Services,A56007,0
London Borough of Sutton,04/01/2023,20039751,"14,404.17",Cognus Ltd,LEGAL & PROFESSIONAL SERVICES,Peoples Services,Consultancy Services,A56007,0
London Borough of Sutton,04/01/2023,20039752,"42,533.33",Cognus Ltd,LEGAL & PROFESSIONAL SERVICES,Peoples Services,Consultancy Services,A56007,0
London Borough of Sutton,04/01/2023,20039753,"14,404.17",Cognus Ltd,LEGAL & PROFESSIONAL SERVICES,Peoples Services,Consultancy Services,A56007,0
London Borough of Sutton,04/01/2023,20039754,"133,895.33",Cognus Ltd,LEGAL & PROFESSIONAL SERVICES,Peoples Services,Special Educational Needs,A51015,0
London Borough of Sutton,04/01/2023,20039756,"133,895.33",Cognus Ltd,LEGAL & PROFESSIONAL SERVICES,Peoples Services,Special Educational Needs,A51015,0
London Borough of Sutton,23/01/2023,50311862,"1,002.60",Cognus Ltd,LEGAL & PROFESSIONAL SERVICES,Peoples Services,Special Educational Needs,A51015,0
London Borough of Sutton,20/01/2023,50310141,"11,981.04",Coleg Elidyr Camphill Communities,CHILDREN'S SERVICES - RESIDENTIAL,Peoples Services,Interim Placements - Ext Provider,A56102,0
London Borough of Sutton,10/01/2023,50302343,"11,860.99",Collingwood School Ltd,GRANTS & EX GRATIA PAYMENTS,Peoples Services,Payment - Nursery Funding,A51056,0
London Borough of Sutton,03/01/2023,50299478,"-2,266.24",Comfort Care Services UK Ltd,SOCIAL SERVICES - DIRECT PAYMENTS,Peoples Services,Nursing Care - 3rd party top up payment,A56023,0
London Borough of Sutton,03/01/2023,50299478,"3,441.39",Comfort Care Services UK Ltd,SOCIAL SERVICES - DIRECT PAYMENTS,Peoples Services,Supported Living,A56088,0
London Borough of Sutton,12/01/2023,20040418,"83,060.00",Community Action Sutton,GRANTS & EX GRATIA PAYMENTS,Environment Housing and Neighbourhoods,Payments to Voluntary Organisations,A54005,0
London Borough of Sutton,01/12/2022,50302741,"3,487.81",Compass Fostering London Ltd,CHILDREN'S SERVICES - FOSTERING & ADOPTION SERVICES,Peoples Services,Foster Parents Support,A44110,0
London Borough of Sutton,01/12/2022,50302742,"3,340.56",Compass Fostering London Ltd,CHILDREN'S SERVICES - FOSTERING & ADOPTION SERVICES,Peoples Services,Foster Parents Support,A44110,0
London Borough of Sutton,01/12/2022,50302778,"3,720.00",Compass Fostering London Ltd,CHILDREN'S SERVICES - FOSTERING & ADOPTION SERVICES,Peoples Services,Foster Parents Support,A44110,0
London Borough of Sutton,01/12/2022,50302699,"4,230.88",Compass Fostering South Ltd,CHILDREN'S SERVICES - FOSTERING & ADOPTION SERVICES,Peoples Services,Foster Parents Support,A44110,0
London Borough of Sutton,21/12/2022,50299172,"1,255.41",Compass Fostering West Ltd,CHILDREN'S SERVICES - FOSTERING & ADOPTION SERVICES,Peoples Services,Foster Parents Support,A44110,0
London Borough of Sutton,01/12/2022,20038865,"6,506.32",Compass Minerals,OFFICE SUPPLIES,Environment Housing and Neighbourhoods,Purchases and Repairs Fixtures & Fittings,A25005,0
London Borough of Sutton,15/12/2022,20038954,"1,629.48",Compass Minerals,OFFICE SUPPLIES,Environment Housing and Neighbourhoods,Purchases and Repairs Fixtures & Fittings,A25005,0
London Borough of Sutton,16/12/2022,20039008,"1,630.64",Compass Minerals,OFFICE SUPPLIES,Environment Housing and Neighbourhoods,Purchases and Repairs Fixtures & Fittings,A25005,0
London Borough of Sutton,19/12/2022,20039255,"1,599.31",Compass Minerals,OFFICE SUPPLIES,Environment Housing and Neighbourhoods,Purchases and Repairs Fixtures & Fittings,A25005,0
London Borough of Sutton,09/01/2023,50305947,"3,875.00",Connect Fostering Services Ltd,CHILDREN'S SERVICES - FOSTERING & ADOPTION SERVICES,Peoples Services,Foster Parents Support,A44110,0
London Borough of Sutton,10/01/2023,50302381,"16,267.88",Co-operative Childcare,GRANTS & EX GRATIA PAYMENTS,Peoples Services,Payment - Nursery Funding,A51056,0
London Borough of Sutton,30/11/2022,20037792,827.45,REDACTED - PERSONAL DATA,FOSTER PARENTS,Peoples Services,Client Care/Assistance,A61011,0
London Borough of Sutton,20/01/2023,50310112,"7,838.01",Cream 1 Ltd,SOCIAL SERVICES RESIDENTIAL,Peoples Services,Residential Care - Ext Provider,A56114,0
London Borough of Sutton,20/01/2023,50310112,"5,560.52",Cream 1 Ltd,SOCIAL SERVICES RESIDENTIAL,Peoples Services,One to One Care,A56108,0
London Borough of Sutton,13/12/2022,50302732,"6,957.29",Credo Care Limited,CHILDREN'S SERVICE - OTHER,Peoples Services,Foster Parents Support,A44110,0
London Borough of Sutton,20/01/2023,50310278,-209.19,CRNH Ltd,SOCIAL SERVICES RESIDENTIAL,Peoples Services,Nursing Care - 3rd party top up payment,A56023,0
London Borough of Sutton,20/01/2023,50310278,"5,320.00",CRNH Ltd,SOCIAL SERVICES RESIDENTIAL,Peoples Services,Nursing Care Short Term,A56026,0
London Borough of Sutton,20/01/2023,50310307,"-2,882.74",CRNH Ltd,SOCIAL SERVICES RESIDENTIAL,Peoples Services,Nursing Care Short Term,A56026,0
London Borough of Sutton,20/01/2023,50310307,670.00,CRNH Ltd,SOCIAL SERVICES RESIDENTIAL,Peoples Services,Nursing Care - 3rd party top up payment,A56023,0
London Borough of Sutton,20/01/2023,50310394,"3,848.24",CRNH Ltd,SOCIAL SERVICES RESIDENTIAL,Peoples Services,Nursing Care - Ext Provider,A56025,0
London Borough of Sutton,20/01/2023,50310394,-750.40,CRNH Ltd,SOCIAL SERVICES RESIDENTIAL,Peoples Services,Nursing Care - 3rd party top up payment,A56023,0
London Borough of Sutton,20/01/2023,50310426,"3,609.96",CRNH Ltd,SOCIAL SERVICES RESIDENTIAL,Peoples Services,Nursing Care - Ext Provider,A56025,0
London Borough of Sutton,20/01/2023,50310426,-632.64,CRNH Ltd,SOCIAL SERVICES RESIDENTIAL,Peoples Services,Nursing Care - 3rd party top up payment,A56023,0
London Borough of Sutton,20/01/2023,50310461,"3,664.08",CRNH Ltd,SOCIAL SERVICES RESIDENTIAL,Peoples Services,Nursing Care - Ext Provider,A56025,0
London Borough of Sutton,20/01/2023,50310461,-662.24,CRNH Ltd,SOCIAL SERVICES RESIDENTIAL,Peoples Services,Nursing Care - 3rd party top up payment,A56023,0
London Borough of Sutton,20/01/2023,50310486,"5,400.00",CRNH Ltd,SOCIAL SERVICES RESIDENTIAL,Peoples Services,Nursing Care Short Term,A56026,0
London Borough of Sutton,20/01/2023,50310486,-836.76,CRNH Ltd,SOCIAL SERVICES RESIDENTIAL,Peoples Services,Nursing Care - 3rd party top up payment,A56023,0
London Borough of Sutton,20/01/2023,50310510,"4,021.24",CRNH Ltd,SOCIAL SERVICES RESIDENTIAL,Peoples Services,Nursing Care - Ext Provider,A56025,0
London Borough of Sutton,20/01/2023,50310510,-750.40,CRNH Ltd,SOCIAL SERVICES RESIDENTIAL,Peoples Services,Nursing Care - 3rd party top up payment,A56023,0
London Borough of Sutton,20/01/2023,50310527,"3,720.16",CRNH Ltd,SOCIAL SERVICES RESIDENTIAL,Peoples Services,Nursing Care - Ext Provider,A56025,0
London Borough of Sutton,20/01/2023,50310527,-735.68,CRNH Ltd,SOCIAL SERVICES RESIDENTIAL,Peoples Services,Nursing Care - 3rd party top up payment,A56023,0
London Borough of Sutton,20/01/2023,50310637,-735.68,CRNH Ltd,SOCIAL SERVICES RESIDENTIAL,Peoples Services,Nursing Care - 3rd party top up payment,A56023,0
London Borough of Sutton,20/01/2023,50310637,"3,720.16",CRNH Ltd,SOCIAL SERVICES RESIDENTIAL,Peoples Services,Nursing Care - Ext Provider,A56025,0
London Borough of Sutton,20/01/2023,50310379,"3,821.24",Cross Care Services Ltd,SOCIAL SERVICES RESIDENTIAL,Peoples Services,Nursing Care - Ext Provider,A56025,0
London Borough of Sutton,20/01/2023,50310379,-836.76,Cross Care Services Ltd,SOCIAL SERVICES RESIDENTIAL,Peoples Services,Nursing Care - 3rd party top up payment,A56023,0
London Borough of Sutton,20/01/2023,50310388,"-3,054.35",Cross Care Services Ltd,SOCIAL SERVICES RESIDENTIAL,Peoples Services,Nursing Care - Ext Provider,A56025,0
London Borough of Sutton,20/01/2023,50310388,709.41,Cross Care Services Ltd,SOCIAL SERVICES RESIDENTIAL,Peoples Services,Nursing Care - 3rd party top up payment,A56023,0
London Borough of Sutton,20/01/2023,50310391,"3,720.16",Cross Care Services Ltd,SOCIAL SERVICES RESIDENTIAL,Peoples Services,Nursing Care - Ext Provider,A56025,0
London Borough of Sutton,20/01/2023,50310391,-735.68,Cross Care Services Ltd,SOCIAL SERVICES RESIDENTIAL,Peoples Services,Nursing Care - 3rd party top up payment,A56023,0
London Borough of Sutton,20/01/2023,50310398,"-4,452.76",Cross Care Services Ltd,SOCIAL SERVICES RESIDENTIAL,Peoples Services,Nursing Care - 3rd party top up payment,A56023,0
London Borough of Sutton,20/01/2023,50310398,"35,309.90",Cross Care Services Ltd,SOCIAL SERVICES RESIDENTIAL,Peoples Services,Nursing Care Short Term,A56026,0
London Borough of Sutton,20/01/2023,50310515,"5,322.44",Cross Care Services Ltd,SOCIAL SERVICES RESIDENTIAL,Peoples Services,Nursing Care - Ext Provider,A56025,0
London Borough of Sutton,20/01/2023,50310515,"-1,165.49",Cross Care Services Ltd,SOCIAL SERVICES RESIDENTIAL,Peoples Services,Nursing Care - 3rd party top up payment,A56023,0
London Borough of Sutton,20/01/2023,50310521,"3,734.88",Cross Care Services Ltd,SOCIAL SERVICES RESIDENTIAL,Peoples Services,Nursing Care - Ext Provider,A56025,0
London Borough of Sutton,20/01/2023,50310521,-750.40,Cross Care Services Ltd,SOCIAL SERVICES RESIDENTIAL,Peoples Services,Nursing Care - 3rd party top up payment,A56023,0
London Borough of Sutton,20/01/2023,50310581,"3,720.16",Cross Care Services Ltd,SOCIAL SERVICES RESIDENTIAL,Peoples Services,Nursing Care - Ext Provider,A56025,0
London Borough of Sutton,20/01/2023,50310581,-735.68,Cross Care Services Ltd,SOCIAL SERVICES RESIDENTIAL,Peoples Services,Nursing Care - 3rd party top up payment,A56023,0
London Borough of Sutton,20/01/2023,50310634,"3,633.76",Cross Care Services Ltd,SOCIAL SERVICES RESIDENTIAL,Peoples Services,Nursing Care - Ext Provider,A56025,0
London Borough of Sutton,01/12/2022,20038526,"7,834.63",LONDON BOROUGH OF CROYDON,CENTRAL & LOCAL GOVERNMENT,Resources,Building Rents,A22005,0
London Borough of Sutton,09/12/2022,20038761,"49,881.59",LONDON BOROUGH OF CROYDON,CENTRAL & LOCAL GOVERNMENT,Environment Housing and Neighbourhoods,Civic Amenity,A56052,0
London Borough of Sutton,08/01/2023,20038763,"609,711.91",LONDON BOROUGH OF CROYDON,CENTRAL & LOCAL GOVERNMENT,Environment Housing and Neighbourhoods,Gate Fee Tonnage,A56072,0
London Borough of Sutton,02/09/2022,20039788,"4,139.33",LONDON BOROUGH OF CROYDON,CENTRAL & LOCAL GOVERNMENT,Environment Housing and Neighbourhoods,Idverde - Contract Payment,A56100,0
London Borough of Sutton,31/12/2022,20039648,"1,085.00",Croydon Court Ltd,ACCOMMODATION BED & BREAKFAST,Peoples Services,Temporary Residential Accommodation,A44140,0
London Borough of Sutton,31/12/2022,20039650,"8,445.00",Croydon Court Ltd,ACCOMMODATION BED & BREAKFAST,Environment Housing and Neighbourhoods,Bed & Breakfast,A56000,0
London Borough of Sutton,20/01/2023,50310133,"8,118.44",CSS Ltd,SOCIAL SERVICES RESIDENTIAL,Peoples Services,Residential Care - Ext Provider,A56114,0
London Borough of Sutton,17/01/2023,50307386,683.76,CSS Ltd,SOCIAL SERVICES RESIDENTIAL,Peoples Services,Day Care Services,A56021,0
London Borough of Sutton,10/01/2023,50302001,"174,548.46",Culvers House Primary School,GRANTS & EX GRATIA PAYMENTS,Peoples Services,Payments to Schools,A51013,0
London Borough of Sutton,10/01/2023,50302070,"5,528.25",Culvers House Primary School,GRANTS & EX GRATIA PAYMENTS,Peoples Services,Payment - school led tutoring grant,A51060,0
London Borough of Sutton,10/01/2023,50302099,"4,930.00",Culvers House Primary School,GRANTS & EX GRATIA PAYMENTS,Peoples Services,Payment - Covid 19 Recovery Premium,A51039,0
London Borough of Sutton,10/01/2023,50302122,"45,358.75",Culvers House Primary School,GRANTS & EX GRATIA PAYMENTS,Peoples Services,Payment - Deprivation Pupil Premium,A51030,0
London Borough of Sutton,10/01/2023,50302145,"1,807.50",Culvers House Primary School,GRANTS & EX GRATIA PAYMENTS,Peoples Services,Payment - Post-LAC Pupil Premium,A51032,0
London Borough of Sutton,10/01/2023,50302162,"-47,436.25",Culvers House Primary School,GRANTS & EX GRATIA PAYMENTS,Peoples Services,Payment - Deprivation Pupil Premium,A51030,0
London Borough of Sutton,23/01/2023,50310916,"4,650.00",Culvers House Primary School,GRANTS & EX GRATIA PAYMENTS,Resources,"Grants, Contributions & Donations",A47005,0
London Borough of Sutton,31/01/2023,50312859,"10,948.61",Culvers House Primary School,GRANTS & EX GRATIA PAYMENTS,Peoples Services,Place Funding,A56110,0
London Borough of Sutton,19/01/2023,50309833,"1,992.86",Curado Limited,GRANTS & EX GRATIA PAYMENTS,Peoples Services,Supported Living,A56088,0
London Borough of Sutton,20/01/2023,50310185,"5,810.56",Curado Limited,GRANTS & EX GRATIA PAYMENTS,Peoples Services,Interim Placements - Ext Provider,A56102,0
London Borough of Sutton,20/01/2023,50310161,-758.00,Cygnet Learning Disabilities Midlands Ltd,SOCIAL SERVICES RESIDENTIAL,Peoples Services,Residential Care - Client Cont ( Net Paymt ),A56113,0
London Borough of Sutton,20/01/2023,50310161,"6,827.40",Cygnet Learning Disabilities Midlands Ltd,SOCIAL SERVICES RESIDENTIAL,Peoples Services,Residential Care - Ext Provider,A56114,0
London Borough of Sutton,01/01/2023,20039659,"1,571.46",Angel Lettings,ACCOMMODATION BED & BREAKFAST,Environment Housing and Neighbourhoods,Temporary Protection - Homeless Persons,A62028,0
London Borough of Sutton,01/01/2023,20039660,"1,775.16",Dreamlettings,ACCOMMODATION BED & BREAKFAST,Environment Housing and Neighbourhoods,Temporary Protection - Homeless Persons,A62028,0
London Borough of Sutton,03/01/2023,20039793,"1,209.00",REDACTED - PERSONAL DATA,GRANTS & EX GRATIA PAYMENTS,Environment Housing and Neighbourhoods,Temporary Protection - Homeless Persons,A62028,0
London Borough of Sutton,31/12/2022,20039691,"2,077.00",Dellhome Limited,ACCOMMODATION BED & BREAKFAST,Environment Housing and Neighbourhoods,Bed & Breakfast,A56000,0
London Borough of Sutton,31/12/2022,20039692,"1,658.50",Dellhome Limited,ACCOMMODATION BED & BREAKFAST,Environment Housing and Neighbourhoods,Bed & Breakfast,A56000,0
London Borough of Sutton,31/12/2022,20039693,"1,658.50",Dellhome Limited,ACCOMMODATION BED & BREAKFAST,Environment Housing and Neighbourhoods,Bed & Breakfast,A56000,0
London Borough of Sutton,03/01/2023,20039616,"2,480.00",Delta Wise Limited,ACCOMMODATION BED & BREAKFAST,Environment Housing and Neighbourhoods,Bed & Breakfast,A56000,0
London Borough of Sutton,03/01/2023,20039617,"2,170.00",Delta Wise Limited,ACCOMMODATION BED & BREAKFAST,Environment Housing and Neighbourhoods,Bed & Breakfast,A56000,0
London Borough of Sutton,03/01/2023,20039618,640.00,Delta Wise Limited,ACCOMMODATION BED & BREAKFAST,Environment Housing and Neighbourhoods,Bed & Breakfast,A56000,0
London Borough of Sutton,03/01/2023,20039619,"2,604.00",Delta Wise Limited,ACCOMMODATION BED & BREAKFAST,Environment Housing and Neighbourhoods,Bed & Breakfast,A56000,0
London Borough of Sutton,03/01/2023,20039620,"1,116.00",Delta Wise Limited,ACCOMMODATION BED & BREAKFAST,Environment Housing and Neighbourhoods,Bed & Breakfast,A56000,0
London Borough of Sutton,03/01/2023,20039621,"2,976.00",Delta Wise Limited,ACCOMMODATION BED & BREAKFAST,Environment Housing and Neighbourhoods,Bed & Breakfast,A56000,0
London Borough of Sutton,03/01/2023,20039622,"2,480.00",Delta Wise Limited,ACCOMMODATION BED & BREAKFAST,Environment Housing and Neighbourhoods,Bed & Breakfast,A56000,0
London Borough of Sutton,03/01/2023,20039623,"1,116.00",Delta Wise Limited,ACCOMMODATION BED & BREAKFAST,Environment Housing and Neighbourhoods,Bed & Breakfast,A56000,0
London Borough of Sutton,03/01/2023,20039624,"2,565.00",Delta Wise Limited,ACCOMMODATION BED & BREAKFAST,Environment Housing and Neighbourhoods,Bed & Breakfast,A56000,0
London Borough of Sutton,03/01/2023,20039625,"2,635.00",Delta Wise Limited,ACCOMMODATION BED & BREAKFAST,Environment Housing and Neighbourhoods,Bed & Breakfast,A56000,0
London Borough of Sutton,03/01/2023,20039626,"3,255.00",Delta Wise Limited,ACCOMMODATION BED & BREAKFAST,Environment Housing and Neighbourhoods,Bed & Breakfast,A56000,0
London Borough of Sutton,03/01/2023,20039627,"1,296.00",Delta Wise Limited,ACCOMMODATION BED & BREAKFAST,Environment Housing and Neighbourhoods,Bed & Breakfast,A56000,0
London Borough of Sutton,03/01/2023,20039628,"3,720.00",Delta Wise Limited,ACCOMMODATION BED & BREAKFAST,Environment Housing and Neighbourhoods,Bed & Breakfast,A56000,0
London Borough of Sutton,03/01/2023,20039629,"2,170.00",Delta Wise Limited,ACCOMMODATION BED & BREAKFAST,Environment Housing and Neighbourhoods,Bed & Breakfast,A56000,0
London Borough of Sutton,04/01/2023,20039846,"1,612.00",Denhan Property Services,ACCOMMODATION BED & BREAKFAST,Environment Housing and Neighbourhoods,Bed & Breakfast,A56000,0
London Borough of Sutton,04/01/2023,20039847,"1,147.00",Denhan Property Services,ACCOMMODATION BED & BREAKFAST,Environment Housing and Neighbourhoods,Bed & Breakfast,A56000,0
London Borough of Sutton,04/01/2023,20039848,"1,929.75",Denhan Property Services,ACCOMMODATION BED & BREAKFAST,Environment Housing and Neighbourhoods,Bed & Breakfast,A56000,0
London Borough of Sutton,04/01/2023,20039849,992.00,Denhan Property Services,ACCOMMODATION BED & BREAKFAST,Environment Housing and Neighbourhoods,Bed & Breakfast,A56000,0
London Borough of Sutton,04/01/2023,20039851,"2,077.00",Denhan Property Services,ACCOMMODATION BED & BREAKFAST,Environment Housing and Neighbourhoods,Bed & Breakfast,A56000,0
London Borough of Sutton,04/01/2023,20039852,814.00,Denhan Property Services,ACCOMMODATION BED & BREAKFAST,Environment Housing and Neighbourhoods,Bed & Breakfast,A56000,0
London Borough of Sutton,04/01/2023,20039853,"1,860.00",Denhan Property Services,ACCOMMODATION BED & BREAKFAST,Environment Housing and Neighbourhoods,Bed & Breakfast,A56000,0
London Borough of Sutton,04/01/2023,20039854,740.00,Denhan Property Services,ACCOMMODATION BED & BREAKFAST,Environment Housing and Neighbourhoods,Bed & Breakfast,A56000,0
London Borough of Sutton,20/01/2023,50310167,"3,505.00",Denville Hall 2012,SOCIAL SERVICES RESIDENTIAL,Peoples Services,Residential Care - Ext Provider,A56114,0
London Borough of Sutton,20/01/2023,50310162,"3,175.04",Devaglade Trading Limited,SOCIAL SERVICES RESIDENTIAL,Peoples Services,Residential Care - Ext Provider,A56114,0
London Borough of Sutton,10/01/2023,50301994,"254,143.43",Devonshire Primary School,GRANTS & EX GRATIA PAYMENTS,Peoples Services,Payments to Schools,A51013,0
London Borough of Sutton,10/01/2023,50302063,"8,127.00",Devonshire Primary School,GRANTS & EX GRATIA PAYMENTS,Peoples Services,Payment - school led tutoring grant,A51060,0
London Borough of Sutton,10/01/2023,50302092,"6,706.25",Devonshire Primary School,GRANTS & EX GRATIA PAYMENTS,Peoples Services,Payment - Covid 19 Recovery Premium,A51039,0
London Borough of Sutton,10/01/2023,50302115,"63,017.50",Devonshire Primary School,GRANTS & EX GRATIA PAYMENTS,Peoples Services,Payment - Deprivation Pupil Premium,A51030,0
London Borough of Sutton,10/01/2023,50302141,602.50,Devonshire Primary School,GRANTS & EX GRATIA PAYMENTS,Peoples Services,Payment - Post-LAC Pupil Premium,A51032,0
London Borough of Sutton,10/01/2023,50302155,"-65,095.00",Devonshire Primary School,GRANTS & EX GRATIA PAYMENTS,Peoples Services,Payment - Deprivation Pupil Premium,A51030,0
London Borough of Sutton,10/01/2023,50302185,"4,816.70",Devonshire Primary School,GRANTS & EX GRATIA PAYMENTS,Peoples Services,Pupil Growth,A51014,0
London Borough of Sutton,10/01/2023,50304295,"4,816.80",Devonshire Primary School,GRANTS & EX GRATIA PAYMENTS,Peoples Services,Pupil Growth,A51014,0
London Borough of Sutton,10/01/2023,50304302,"4,816.80",Devonshire Primary School,GRANTS & EX GRATIA PAYMENTS,Peoples Services,Pupil Growth,A51014,0
London Borough of Sutton,10/01/2023,50304309,"4,816.80",Devonshire Primary School,GRANTS & EX GRATIA PAYMENTS,Peoples Services,Pupil Growth,A51014,0
London Borough of Sutton,10/01/2023,50304316,"4,816.80",Devonshire Primary School,GRANTS & EX GRATIA PAYMENTS,Peoples Services,Pupil Growth,A51014,0
London Borough of Sutton,23/01/2023,50310917,"5,910.00",Devonshire Primary School,GRANTS & EX GRATIA PAYMENTS,Resources,"Grants, Contributions & Donations",A47005,0
London Borough of Sutton,25/01/2023,50311908,"3,744.97",Devonshire Primary School,GRANTS & EX GRATIA PAYMENTS,Non-Service Cost Centres,Recharge-Teaching Staff,A10600,0
London Borough of Sutton,31/01/2023,50312158,549.50,Devonshire Primary School,GRANTS & EX GRATIA PAYMENTS,Peoples Services,Payments to Schools,A51013,0
London Borough of Sutton,31/01/2023,50312860,"11,483.21",Devonshire Primary School,GRANTS & EX GRATIA PAYMENTS,Peoples Services,Place Funding,A56110,0
London Borough of Sutton,03/01/2023,50299421,"7,092.85",Direct Care And Support Services,ACCOMMODATION - OTHER,Peoples Services,Supported Living,A56088,0
London Borough of Sutton,03/01/2023,50299421,"1,307.32",Direct Care And Support Services,ACCOMMODATION - OTHER,Peoples Services,Supported Living,A56088,0
London Borough of Sutton,03/01/2023,50299433,447.80,Direct Care And Support Services,ACCOMMODATION - OTHER,Peoples Services,Supported Living,A56088,0
London Borough of Sutton,03/01/2023,50299433,"1,307.32",Direct Care And Support Services,ACCOMMODATION - OTHER,Peoples Services,Supported Living,A56088,0
London Borough of Sutton,03/01/2023,50299433,561.08,Direct Care And Support Services,ACCOMMODATION - OTHER,Peoples Services,Supported Living,A56088,0
London Borough of Sutton,03/01/2023,50299434,"2,918.11",Direct Care And Support Services,ACCOMMODATION - OTHER,Peoples Services,Supported Living,A56088,0
London Borough of Sutton,03/01/2023,50299434,"1,447.39",Direct Care And Support Services,ACCOMMODATION - OTHER,Peoples Services,Supported Living,A56088,0
London Borough of Sutton,03/01/2023,50299434,990.23,Direct Care And Support Services,ACCOMMODATION - OTHER,Peoples Services,Supported Living,A56088,0
London Borough of Sutton,01/01/2023,50301785,"3,535.81",Direct Care And Support Services,ACCOMMODATION - OTHER,Peoples Services,Supported Living,A56088,0
London Borough of Sutton,01/01/2023,50301785,"1,307.32",Direct Care And Support Services,ACCOMMODATION - OTHER,Peoples Services,Supported Living,A56088,0
London Borough of Sutton,01/01/2023,50301785,990.68,Direct Care And Support Services,ACCOMMODATION - OTHER,Peoples Services,Supported Living,A56088,0
London Borough of Sutton,01/01/2023,50301788,"3,133.44",Direct Care And Support Services,ACCOMMODATION - OTHER,Peoples Services,Supported Living,A56088,0
London Borough of Sutton,01/01/2023,50301788,"1,307.32",Direct Care And Support Services,ACCOMMODATION - OTHER,Peoples Services,Supported Living,A56088,0
London Borough of Sutton,01/01/2023,50301788,"1,124.80",Direct Care And Support Services,ACCOMMODATION - OTHER,Peoples Services,Supported Living,A56088,0
London Borough of Sutton,01/01/2023,50301792,"1,416.29",Direct Care And Support Services,ACCOMMODATION - OTHER,Peoples Services,Supported Living,A56088,0
London Borough of Sutton,01/01/2023,50301792,"1,307.32",Direct Care And Support Services,ACCOMMODATION - OTHER,Peoples Services,Supported Living,A56088,0
London Borough of Sutton,01/01/2023,50301792,538.52,Direct Care And Support Services,ACCOMMODATION - OTHER,Peoples Services,Supported Living,A56088,0
London Borough of Sutton,01/01/2023,50301793,675.62,Direct Care And Support Services,ACCOMMODATION - OTHER,Peoples Services,Supported Living,A56088,0
London Borough of Sutton,01/01/2023,50301793,"1,307.32",Direct Care And Support Services,ACCOMMODATION - OTHER,Peoples Services,Supported Living,A56088,0
London Borough of Sutton,01/01/2023,50301793,"1,713.12",Direct Care And Support Services,ACCOMMODATION - OTHER,Peoples Services,Supported Living,A56088,0
London Borough of Sutton,16/01/2023,50307360,"1,292.14",Direct Care And Support Services,ACCOMMODATION - OTHER,Peoples Services,Supported Living,A56088,0
London Borough of Sutton,16/01/2023,50307360,"1,307.32",Direct Care And Support Services,ACCOMMODATION - OTHER,Peoples Services,Supported Living,A56088,0
London Borough of Sutton,16/01/2023,50307360,531.20,Direct Care And Support Services,ACCOMMODATION - OTHER,Peoples Services,Supported Living,A56088,0
London Borough of Sutton,16/01/2023,50307361,"2,690.00",Direct Care And Support Services,ACCOMMODATION - OTHER,Peoples Services,Supported Living,A56088,0
London Borough of Sutton,16/01/2023,50307361,"1,307.32",Direct Care And Support Services,ACCOMMODATION - OTHER,Peoples Services,Supported Living,A56088,0
London Borough of Sutton,16/01/2023,50307361,670.64,Direct Care And Support Services,ACCOMMODATION - OTHER,Peoples Services,Supported Living,A56088,0
London Borough of Sutton,16/01/2023,50307384,"2,324.00",Direct Care And Support Services,ACCOMMODATION - OTHER,Peoples Services,Supported Living,A56088,0
London Borough of Sutton,16/01/2023,50307384,"1,307.32",Direct Care And Support Services,ACCOMMODATION - OTHER,Peoples Services,Supported Living,A56088,0
London Borough of Sutton,16/01/2023,50307384,697.20,Direct Care And Support Services,ACCOMMODATION - OTHER,Peoples Services,Supported Living,A56088,0
London Borough of Sutton,16/01/2023,50307462,"2,207.80",Direct Care And Support Services,ACCOMMODATION - OTHER,Peoples Services,Supported Living,A56088,0
London Borough of Sutton,16/01/2023,50307462,"1,307.32",Direct Care And Support Services,ACCOMMODATION - OTHER,Peoples Services,Supported Living,A56088,0
London Borough of Sutton,16/01/2023,50307462,630.80,Direct Care And Support Services,ACCOMMODATION - OTHER,Peoples Services,Supported Living,A56088,0
London Borough of Sutton,25/01/2023,50311916,"2,357.20",Direct Care And Support Services,ACCOMMODATION - OTHER,Peoples Services,Supported Living,A56088,0
London Borough of Sutton,25/01/2023,50311916,"1,307.32",Direct Care And Support Services,ACCOMMODATION - OTHER,Peoples Services,Supported Living,A56088,0
London Borough of Sutton,10/01/2023,50302282,"1,092.36",REDACTED - PERSONAL DATA,GRANTS & EX GRATIA PAYMENTS,Peoples Services,Payment - Nursery Funding,A51056,0
London Borough of Sutton,10/01/2023,50301996,"197,787.27",Dorchester Primary School,GRANTS & EX GRATIA PAYMENTS,Peoples Services,Payments to Schools,A51013,0
London Borough of Sutton,10/01/2023,50302065,"3,969.00",Dorchester Primary School,GRANTS & EX GRATIA PAYMENTS,Peoples Services,Payment - school led tutoring grant,A51060,0
London Borough of Sutton,10/01/2023,50302094,"3,190.00",Dorchester Primary School,GRANTS & EX GRATIA PAYMENTS,Peoples Services,Payment - Covid 19 Recovery Premium,A51039,0
London Borough of Sutton,10/01/2023,50302117,"30,470.00",Dorchester Primary School,GRANTS & EX GRATIA PAYMENTS,Peoples Services,Payment - Deprivation Pupil Premium,A51030,0
London Borough of Sutton,10/01/2023,50302157,"-30,470.00",Dorchester Primary School,GRANTS & EX GRATIA PAYMENTS,Peoples Services,Payment - Deprivation Pupil Premium,A51030,0
London Borough of Sutton,23/01/2023,50310918,"3,030.00",Dorchester Primary School,GRANTS & EX GRATIA PAYMENTS,Resources,"Grants, Contributions & Donations",A47005,0
London Borough of Sutton,31/01/2023,50312861,"17,224.81",Dorchester Primary School,GRANTS & EX GRATIA PAYMENTS,Peoples Services,Place Funding,A56110,0
London Borough of Sutton,29/12/2022,20039563,"1,096.98",REDACTED - PERSONAL DATA,GRANTS & EX GRATIA PAYMENTS,Environment Housing and Neighbourhoods,Temporary Protection - Homeless Persons,A62028,0
London Borough of Sutton,31/08/2022,20040700,"1,694.88",REDACTED - PERSONAL DATA,TCES RETAILERS (PHARMACYS),Peoples Services,Client Related Assessments,A56017,0
London Borough of Sutton,23/10/2022,20040701,"1,989.15",REDACTED - PERSONAL DATA,TCES RETAILERS (PHARMACYS),Peoples Services,Client Related Assessments,A56017,0
London Borough of Sutton,05/01/2023,50302710,642.84,Dreamfo Housing Ltd,CHILDREN'S SERVICE - OTHER,Peoples Services,Approved Lodgings,A61000,0
London Borough of Sutton,05/01/2023,50302710,53.58,Dreamfo Housing Ltd,CHILDREN'S SERVICE - OTHER,Peoples Services,Approved Lodgings,A61000,0
London Borough of Sutton,05/01/2023,50302711,"3,321.39",Dreamfo Housing Ltd,CHILDREN'S SERVICE - OTHER,Peoples Services,Approved Lodgings,A61000,0
London Borough of Sutton,05/01/2023,50302711,276.78,Dreamfo Housing Ltd,CHILDREN'S SERVICE - OTHER,Peoples Services,Approved Lodgings,A61000,0
London Borough of Sutton,04/01/2023,50302787,"4,915.72",Dreamfo Housing Ltd,CHILDREN'S SERVICE - OTHER,Peoples Services,Approved Lodgings,A61000,0
London Borough of Sutton,04/01/2023,50302787,276.78,Dreamfo Housing Ltd,CHILDREN'S SERVICE - OTHER,Peoples Services,Approved Lodgings,A61000,0
London Borough of Sutton,13/01/2023,50310108,"1,992.86",Dreamfo Housing Ltd,CHILDREN'S SERVICE - OTHER,Peoples Services,Residential Care-Children,A56115,0
London Borough of Sutton,13/01/2023,50310108,"1,139.86",Dreamfo Housing Ltd,CHILDREN'S SERVICE - OTHER,Peoples Services,Approved Lodgings,A61000,0
London Borough of Sutton,13/01/2023,50310108,71.43,Dreamfo Housing Ltd,CHILDREN'S SERVICE - OTHER,Peoples Services,Approved Lodgings,A61000,0
London Borough of Sutton,01/12/2022,20039016,"3,203.57",Dunfield & Mead Ltd,CHILDREN'S SERVICES - RESIDENTIAL,Peoples Services,Miscellaneous Expenses,A49000,0
London Borough of Sutton,01/12/2022,20039017,"2,269.64",Dunfield & Mead Ltd,CHILDREN'S SERVICES - RESIDENTIAL,Peoples Services,Miscellaneous Expenses,A49000,0
London Borough of Sutton,01/12/2022,20039048,"1,771.42",Dunfield & Mead Ltd,CHILDREN'S SERVICES - RESIDENTIAL,Peoples Services,Approved Lodgings,A61000,0
London Borough of Sutton,01/12/2022,50302693,"3,653.57",Dunfield & Mead Ltd,CHILDREN'S SERVICES - RESIDENTIAL,Peoples Services,Approved Lodgings,A61000,0
London Borough of Sutton,01/12/2022,50302693,276.78,Dunfield & Mead Ltd,CHILDREN'S SERVICES - RESIDENTIAL,Peoples Services,Approved Lodgings,A61000,0
London Borough of Sutton,01/12/2022,50302704,"4,594.63",Dunfield & Mead Ltd,CHILDREN'S SERVICES - RESIDENTIAL,Peoples Services,Accommodation - Supported Living,A62001,0
London Borough of Sutton,01/12/2022,50302726,"4,317.85",Dunfield & Mead Ltd,CHILDREN'S SERVICES - RESIDENTIAL,Peoples Services,Accommodation - Supported Living,A62001,0
London Borough of Sutton,01/12/2022,50302726,276.78,Dunfield & Mead Ltd,CHILDREN'S SERVICES - RESIDENTIAL,Peoples Services,Accommodation - Supported Living,A62001,0
London Borough of Sutton,31/12/2022,20039664,"3,720.00",Dunheved Hotel Ltd,ACCOMMODATION BED & BREAKFAST,Environment Housing and Neighbourhoods,Bed & Breakfast,A56000,0
London Borough of Sutton,20/01/2023,50310180,"3,187.44",Dunheved Lodge,SOCIAL SERVICES RESIDENTIAL,Peoples Services,Residential Care - Ext Provider,A56114,0
London Borough of Sutton,20/01/2023,50310180,"3,016.00",Dunheved Lodge,SOCIAL SERVICES RESIDENTIAL,Peoples Services,One to One Care,A56108,0
London Borough of Sutton,20/12/2022,20039338,"1,697.42",Dynamic Care Ltd,SOCIAL SERVICES RESIDENTIAL,Peoples Services,Approved Lodgings,A61000,0
London Borough of Sutton,31/12/2022,50302739,276.78,Dynamic Care Ltd,SOCIAL SERVICES RESIDENTIAL,Peoples Services,Approved Lodgings,A61000,0
London Borough of Sutton,31/12/2022,50302739,"5,203.57",Dynamic Care Ltd,SOCIAL SERVICES RESIDENTIAL,Peoples Services,Accommodation - Supported Living,A62001,0
London Borough of Sutton,31/12/2022,50302761,"4,926.78",Dynamic Care Ltd,SOCIAL SERVICES RESIDENTIAL,Peoples Services,Approved Lodgings,A61000,0
London Borough of Sutton,31/12/2022,50305941,"5,480.35",Dynamic Care Ltd,SOCIAL SERVICES RESIDENTIAL,Peoples Services,Approved Lodgings,A61000,0
London Borough of Sutton,31/12/2022,20041398,"24,010.00",E Homes And Shelters,ACCOMMODATION BED & BREAKFAST,Environment Housing and Neighbourhoods,Bed & Breakfast,A56000,0
London Borough of Sutton,20/01/2023,50310285,"3,734.88",Eastcroft Nursing Home,SOCIAL SERVICES RESIDENTIAL,Peoples Services,Nursing Care - Ext Provider,A56025,0
London Borough of Sutton,20/01/2023,50310285,-750.40,Eastcroft Nursing Home,SOCIAL SERVICES RESIDENTIAL,Peoples Services,Nursing Care - 3rd party top up payment,A56023,0
London Borough of Sutton,20/01/2023,50310392,"3,734.88",Eastcroft Nursing Home,SOCIAL SERVICES RESIDENTIAL,Peoples Services,Nursing Care - Ext Provider,A56025,0
London Borough of Sutton,20/01/2023,50310392,-750.40,Eastcroft Nursing Home,SOCIAL SERVICES RESIDENTIAL,Peoples Services,Nursing Care - 3rd party top up payment,A56023,0
London Borough of Sutton,20/01/2023,50310409,"1,524.10",Eastcroft Nursing Home,SOCIAL SERVICES RESIDENTIAL,Peoples Services,Nursing Care - 3rd party top up payment,A56023,0
London Borough of Sutton,20/01/2023,50310409,"-6,960.12",Eastcroft Nursing Home,SOCIAL SERVICES RESIDENTIAL,Peoples Services,Nursing Care Short Term,A56026,0
London Borough of Sutton,20/01/2023,50310471,-750.40,Eastcroft Nursing Home,SOCIAL SERVICES RESIDENTIAL,Peoples Services,Nursing Care - 3rd party top up payment,A56023,0
London Borough of Sutton,20/01/2023,50310471,"3,736.00",Eastcroft Nursing Home,SOCIAL SERVICES RESIDENTIAL,Peoples Services,Nursing Care Short Term,A56026,0
London Borough of Sutton,20/01/2023,50310575,"3,848.24",Eastcroft Nursing Home,SOCIAL SERVICES RESIDENTIAL,Peoples Services,Nursing Care - Ext Provider,A56025,0
London Borough of Sutton,20/01/2023,50310575,-750.40,Eastcroft Nursing Home,SOCIAL SERVICES RESIDENTIAL,Peoples Services,Nursing Care - 3rd party top up payment,A56023,0
London Borough of Sutton,20/01/2023,50310599,-836.76,Eastcroft Nursing Home,SOCIAL SERVICES RESIDENTIAL,Peoples Services,Nursing Care - 3rd party top up payment,A56023,0
London Borough of Sutton,20/01/2023,50310599,"4,052.76",Eastcroft Nursing Home,SOCIAL SERVICES RESIDENTIAL,Peoples Services,Nursing Care Short Term,A56026,0
London Borough of Sutton,03/11/2022,20039493,"2,048.13",EDF Energy,UTILITIES,Environment Housing and Neighbourhoods,Electricity,A21000,0
London Borough of Sutton,22/11/2022,20039508,551.80,EDF Energy,UTILITIES,HRA,Electricity,A21000,0
London Borough of Sutton,27/12/2022,20039805,"3,357.70",EDF Energy,UTILITIES,HRA,Electricity,A21000,0
London Borough of Sutton,27/12/2022,20039805,-9.15,EDF Energy,UTILITIES,HRA,Electricity,A21000,0
London Borough of Sutton,03/01/2023,20039995,898.31,EDF Energy,UTILITIES,Environment Housing and Neighbourhoods,Electricity,A21000,0
London Borough of Sutton,03/01/2023,20040121,571.12,EDF Energy,UTILITIES,Resources,Electricity,A21000,0
London Borough of Sutton,27/10/2022,20040135,980.24,EDF Energy,UTILITIES,Peoples Services,Electricity,A21000,0
London Borough of Sutton,04/01/2023,20040632,"7,875.01",EDF Energy,UTILITIES,Resources,Electricity,A21000,0
London Borough of Sutton,09/01/2023,20040864,567.38,EDF Energy,UTILITIES,HRA,Electricity,A21000,0
London Borough of Sutton,29/10/2022,20041412,"3,640.91",EDF Energy,UTILITIES,Environment Housing and Neighbourhoods,Electricity,A21000,0
London Borough of Sutton,20/10/2022,50299389,552.90,REDACTED - PERSONAL DATA,SUNDRY SUPPLIER - EDUCATION,Peoples Services,Miscellaneous Expenses,A49000,0
London Borough of Sutton,26/10/2022,20039280,929.26,Egbert H Taylor & Company Limited,REFUSE COLLECTION / DISPOSAL,Environment Housing and Neighbourhoods,Equipment Purchases,C17000,0
London Borough of Sutton,10/01/2023,50302339,"1,594.89",REDACTED - PERSONAL DATA,GRANTS & EX GRATIA PAYMENTS,Peoples Services,Payment - Nursery Funding,A51056,0
London Borough of Sutton,20/10/2022,50299352,737.10,REDACTED - PERSONAL DATA,SUNDRY SUPPLIER - EDUCATION,Peoples Services,Miscellaneous Expenses,A49000,0
London Borough of Sutton,07/02/2021,50299273,552.83,Elite CarePlus Ltd,SOCIAL SERVICES DAY CARE,Peoples Services,Home Care Services,A56019,0
London Borough of Sutton,31/01/2021,50299295,649.35,Elite CarePlus Ltd,SOCIAL SERVICES DAY CARE,Peoples Services,Home Care Services,A56019,0
London Borough of Sutton,11/12/2022,50299329,819.00,Elite CarePlus Ltd,SOCIAL SERVICES DAY CARE,Peoples Services,Home Care Services,A56019,0
London Borough of Sutton,25/12/2022,50301345,"1,160.25",Elite CarePlus Ltd,SOCIAL SERVICES DAY CARE,Peoples Services,Home Care Services,A56019,0
London Borough of Sutton,18/12/2022,50301347,819.00,Elite CarePlus Ltd,SOCIAL SERVICES DAY CARE,Peoples Services,Home Care Services,A56019,0
London Borough of Sutton,18/12/2022,50301348,799.50,Elite CarePlus Ltd,SOCIAL SERVICES DAY CARE,Peoples Services,Home Care Services,A56019,0
London Borough of Sutton,18/12/2022,50301352,750.75,Elite CarePlus Ltd,SOCIAL SERVICES DAY CARE,Peoples Services,Home Care Services,A56019,0
London Borough of Sutton,25/12/2022,50301355,819.00,Elite CarePlus Ltd,SOCIAL SERVICES DAY CARE,Peoples Services,Home Care Services,A56019,0
London Borough of Sutton,25/12/2022,50301356,799.50,Elite CarePlus Ltd,SOCIAL SERVICES DAY CARE,Peoples Services,Home Care Services,A56019,0
London Borough of Sutton,25/12/2022,50301368,750.75,Elite CarePlus Ltd,SOCIAL SERVICES DAY CARE,Peoples Services,Home Care Services,A56019,0
London Borough of Sutton,18/12/2022,50301374,614.25,Elite CarePlus Ltd,SOCIAL SERVICES DAY CARE,Peoples Services,Home Care Services,A56019,0
London Borough of Sutton,25/12/2022,50301375,614.25,Elite CarePlus Ltd,SOCIAL SERVICES DAY CARE,Peoples Services,Home Care Services,A56019,0
London Borough of Sutton,18/12/2022,50301376,614.25,Elite CarePlus Ltd,SOCIAL SERVICES DAY CARE,Peoples Services,Home Care Services,A56019,0
London Borough of Sutton,25/12/2022,50301377,614.25,Elite CarePlus Ltd,SOCIAL SERVICES DAY CARE,Peoples Services,Home Care Services,A56019,0
London Borough of Sutton,18/12/2022,50301445,"1,160.25",Elite CarePlus Ltd,SOCIAL SERVICES DAY CARE,Peoples Services,Home Care Services,A56019,0
London Borough of Sutton,12/12/2022,20038588,"2,632.00",Elite Guarding (UK) Ltd,GRANTS & EX GRATIA PAYMENTS,HRA,Payments to Contractors,C14000,0
London Borough of Sutton,19/12/2022,20039073,"2,632.00",Elite Guarding (UK) Ltd,GRANTS & EX GRATIA PAYMENTS,HRA,Payments to Contractors,C14000,0
London Borough of Sutton,28/12/2022,20039515,"3,384.00",Elite Guarding (UK) Ltd,GRANTS & EX GRATIA PAYMENTS,HRA,Payments to Contractors,C14000,0
London Borough of Sutton,02/01/2023,20039636,"4,136.00",Elite Guarding (UK) Ltd,GRANTS & EX GRATIA PAYMENTS,HRA,Payments to Contractors,C14000,0
London Borough of Sutton,16/01/2023,20041473,"3,156.68",Sassy Box Ltd,CHILDREN'S SERVICE - OTHER,Resources,Other Supplies & Services,A44291,0
London Borough of Sutton,20/01/2023,50310220,"9,101.84",Elysium Healthcare Ltd,CHILDREN'S SERVICES - FOSTERING & ADOPTION SERVICES,Peoples Services,Residential Care - Ext Provider,A56114,0
London Borough of Sutton,20/01/2023,50310132,"7,668.40",Elysium Supported Living Limited,SOCIAL SERVICES RESIDENTIAL,Peoples Services,Residential Care - Ext Provider,A56114,0
London Borough of Sutton,07/11/2022,20040007,"4,942.98",Emap Publishing Ltd,PRESS & PUBLICITY,Resources,Subscriptions,A47010,0
London Borough of Sutton,10/01/2023,50302391,637.95,REDACTED - PERSONAL DATA,SOCIAL SERVICES - DIRECT PAYMENTS,Peoples Services,Payment - Nursery Funding,A51056,0
London Borough of Sutton,31/12/2022,50299516,"1,300.00",EMPOWER KNOWLEDGE LIMITED,CHILDREN'S SERVICES - SEN SERVICES,Peoples Services,Independent School Fees,A56002,0
London Borough of Sutton,10/01/2023,50305451,"7,690.00",EMPOWER KNOWLEDGE LIMITED,CHILDREN'S SERVICES - SEN SERVICES,Peoples Services,Independent School Fees,A56002,0
London Borough of Sutton,19/01/2023,50309741,"3,764.29",Enriched Care Ltd,CHILDREN'S SERVICES - RESIDENTIAL,Peoples Services,Supported Living,A56088,0
London Borough of Sutton,03/01/2023,20039792,"3,146.77",E-on Energy,UTILITIES,Resources,Gas,A21003,0
London Borough of Sutton,08/12/2022,20038719,"177,344.00",Epsom & St Helier Nhs Trust,OFFICE SERVICES,Health and Wellbeing,Provider Contract Payments,A44290,0
London Borough of Sutton,19/01/2023,20041001,"88,672.00",Epsom & St Helier Nhs Trust,OFFICE SERVICES,Health and Wellbeing,Provider Contract Payments,A44290,0
London Borough of Sutton,10/01/2023,50302429,"23,604.37",Epsom & St Helier Nhs Trust,OFFICE SERVICES,Peoples Services,Payment - Nursery Funding,A51056,0
London Borough of Sutton,31/01/2023,50312821,"1,200.00",Epsom & St Helier Nhs Trust,OFFICE SERVICES,Peoples Services,Predictable Needs funding,A56125,0
London Borough of Sutton,06/09/2022,20039933,"52,418.63",EQUANS Regeneration Ltd,CONSTRUCTION INDUSTRY,HRA,Payments to Contractors,C14000,0
London Borough of Sutton,11/01/2023,50305448,"2,165.51",ERNEST BEVIN COLLEGE,CHILDREN'S SERVICES - SEN SERVICES,Peoples Services,Top-up Funding,A51016,0
London Borough of Sutton,05/12/2022,20039591,984.25,Ernest Doe & Sons Ltd,AGRICULTURAL & ESTATE SERVICES,Environment Housing and Neighbourhoods,Equipment And Materials Purchase,A40000,0
London Borough of Sutton,03/01/2023,50299441,560.00,Escoben Care Services Ltd,SOCIAL SERVICES RESIDENTIAL,Peoples Services,Home Care Services,A56019,0
London Borough of Sutton,18/12/2022,50300804,630.00,Escoben Care Services Ltd,SOCIAL SERVICES RESIDENTIAL,Peoples Services,Home Care Services,A56019,0
London Borough of Sutton,25/12/2022,50300813,"1,134.00",Escoben Care Services Ltd,SOCIAL SERVICES RESIDENTIAL,Peoples Services,Home Care Services,A56019,0
London Borough of Sutton,18/12/2022,50300814,"1,134.00",Escoben Care Services Ltd,SOCIAL SERVICES RESIDENTIAL,Peoples Services,Home Care Services,A56019,0
London Borough of Sutton,25/12/2022,50300815,797.90,Escoben Care Services Ltd,SOCIAL SERVICES RESIDENTIAL,Peoples Services,Home Care Services,A56019,0
London Borough of Sutton,18/12/2022,50300816,797.90,Escoben Care Services Ltd,SOCIAL SERVICES RESIDENTIAL,Peoples Services,Home Care Services,A56019,0
London Borough of Sutton,29/12/2022,50304486,560.00,Escoben Care Services Ltd,SOCIAL SERVICES RESIDENTIAL,Peoples Services,Home Care Services,A56019,0
London Borough of Sutton,01/01/2023,50304487,642.98,Escoben Care Services Ltd,SOCIAL SERVICES RESIDENTIAL,Peoples Services,Home Care Services,A56019,0
London Borough of Sutton,01/01/2023,50304505,544.50,Escoben Care Services Ltd,SOCIAL SERVICES RESIDENTIAL,Peoples Services,Home Care Services,A56019,0
London Borough of Sutton,01/01/2023,50304534,642.98,Escoben Care Services Ltd,SOCIAL SERVICES RESIDENTIAL,Peoples Services,Home Care Services,A56019,0
London Borough of Sutton,01/01/2023,50304544,"1,296.00",Escoben Care Services Ltd,SOCIAL SERVICES RESIDENTIAL,Peoples Services,Home Care Services,A56019,0
London Borough of Sutton,01/01/2023,50304545,920.93,Escoben Care Services Ltd,SOCIAL SERVICES RESIDENTIAL,Peoples Services,Home Care Services,A56019,0
London Borough of Sutton,18/01/2023,50309291,621.00,Escoben Care Services Ltd,SOCIAL SERVICES RESIDENTIAL,Peoples Services,Home Care Services,A56019,0
London Borough of Sutton,08/01/2023,50309294,601.47,Escoben Care Services Ltd,SOCIAL SERVICES RESIDENTIAL,Peoples Services,Home Care Services,A56019,0
London Borough of Sutton,08/01/2023,50309299,601.47,Escoben Care Services Ltd,SOCIAL SERVICES RESIDENTIAL,Peoples Services,Home Care Services,A56019,0
London Borough of Sutton,08/01/2023,50309304,"1,215.00",Escoben Care Services Ltd,SOCIAL SERVICES RESIDENTIAL,Peoples Services,Home Care Services,A56019,0
London Borough of Sutton,08/01/2023,50309305,859.41,Escoben Care Services Ltd,SOCIAL SERVICES RESIDENTIAL,Peoples Services,Home Care Services,A56019,0
London Borough of Sutton,15/01/2023,50311235,"1,134.00",Escoben Care Services Ltd,SOCIAL SERVICES RESIDENTIAL,Peoples Services,Home Care Services,A56019,0
